Organisation Name,Organisation Code,Unique Ref No,Effective Date,Directorate  where expenditure incurred,Supplier name ,Payment Date,Net Amount,Purpose of Spend,Procurement Classification (Higher Level),Procurement Classification (Lower Level),Capital/Revenue
Walsall Council,http://opendatacommunities.org/id/metropolitan-district-council/walsall,WC 60 - 1,30/09/2015,Social Care & Inclusion,1ST HAND CARE LTD,15/09/2015,"2,311.50",73372-DOMICILIARY CARE,Third Party Payments,Private Contractor Fees,Revenue
Walsall Council,http://opendatacommunities.org/id/metropolitan-district-council/walsall,WC 60 - 2,30/09/2015,Childrens,247 CARS (WILLENHALL) LIMITED,14/09/2015,252.00,52000-WITH DRIVER-HIRE OF VEHICLES,Transport,Hire,Revenue
Walsall Council,http://opendatacommunities.org/id/metropolitan-district-council/walsall,WC 60 - 3,30/09/2015,Childrens,247 CARS (WILLENHALL) LIMITED,14/09/2015,281.20,52000-WITH DRIVER-HIRE OF VEHICLES,Transport,Hire,Revenue
Walsall Council,http://opendatacommunities.org/id/metropolitan-district-council/walsall,WC 60 - 4,30/09/2015,Childrens,247 CARS (WILLENHALL) LIMITED,14/09/2015,312.00,52000-WITH DRIVER-HIRE OF VEHICLES,Transport,Hire,Revenue
Walsall Council,http://opendatacommunities.org/id/metropolitan-district-council/walsall,WC 60 - 5,30/09/2015,Childrens,247 CARS (WILLENHALL) LIMITED,23/09/2015,364.00,52000-WITH DRIVER-HIRE OF VEHICLES,Transport,Hire,Revenue
Walsall Council,http://opendatacommunities.org/id/metropolitan-district-council/walsall,WC 60 - 6,30/09/2015,Childrens,247 CARS (WILLENHALL) LIMITED,14/09/2015,384.80,52000-WITH DRIVER-HIRE OF VEHICLES,Transport,Hire,Revenue
Walsall Council,http://opendatacommunities.org/id/metropolitan-district-council/walsall,WC 60 - 7,30/09/2015,Childrens,247 CARS (WILLENHALL) LIMITED,14/09/2015,442.00,52000-WITH DRIVER-HIRE OF VEHICLES,Transport,Hire,Revenue
Walsall Council,http://opendatacommunities.org/id/metropolitan-district-council/walsall,WC 60 - 8,30/09/2015,Childrens,247 CARS (WILLENHALL) LIMITED,23/09/2015,650.00,52000-WITH DRIVER-HIRE OF VEHICLES,Transport,Hire,Revenue
Walsall Council,http://opendatacommunities.org/id/metropolitan-district-council/walsall,WC 60 - 9,30/09/2015,Childrens,247 CARS (WILLENHALL) LIMITED,14/09/2015,733.20,52000-WITH DRIVER-HIRE OF VEHICLES,Transport,Hire,Revenue
Walsall Council,http://opendatacommunities.org/id/metropolitan-district-council/walsall,WC 60 - 10,30/09/2015,Childrens,247 CARS (WILLENHALL) LIMITED,14/09/2015,826.80,52000-WITH DRIVER-HIRE OF VEHICLES,Transport,Hire,Revenue
Walsall Council,http://opendatacommunities.org/id/metropolitan-district-council/walsall,WC 60 - 11,30/09/2015,Childrens,247 CARS (WILLENHALL) LIMITED,14/09/2015,845.00,52000-WITH DRIVER-HIRE OF VEHICLES,Transport,Hire,Revenue
Walsall Council,http://opendatacommunities.org/id/metropolitan-district-council/walsall,WC 60 - 12,30/09/2015,Childrens,247 CARS (WILLENHALL) LIMITED,23/09/2015,"1,399.20",52000-WITH DRIVER-HIRE OF VEHICLES,Transport,Hire,Revenue
Walsall Council,http://opendatacommunities.org/id/metropolitan-district-council/walsall,WC 60 - 13,30/09/2015,Childrens,5 CARE SERVICES LTD,09/09/2015,983.25,63000-PROFESSIONAL FEES AND SERVICES,Supplies & Services,Services,Revenue
Walsall Council,http://opendatacommunities.org/id/metropolitan-district-council/walsall,WC 60 - 14,30/09/2015,Childrens,5 CARE SERVICES LTD,29/09/2015,"1,029.25",63000-PROFESSIONAL FEES AND SERVICES,Supplies & Services,Services,Revenue
Walsall Council,http://opendatacommunities.org/id/metropolitan-district-council/walsall,WC 60 - 15,30/09/2015,Childrens,5 CARE SERVICES LTD,09/09/2015,"1,759.50",63000-PROFESSIONAL FEES AND SERVICES,Supplies & Services,Services,Revenue
Walsall Council,http://opendatacommunities.org/id/metropolitan-district-council/walsall,WC 60 - 16,30/09/2015,Childrens,5 CARE SERVICES LTD,29/09/2015,"1,759.50",63000-PROFESSIONAL FEES AND SERVICES,Supplies & Services,Services,Revenue
Walsall Council,http://opendatacommunities.org/id/metropolitan-district-council/walsall,WC 60 - 17,30/09/2015,Social Care & Inclusion,5 CARE SERVICES LTD,16/09/2015,"25,056.52",73372-DOMICILIARY CARE,Third Party Payments,Private Contractor Fees,Revenue
Walsall Council,http://opendatacommunities.org/id/metropolitan-district-council/walsall,WC 60 - 18,30/09/2015,Change and Governance,A & P HOME MAINTENANCE LTD,15/09/2015,"23,296.46",01045-PRIVATE GRANTS,Capital,Capital,Capital
Walsall Council,http://opendatacommunities.org/id/metropolitan-district-council/walsall,WC 60 - 19,30/09/2015,Economy & Environment,A ASHTON,11/09/2015,480.90,60500-GENERAL MATERIALS,Supplies & Services,"Equip,Furniture & Materials",Revenue
Walsall Council,http://opendatacommunities.org/id/metropolitan-district-council/walsall,WC 60 - 20,30/09/2015,Economy & Environment,A BLISS,07/09/2015,753.00,62527-VISUAL ARTS,Supplies & Services,"Equip,Furniture & Materials",Revenue
Walsall Council,http://opendatacommunities.org/id/metropolitan-district-council/walsall,WC 60 - 21,30/09/2015,Change and Governance,A D T FIRE AND SECURITY PLC,29/09/2015,252.00,73025-PROFESSIONAL SERVICES-PRIV CONTRACTOR & OTHER AGENCIES,Third Party Payments,Private Contractor Fees,Revenue
Walsall Council,http://opendatacommunities.org/id/metropolitan-district-council/walsall,WC 60 - 22,30/09/2015,Change and Governance,A D T FIRE AND SECURITY PLC,29/09/2015,341.94,01006-SITE WORKS MAIN CONTRACTORS,Capital,Capital,Capital
Walsall Council,http://opendatacommunities.org/id/metropolitan-district-council/walsall,WC 60 - 23,30/09/2015,Change and Governance,A D T FIRE AND SECURITY PLC,24/09/2015,399.55,"40000-REPAIRS,ALTERATIONS & MAINTENANCE-PREM",Premises,Premises-Repairs & Maintenance,Revenue
Walsall Council,http://opendatacommunities.org/id/metropolitan-district-council/walsall,WC 60 - 24,30/09/2015,Change and Governance,A D T FIRE AND SECURITY PLC,11/09/2015,416.00,60008-MAINTENANCE-FURNITURE & EQUIPMENT,Supplies & Services,"Equip,Furniture & Materials",Revenue
Walsall Council,http://opendatacommunities.org/id/metropolitan-district-council/walsall,WC 60 - 25,30/09/2015,Change and Governance,A D T FIRE AND SECURITY PLC,29/09/2015,723.38,01006-SITE WORKS MAIN CONTRACTORS,Capital,Capital,Capital
Walsall Council,http://opendatacommunities.org/id/metropolitan-district-council/walsall,WC 60 - 26,30/09/2015,Change and Governance,A D T FIRE AND SECURITY PLC,29/09/2015,796.89,"40000-REPAIRS,ALTERATIONS & MAINTENANCE-PREM",Premises,Premises-Repairs & Maintenance,Revenue
Walsall Council,http://opendatacommunities.org/id/metropolitan-district-council/walsall,WC 60 - 27,30/09/2015,Change and Governance,A D T FIRE AND SECURITY PLC,29/09/2015,813.33,"40000-REPAIRS,ALTERATIONS & MAINTENANCE-PREM",Premises,Premises-Repairs & Maintenance,Revenue
Walsall Council,http://opendatacommunities.org/id/metropolitan-district-council/walsall,WC 60 - 28,30/09/2015,Change and Governance,A D T FIRE AND SECURITY PLC,11/09/2015,865.00,60008-MAINTENANCE-FURNITURE & EQUIPMENT,Supplies & Services,"Equip,Furniture & Materials",Revenue
Walsall Council,http://opendatacommunities.org/id/metropolitan-district-council/walsall,WC 60 - 29,30/09/2015,Change and Governance,A D T FIRE AND SECURITY PLC,29/09/2015,"1,939.92",60008-MAINTENANCE-FURNITURE & EQUIPMENT,Supplies & Services,"Equip,Furniture & Materials",Revenue
Walsall Council,http://opendatacommunities.org/id/metropolitan-district-council/walsall,WC 60 - 30,30/09/2015,Childrens,A DUNFORD & SON,29/09/2015,900.00,41090-LANDSCAPING GROUNDS MAINTENANCE,Premises,Premises-Repairs & Maintenance,Revenue
Walsall Council,http://opendatacommunities.org/id/metropolitan-district-council/walsall,WC 60 - 31,30/09/2015,Social Care & Inclusion,A F BLAKEMORE & SON LTD,29/09/2015,81.33,60500-GENERAL MATERIALS,Supplies & Services,"Equip,Furniture & Materials",Revenue
Walsall Council,http://opendatacommunities.org/id/metropolitan-district-council/walsall,WC 60 - 32,30/09/2015,Social Care & Inclusion,A F BLAKEMORE & SON LTD,29/09/2015,169.40,61305-CATERING,Supplies & Services,Provisions,Revenue
Walsall Council,http://opendatacommunities.org/id/metropolitan-district-council/walsall,WC 60 - 33,30/09/2015,Economy & Environment,A F BLAKEMORE & SON LTD,21/09/2015,264.60,61002-DRY FOODS-PROVISIONS,Supplies & Services,Provisions,Revenue
Walsall Council,http://opendatacommunities.org/id/metropolitan-district-council/walsall,WC 60 - 34,30/09/2015,Economy & Environment,A F BLAKEMORE & SON LTD,02/09/2015,281.21,61002-DRY FOODS-PROVISIONS,Supplies & Services,Provisions,Revenue
Walsall Council,http://opendatacommunities.org/id/metropolitan-district-council/walsall,WC 60 - 35,30/09/2015,Economy & Environment,A F BLAKEMORE & SON LTD,21/09/2015,286.10,61009-BEVERAGES-PROVISIONS,Supplies & Services,Provisions,Revenue
Walsall Council,http://opendatacommunities.org/id/metropolitan-district-council/walsall,WC 60 - 36,30/09/2015,Social Care & Inclusion,A F BLAKEMORE & SON LTD,11/09/2015,292.38,61016-FOOD AND BEVERAGES-PROVISIONS,Supplies & Services,Provisions,Revenue
Walsall Council,http://opendatacommunities.org/id/metropolitan-district-council/walsall,WC 60 - 37,30/09/2015,Social Care & Inclusion,A F BLAKEMORE & SON LTD,28/09/2015,478.59,61305-CATERING,Supplies & Services,Provisions,Revenue
Walsall Council,http://opendatacommunities.org/id/metropolitan-district-council/walsall,WC 60 - 38,30/09/2015,Economy & Environment,A F BLAKEMORE & SON LTD,29/09/2015,498.73,61008-CONFECTIONERY/SNACKS-PROVISIONS,Supplies & Services,Provisions,Revenue
Walsall Council,http://opendatacommunities.org/id/metropolitan-district-council/walsall,WC 60 - 39,30/09/2015,Economy & Environment,A F BLAKEMORE & SON LTD,29/09/2015,615.33,61008-CONFECTIONERY/SNACKS-PROVISIONS,Supplies & Services,Provisions,Revenue
Walsall Council,http://opendatacommunities.org/id/metropolitan-district-council/walsall,WC 60 - 40,30/09/2015,Childrens,REDACTED,01/09/2015,349.76,74006-HOLIDAY/CHRISTMAS ALLOWANCE-FOSTER CARERS-OTH AGENCY PROVISION,Third Party Payments,Private Contractor Fees,Revenue
Walsall Council,http://opendatacommunities.org/id/metropolitan-district-council/walsall,WC 60 - 41,30/09/2015,Childrens,REDACTED,28/09/2015,349.76,74006-HOLIDAY/CHRISTMAS ALLOWANCE-FOSTER CARERS-OTH AGENCY PROVISION,Third Party Payments,Private Contractor Fees,Revenue
Walsall Council,http://opendatacommunities.org/id/metropolitan-district-council/walsall,WC 60 - 42,30/09/2015,Childrens,REDACTED,14/09/2015,906.76,62515-MISCELLANEOUS SUPPLIES,Supplies & Services,Other Supplies & Services,Revenue
Walsall Council,http://opendatacommunities.org/id/metropolitan-district-council/walsall,WC 60 - 43,30/09/2015,Childrens,REDACTED,14/09/2015,985.76,74006-HOLIDAY/CHRISTMAS ALLOWANCE-FOSTER CARERS-OTH AGENCY PROVISION,Third Party Payments,Private Contractor Fees,Revenue
Walsall Council,http://opendatacommunities.org/id/metropolitan-district-council/walsall,WC 60 - 44,30/09/2015,Childrens,REDACTED,14/09/2015,431.55,76422-DIRECT PAYMENTS TO SOCIAL SERVICES CLIENTS,Transfer Payments,Transfer Payments,Revenue
Walsall Council,http://opendatacommunities.org/id/metropolitan-district-council/walsall,WC 60 - 45,30/09/2015,Childrens,REDACTED,01/09/2015,650.92,74006-HOLIDAY/CHRISTMAS ALLOWANCE-FOSTER CARERS-OTH AGENCY PROVISION,Third Party Payments,Private Contractor Fees,Revenue
Walsall Council,http://opendatacommunities.org/id/metropolitan-district-council/walsall,WC 60 - 46,30/09/2015,Childrens,REDACTED,28/09/2015,650.92,74006-HOLIDAY/CHRISTMAS ALLOWANCE-FOSTER CARERS-OTH AGENCY PROVISION,Third Party Payments,Private Contractor Fees,Revenue
Walsall Council,http://opendatacommunities.org/id/metropolitan-district-council/walsall,WC 60 - 47,30/09/2015,Social Care & Inclusion,ABBEY COURT NURSING & RESIDEN,15/09/2015,"1,600.71",73373-RESIDENTIAL & NURSING CARE PLACEMENTS,Third Party Payments,Private Contractor Fees,Revenue
Walsall Council,http://opendatacommunities.org/id/metropolitan-district-council/walsall,WC 60 - 48,30/09/2015,Childrens,ABC CHILDRENS HOME,02/09/2015,"13,285.71",74036-EXTERNAL RESIDENTIAL CARE-OTH AGENCY PROVISION,Third Party Payments,Private Contractor Fees,Revenue
Walsall Council,http://opendatacommunities.org/id/metropolitan-district-council/walsall,WC 60 - 49,30/09/2015,Childrens,ABC CHILDRENS HOME,14/09/2015,"27,428.57",74036-EXTERNAL RESIDENTIAL CARE-OTH AGENCY PROVISION,Third Party Payments,Private Contractor Fees,Revenue
Walsall Council,http://opendatacommunities.org/id/metropolitan-district-council/walsall,WC 60 - 50,30/09/2015,Childrens,ABC DAY NURSERY (WILLENHALL) LIMITED,01/09/2015,"14,513.23",66505-OTHER-GRANTS TO OTHER ORGS,Third Party Payments,Grants to Other Orgs,Revenue
Walsall Council,http://opendatacommunities.org/id/metropolitan-district-council/walsall,WC 60 - 51,30/09/2015,Childrens,ABC DAY NURSERY (WILLENHALL) LIMITED,04/09/2015,"24,029.46",66505-OTHER-GRANTS TO OTHER ORGS,Third Party Payments,Grants to Other Orgs,Revenue
Walsall Council,http://opendatacommunities.org/id/metropolitan-district-council/walsall,WC 60 - 52,30/09/2015,Childrens,ABC FOSTERING,29/09/2015,"2,884.20",74037-INDEPENDENT FOSTER CARE-OTH AGENCY PROVISION,Third Party Payments,Private Contractor Fees,Revenue
Walsall Council,http://opendatacommunities.org/id/metropolitan-district-council/walsall,WC 60 - 53,30/09/2015,Childrens,ABC FOSTERING,29/09/2015,"3,036.00",74037-INDEPENDENT FOSTER CARE-OTH AGENCY PROVISION,Third Party Payments,Private Contractor Fees,Revenue
Walsall Council,http://opendatacommunities.org/id/metropolitan-district-council/walsall,WC 60 - 54,30/09/2015,Childrens,ABC FOSTERING,29/09/2015,"3,300.00",74037-INDEPENDENT FOSTER CARE-OTH AGENCY PROVISION,Third Party Payments,Private Contractor Fees,Revenue
Walsall Council,http://opendatacommunities.org/id/metropolitan-district-council/walsall,WC 60 - 55,30/09/2015,Childrens,ABC REMOVALS UK LTD,25/09/2015,544.00,60104-REMOVAL OF FURNITURE,Supplies & Services,"Equip,Furniture & Materials",Revenue
Walsall Council,http://opendatacommunities.org/id/metropolitan-district-council/walsall,WC 60 - 56,30/09/2015,Childrens,ABC TEACHERS LIMITED,16/09/2015,451.98,34305-AGENCY STAFF-EMPLOYEES,Employees,Agency,Revenue
Walsall Council,http://opendatacommunities.org/id/metropolitan-district-council/walsall,WC 60 - 57,30/09/2015,Childrens,ABC TEACHERS LIMITED,29/09/2015,677.97,34305-AGENCY STAFF-EMPLOYEES,Employees,Agency,Revenue
Walsall Council,http://opendatacommunities.org/id/metropolitan-district-council/walsall,WC 60 - 58,30/09/2015,Childrens,ABC TEACHERS LIMITED,29/09/2015,692.97,34305-AGENCY STAFF-EMPLOYEES,Employees,Agency,Revenue
Walsall Council,http://opendatacommunities.org/id/metropolitan-district-council/walsall,WC 60 - 59,30/09/2015,Change and Governance,ABEL ALARM CO LTD,30/09/2015,346.00,63224-SECURITY ALARMS-NEW/REP & MAINT-PAYMENT TO CONTRACTOR,Premises,Premises-Repairs & Maintenance,Revenue
Walsall Council,http://opendatacommunities.org/id/metropolitan-district-council/walsall,WC 60 - 60,30/09/2015,Economy & Environment,ABEL ALARM CO LTD,10/09/2015,870.20,60006-NEW-FURNITURE & EQUIPMENT,Supplies & Services,"Equip,Furniture & Materials",Revenue
Walsall Council,http://opendatacommunities.org/id/metropolitan-district-council/walsall,WC 60 - 61,30/09/2015,Economy & Environment,ABEL ALARM CO LTD,10/09/2015,976.60,60006-NEW-FURNITURE & EQUIPMENT,Supplies & Services,"Equip,Furniture & Materials",Revenue
Walsall Council,http://opendatacommunities.org/id/metropolitan-district-council/walsall,WC 60 - 62,30/09/2015,Social Care & Inclusion,REDACTED,14/09/2015,"2,947.49",76422-DIRECT PAYMENTS TO SOCIAL SERVICES CLIENTS,Transfer Payments,Transfer Payments,Revenue
Walsall Council,http://opendatacommunities.org/id/metropolitan-district-council/walsall,WC 60 - 63,30/09/2015,Childrens,ABU BAKR NURSERY,04/09/2015,"2,669.94",66505-OTHER-GRANTS TO OTHER ORGS,Third Party Payments,Grants to Other Orgs,Revenue
Walsall Council,http://opendatacommunities.org/id/metropolitan-district-council/walsall,WC 60 - 64,30/09/2015,Childrens,ABU BAKR NURSERY,01/09/2015,"23,876.30",66505-OTHER-GRANTS TO OTHER ORGS,Third Party Payments,Grants to Other Orgs,Revenue
Walsall Council,http://opendatacommunities.org/id/metropolitan-district-council/walsall,WC 60 - 65,30/09/2015,Economy & Environment,AC COACHING & SPORTS DEVELOPMENT LIMITED,11/09/2015,850.00,63000-PROFESSIONAL FEES AND SERVICES,Supplies & Services,Services,Revenue
Walsall Council,http://opendatacommunities.org/id/metropolitan-district-council/walsall,WC 60 - 66,30/09/2015,Social Care & Inclusion,ACCORD HOUSING ASSOCIATION LTD#135,01/09/2015,306.54,73373-RESIDENTIAL & NURSING CARE PLACEMENTS,Third Party Payments,Private Contractor Fees,Revenue
Walsall Council,http://opendatacommunities.org/id/metropolitan-district-council/walsall,WC 60 - 67,30/09/2015,Social Care & Inclusion,ACCORD HOUSING ASSOCIATION LTD#135,01/09/2015,306.54,73373-RESIDENTIAL & NURSING CARE PLACEMENTS,Third Party Payments,Private Contractor Fees,Revenue
Walsall Council,http://opendatacommunities.org/id/metropolitan-district-council/walsall,WC 60 - 68,30/09/2015,Social Care & Inclusion,ACCORD HOUSING ASSOCIATION LTD#135,01/09/2015,306.54,73373-RESIDENTIAL & NURSING CARE PLACEMENTS,Third Party Payments,Private Contractor Fees,Revenue
Walsall Council,http://opendatacommunities.org/id/metropolitan-district-council/walsall,WC 60 - 69,30/09/2015,Social Care & Inclusion,ACCORD HOUSING ASSOCIATION LTD#135,01/09/2015,306.54,73373-RESIDENTIAL & NURSING CARE PLACEMENTS,Third Party Payments,Private Contractor Fees,Revenue
Walsall Council,http://opendatacommunities.org/id/metropolitan-district-council/walsall,WC 60 - 70,30/09/2015,Social Care & Inclusion,ACCORD HOUSING ASSOCIATION LTD#135,01/09/2015,427.83,73373-RESIDENTIAL & NURSING CARE PLACEMENTS,Third Party Payments,Private Contractor Fees,Revenue
Walsall Council,http://opendatacommunities.org/id/metropolitan-district-council/walsall,WC 60 - 71,30/09/2015,Social Care & Inclusion,ACCORD HOUSING ASSOCIATION LTD#135,01/09/2015,427.83,73373-RESIDENTIAL & NURSING CARE PLACEMENTS,Third Party Payments,Private Contractor Fees,Revenue
Walsall Council,http://opendatacommunities.org/id/metropolitan-district-council/walsall,WC 60 - 72,30/09/2015,Social Care & Inclusion,ACCORD HOUSING ASSOCIATION LTD#135,01/09/2015,427.83,73373-RESIDENTIAL & NURSING CARE PLACEMENTS,Third Party Payments,Private Contractor Fees,Revenue
Walsall Council,http://opendatacommunities.org/id/metropolitan-district-council/walsall,WC 60 - 73,30/09/2015,Social Care & Inclusion,ACCORD HOUSING ASSOCIATION LTD#135,02/09/2015,"1,133.20",73372-DOMICILIARY CARE,Third Party Payments,Private Contractor Fees,Revenue
Walsall Council,http://opendatacommunities.org/id/metropolitan-district-council/walsall,WC 60 - 74,30/09/2015,Social Care & Inclusion,ACCORD HOUSING ASSOCIATION LTD#135,01/09/2015,"4,744.90",73373-RESIDENTIAL & NURSING CARE PLACEMENTS,Third Party Payments,Private Contractor Fees,Revenue
Walsall Council,http://opendatacommunities.org/id/metropolitan-district-council/walsall,WC 60 - 75,30/09/2015,Social Care & Inclusion,ACCORD HOUSING ASSOCIATION LTD#135,01/09/2015,"4,744.90",73373-RESIDENTIAL & NURSING CARE PLACEMENTS,Third Party Payments,Private Contractor Fees,Revenue
Walsall Council,http://opendatacommunities.org/id/metropolitan-district-council/walsall,WC 60 - 76,30/09/2015,Social Care & Inclusion,ACCORD HOUSING ASSOCIATION LTD#135,01/09/2015,"4,744.90",73373-RESIDENTIAL & NURSING CARE PLACEMENTS,Third Party Payments,Private Contractor Fees,Revenue
Walsall Council,http://opendatacommunities.org/id/metropolitan-district-council/walsall,WC 60 - 77,30/09/2015,Social Care & Inclusion,ACCORD HOUSING ASSOCIATION LTD#135,01/09/2015,"4,744.90",73373-RESIDENTIAL & NURSING CARE PLACEMENTS,Third Party Payments,Private Contractor Fees,Revenue
Walsall Council,http://opendatacommunities.org/id/metropolitan-district-council/walsall,WC 60 - 78,30/09/2015,Social Care & Inclusion,ACCORD HOUSING ASSOCIATION LTD#135,15/09/2015,"4,744.90",73373-RESIDENTIAL & NURSING CARE PLACEMENTS,Third Party Payments,Private Contractor Fees,Revenue
Walsall Council,http://opendatacommunities.org/id/metropolitan-district-council/walsall,WC 60 - 79,30/09/2015,Social Care & Inclusion,ACCORD HOUSING ASSOCIATION LTD#135,15/09/2015,"4,744.90",73373-RESIDENTIAL & NURSING CARE PLACEMENTS,Third Party Payments,Private Contractor Fees,Revenue
Walsall Council,http://opendatacommunities.org/id/metropolitan-district-council/walsall,WC 60 - 80,30/09/2015,Social Care & Inclusion,ACCORD HOUSING ASSOCIATION LTD#135,15/09/2015,"4,744.90",73373-RESIDENTIAL & NURSING CARE PLACEMENTS,Third Party Payments,Private Contractor Fees,Revenue
Walsall Council,http://opendatacommunities.org/id/metropolitan-district-council/walsall,WC 60 - 81,30/09/2015,Social Care & Inclusion,ACCORD HOUSING ASSOCIATION LTD#135,15/09/2015,"4,744.90",73373-RESIDENTIAL & NURSING CARE PLACEMENTS,Third Party Payments,Private Contractor Fees,Revenue
Walsall Council,http://opendatacommunities.org/id/metropolitan-district-council/walsall,WC 60 - 82,30/09/2015,Social Care & Inclusion,ACCORD HOUSING ASSOCIATION LTD#135,01/09/2015,"6,622.35",73373-RESIDENTIAL & NURSING CARE PLACEMENTS,Third Party Payments,Private Contractor Fees,Revenue
Walsall Council,http://opendatacommunities.org/id/metropolitan-district-council/walsall,WC 60 - 83,30/09/2015,Social Care & Inclusion,ACCORD HOUSING ASSOCIATION LTD#135,01/09/2015,"6,622.35",73373-RESIDENTIAL & NURSING CARE PLACEMENTS,Third Party Payments,Private Contractor Fees,Revenue
Walsall Council,http://opendatacommunities.org/id/metropolitan-district-council/walsall,WC 60 - 84,30/09/2015,Social Care & Inclusion,ACCORD HOUSING ASSOCIATION LTD#135,01/09/2015,"6,622.35",73373-RESIDENTIAL & NURSING CARE PLACEMENTS,Third Party Payments,Private Contractor Fees,Revenue
Walsall Council,http://opendatacommunities.org/id/metropolitan-district-council/walsall,WC 60 - 85,30/09/2015,Social Care & Inclusion,ACCORD HOUSING ASSOCIATION LTD#135,15/09/2015,"6,622.35",73373-RESIDENTIAL & NURSING CARE PLACEMENTS,Third Party Payments,Private Contractor Fees,Revenue
Walsall Council,http://opendatacommunities.org/id/metropolitan-district-council/walsall,WC 60 - 86,30/09/2015,Social Care & Inclusion,ACCORD HOUSING ASSOCIATION LTD#135,15/09/2015,"6,622.35",73373-RESIDENTIAL & NURSING CARE PLACEMENTS,Third Party Payments,Private Contractor Fees,Revenue
Walsall Council,http://opendatacommunities.org/id/metropolitan-district-council/walsall,WC 60 - 87,30/09/2015,Social Care & Inclusion,ACCORD HOUSING ASSOCIATION LTD#135,15/09/2015,"6,622.35",73373-RESIDENTIAL & NURSING CARE PLACEMENTS,Third Party Payments,Private Contractor Fees,Revenue
Walsall Council,http://opendatacommunities.org/id/metropolitan-district-council/walsall,WC 60 - 88,30/09/2015,Social Care & Inclusion,ACCORD HOUSING ASSOCIATION LTD#135,16/09/2015,"12,071.37",73372-DOMICILIARY CARE,Third Party Payments,Private Contractor Fees,Revenue
Walsall Council,http://opendatacommunities.org/id/metropolitan-district-council/walsall,WC 60 - 89,30/09/2015,Social Care & Inclusion,ACCORD HOUSING ASSOCIATION LTD#135,16/09/2015,"29,855.84",73372-DOMICILIARY CARE,Third Party Payments,Private Contractor Fees,Revenue
Walsall Council,http://opendatacommunities.org/id/metropolitan-district-council/walsall,WC 60 - 90,30/09/2015,Social Care & Inclusion,ACCORD HOUSING ASSOCIATION LTD#135,21/09/2015,"38,470.75",73365-BLOCK GROSS-SUPPORTING PEOPLE,Third Party Payments,Private Contractor Fees,Revenue
Walsall Council,http://opendatacommunities.org/id/metropolitan-district-council/walsall,WC 60 - 91,30/09/2015,Social Care & Inclusion,ACE CARE AGENCY,11/09/2015,647.52,73372-DOMICILIARY CARE,Third Party Payments,Private Contractor Fees,Revenue
Walsall Council,http://opendatacommunities.org/id/metropolitan-district-council/walsall,WC 60 - 92,30/09/2015,Social Care & Inclusion,ACE CARE AGENCY,11/09/2015,"1,019.76",73372-DOMICILIARY CARE,Third Party Payments,Private Contractor Fees,Revenue
Walsall Council,http://opendatacommunities.org/id/metropolitan-district-council/walsall,WC 60 - 93,30/09/2015,Social Care & Inclusion,ACEPAY LTD (COTTAGE NUR HOME),23/09/2015,"1,693.37",73373-RESIDENTIAL & NURSING CARE PLACEMENTS,Third Party Payments,Private Contractor Fees,Revenue
Walsall Council,http://opendatacommunities.org/id/metropolitan-district-council/walsall,WC 60 - 94,30/09/2015,Social Care & Inclusion,ACEPAY LTD (COTTAGE NUR HOME),25/09/2015,"1,975.60",73373-RESIDENTIAL & NURSING CARE PLACEMENTS,Third Party Payments,Private Contractor Fees,Revenue
Walsall Council,http://opendatacommunities.org/id/metropolitan-district-council/walsall,WC 60 - 95,30/09/2015,Social Care & Inclusion,ACEPAY LTD (COTTAGE NUR HOME),25/09/2015,"1,975.60",73373-RESIDENTIAL & NURSING CARE PLACEMENTS,Third Party Payments,Private Contractor Fees,Revenue
Walsall Council,http://opendatacommunities.org/id/metropolitan-district-council/walsall,WC 60 - 96,30/09/2015,Social Care & Inclusion,ACEPAY LTD (COTTAGE NUR HOME),25/09/2015,"2,018.20",73373-RESIDENTIAL & NURSING CARE PLACEMENTS,Third Party Payments,Private Contractor Fees,Revenue
Walsall Council,http://opendatacommunities.org/id/metropolitan-district-council/walsall,WC 60 - 97,30/09/2015,Social Care & Inclusion,ACEPAY LTD (COTTAGE NUR HOME),25/09/2015,"2,018.20",73373-RESIDENTIAL & NURSING CARE PLACEMENTS,Third Party Payments,Private Contractor Fees,Revenue
Walsall Council,http://opendatacommunities.org/id/metropolitan-district-council/walsall,WC 60 - 98,30/09/2015,Social Care & Inclusion,ACEPAY LTD (COTTAGE NUR HOME),25/09/2015,"2,018.20",73373-RESIDENTIAL & NURSING CARE PLACEMENTS,Third Party Payments,Private Contractor Fees,Revenue
Walsall Council,http://opendatacommunities.org/id/metropolitan-district-council/walsall,WC 60 - 99,30/09/2015,Social Care & Inclusion,ACORN CARE LTD,23/09/2015,"1,313.94",73373-RESIDENTIAL & NURSING CARE PLACEMENTS,Third Party Payments,Private Contractor Fees,Revenue
Walsall Council,http://opendatacommunities.org/id/metropolitan-district-council/walsall,WC 60 - 100,30/09/2015,Social Care & Inclusion,ACORN CARE LTD,23/09/2015,"29,858.89",73373-RESIDENTIAL & NURSING CARE PLACEMENTS,Third Party Payments,Private Contractor Fees,Revenue
Walsall Council,http://opendatacommunities.org/id/metropolitan-district-council/walsall,WC 60 - 101,30/09/2015,Childrens,ACORN FOSTERING SERVICES LTD,10/09/2015,"3,428.83",74037-INDEPENDENT FOSTER CARE-OTH AGENCY PROVISION,Third Party Payments,Private Contractor Fees,Revenue
Walsall Council,http://opendatacommunities.org/id/metropolitan-district-council/walsall,WC 60 - 102,30/09/2015,Social Care & Inclusion,ACORN REST HOME,25/09/2015,"1,493.24",73373-RESIDENTIAL & NURSING CARE PLACEMENTS,Third Party Payments,Private Contractor Fees,Revenue
Walsall Council,http://opendatacommunities.org/id/metropolitan-district-council/walsall,WC 60 - 103,30/09/2015,Social Care & Inclusion,ACORN REST HOME,25/09/2015,"1,493.24",73373-RESIDENTIAL & NURSING CARE PLACEMENTS,Third Party Payments,Private Contractor Fees,Revenue
Walsall Council,http://opendatacommunities.org/id/metropolitan-district-council/walsall,WC 60 - 104,30/09/2015,Childrens,ACORNS CHILDRENS HOSPICE TRUST,22/09/2015,750.00,63000-PROFESSIONAL FEES AND SERVICES,Supplies & Services,Services,Revenue
Walsall Council,http://opendatacommunities.org/id/metropolitan-district-council/walsall,WC 60 - 105,30/09/2015,Economy & Environment,ACTION DIGITAL MEDIA LTD,07/09/2015,519.59,62000-EXTERNAL PRINTING SERVICES,Supplies & Services,"Printing, Stationery & Office Exp",Revenue
Walsall Council,http://opendatacommunities.org/id/metropolitan-district-council/walsall,WC 60 - 106,30/09/2015,Childrens,ACTION FOR CHILDREN,29/09/2015,"3,405.34",74037-INDEPENDENT FOSTER CARE-OTH AGENCY PROVISION,Third Party Payments,Private Contractor Fees,Revenue
Walsall Council,http://opendatacommunities.org/id/metropolitan-district-council/walsall,WC 60 - 107,30/09/2015,Economy & Environment,REDACTED,07/09/2015,420.00,01023-TECHNICAL ASSISTANTS TIME,Capital,Capital,Capital
Walsall Council,http://opendatacommunities.org/id/metropolitan-district-council/walsall,WC 60 - 108,30/09/2015,Childrens,REDACTED,14/09/2015,609.50,76422-DIRECT PAYMENTS TO SOCIAL SERVICES CLIENTS,Transfer Payments,Transfer Payments,Revenue
Walsall Council,http://opendatacommunities.org/id/metropolitan-district-council/walsall,WC 60 - 109,30/09/2015,Social Care & Inclusion,REDACTED,14/09/2015,521.85,76422-DIRECT PAYMENTS TO SOCIAL SERVICES CLIENTS,Transfer Payments,Transfer Payments,Revenue
Walsall Council,http://opendatacommunities.org/id/metropolitan-district-council/walsall,WC 60 - 110,30/09/2015,Economy & Environment,ADDENBROOKE STREET ALLOTMENTS ASSOCIATION,23/09/2015,"3,500.00",66500-GRANTS TO OTHER ORGS,Third Party Payments,Grants to Other Orgs,Revenue
Walsall Council,http://opendatacommunities.org/id/metropolitan-district-council/walsall,WC 60 - 111,30/09/2015,Social Care & Inclusion,REDACTED,14/09/2015,"1,075.00",76422-DIRECT PAYMENTS TO SOCIAL SERVICES CLIENTS,Transfer Payments,Transfer Payments,Revenue
Walsall Council,http://opendatacommunities.org/id/metropolitan-district-council/walsall,WC 60 - 112,30/09/2015,Change and Governance,ADMIRAL SELF STORAGE LTD,23/09/2015,419.32,60000-FURNITURE & EQUIPMENT,Supplies & Services,"Equip,Furniture & Materials",Revenue
Walsall Council,http://opendatacommunities.org/id/metropolitan-district-council/walsall,WC 60 - 113,30/09/2015,Childrens,REDACTED,01/09/2015,728.32,74006-HOLIDAY/CHRISTMAS ALLOWANCE-FOSTER CARERS-OTH AGENCY PROVISION,Third Party Payments,Private Contractor Fees,Revenue
Walsall Council,http://opendatacommunities.org/id/metropolitan-district-council/walsall,WC 60 - 114,30/09/2015,Childrens,REDACTED,28/09/2015,728.32,74006-HOLIDAY/CHRISTMAS ALLOWANCE-FOSTER CARERS-OTH AGENCY PROVISION,Third Party Payments,Private Contractor Fees,Revenue
Walsall Council,http://opendatacommunities.org/id/metropolitan-district-council/walsall,WC 60 - 115,30/09/2015,Social Care & Inclusion,ADVANCE HEALTH CARE (UK) LTD,18/09/2015,250.25,74000-OTHER AGENCY FEES,Third Party Payments,Private Contractor Fees,Revenue
Walsall Council,http://opendatacommunities.org/id/metropolitan-district-council/walsall,WC 60 - 116,30/09/2015,Social Care & Inclusion,ADVANCE HEALTH CARE (UK) LTD,18/09/2015,"1,417.00",74000-OTHER AGENCY FEES,Third Party Payments,Private Contractor Fees,Revenue
Walsall Council,http://opendatacommunities.org/id/metropolitan-district-council/walsall,WC 60 - 117,30/09/2015,Social Care & Inclusion,ADVANCE HEALTH CARE (UK) LTD,15/09/2015,"43,075.08",73372-DOMICILIARY CARE,Third Party Payments,Private Contractor Fees,Revenue
Walsall Council,http://opendatacommunities.org/id/metropolitan-district-council/walsall,WC 60 - 118,30/09/2015,Social Care & Inclusion,ADVANCED HEALTH AND CARE,15/09/2015,450.54,74000-OTHER AGENCY FEES,Third Party Payments,Private Contractor Fees,Revenue
Walsall Council,http://opendatacommunities.org/id/metropolitan-district-council/walsall,WC 60 - 119,30/09/2015,Social Care & Inclusion,ADVANCED HEALTH AND CARE,15/09/2015,756.00,74000-OTHER AGENCY FEES,Third Party Payments,Private Contractor Fees,Revenue
Walsall Council,http://opendatacommunities.org/id/metropolitan-district-council/walsall,WC 60 - 120,30/09/2015,Childrens,ADVENTURELAND DAY NURSERY,01/09/2015,"5,874.77",66505-OTHER-GRANTS TO OTHER ORGS,Third Party Payments,Grants to Other Orgs,Revenue
Walsall Council,http://opendatacommunities.org/id/metropolitan-district-council/walsall,WC 60 - 121,30/09/2015,Childrens,ADVENTURELAND DAY NURSERY,04/09/2015,"12,014.73",66505-OTHER-GRANTS TO OTHER ORGS,Third Party Payments,Grants to Other Orgs,Revenue
Walsall Council,http://opendatacommunities.org/id/metropolitan-district-council/walsall,WC 60 - 122,30/09/2015,Social Care & Inclusion,ADVOCACY MATTERS LIMITED,29/09/2015,"22,560.75",70000-SOCIAL SERVICES-FEES TO VOLUNTARY BODIES,Third Party Payments,Private Contractor Fees,Revenue
Walsall Council,http://opendatacommunities.org/id/metropolitan-district-council/walsall,WC 60 - 123,30/09/2015,Change and Governance,AGE UK TRAINING,29/09/2015,255.00,63000-PROFESSIONAL FEES AND SERVICES,Supplies & Services,Services,Revenue
Walsall Council,http://opendatacommunities.org/id/metropolitan-district-council/walsall,WC 60 - 124,30/09/2015,Economy & Environment,AGE UK TRAINING,23/09/2015,"1,500.00",66500-GRANTS TO OTHER ORGS,Third Party Payments,Grants to Other Orgs,Revenue
Walsall Council,http://opendatacommunities.org/id/metropolitan-district-council/walsall,WC 60 - 125,30/09/2015,Social Care & Inclusion,REDACTED,14/09/2015,"2,352.50",76422-DIRECT PAYMENTS TO SOCIAL SERVICES CLIENTS,Transfer Payments,Transfer Payments,Revenue
Walsall Council,http://opendatacommunities.org/id/metropolitan-district-council/walsall,WC 60 - 126,30/09/2015,Social Care & Inclusion,REDACTED,14/09/2015,"1,170.65",76422-DIRECT PAYMENTS TO SOCIAL SERVICES CLIENTS,Transfer Payments,Transfer Payments,Revenue
Walsall Council,http://opendatacommunities.org/id/metropolitan-district-council/walsall,WC 60 - 127,30/09/2015,Childrens,ALAN CRITCHLEY ASSOCIATES,21/09/2015,"1,200.00",63000-PROFESSIONAL FEES AND SERVICES,Supplies & Services,Services,Revenue
Walsall Council,http://opendatacommunities.org/id/metropolitan-district-council/walsall,WC 60 - 128,30/09/2015,Social Care & Inclusion,REDACTED,14/09/2015,834.75,76422-DIRECT PAYMENTS TO SOCIAL SERVICES CLIENTS,Transfer Payments,Transfer Payments,Revenue
Walsall Council,http://opendatacommunities.org/id/metropolitan-district-council/walsall,WC 60 - 129,30/09/2015,Social Care & Inclusion,ALDERGROVE MANOR CARE HOME,15/09/2015,"1,839.68",73373-RESIDENTIAL & NURSING CARE PLACEMENTS,Third Party Payments,Private Contractor Fees,Revenue
Walsall Council,http://opendatacommunities.org/id/metropolitan-district-council/walsall,WC 60 - 130,30/09/2015,Social Care & Inclusion,ALDRIDGE & BARONS LIMITED,01/09/2015,"-2,439.60",52001-HIRE OF VEHICLES,Transport,Hire,Revenue
Walsall Council,http://opendatacommunities.org/id/metropolitan-district-council/walsall,WC 60 - 131,30/09/2015,Social Care & Inclusion,ALDRIDGE & BARONS LIMITED,01/09/2015,941.60,52001-HIRE OF VEHICLES,Transport,Hire,Revenue
Walsall Council,http://opendatacommunities.org/id/metropolitan-district-council/walsall,WC 60 - 132,30/09/2015,Childrens,ALDRIDGE SCHOOL A SCIENCE COLLEGE.,07/09/2015,"12,253.77",66502-TOP UP FUNDING -GRANTS TO SCHOOLS,Third Party Payments,Grants to Other Orgs,Revenue
Walsall Council,http://opendatacommunities.org/id/metropolitan-district-council/walsall,WC 60 - 133,30/09/2015,Economy & Environment,ALERE LTD,08/09/2015,924.00,63000-PROFESSIONAL FEES AND SERVICES,Supplies & Services,Services,Revenue
Walsall Council,http://opendatacommunities.org/id/metropolitan-district-council/walsall,WC 60 - 134,30/09/2015,Childrens,ALERE TOXICOLOGY PLC,16/09/2015,294.50,76001-SECTION 1/17CHILD CARE ACT 1989-ASSISTANCE TO S/S CLIENTS,Transfer Payments,Transfer Payments,Revenue
Walsall Council,http://opendatacommunities.org/id/metropolitan-district-council/walsall,WC 60 - 135,30/09/2015,Childrens,ALERE TOXICOLOGY PLC,16/09/2015,294.50,76001-SECTION 1/17CHILD CARE ACT 1989-ASSISTANCE TO S/S CLIENTS,Transfer Payments,Transfer Payments,Revenue
Walsall Council,http://opendatacommunities.org/id/metropolitan-district-council/walsall,WC 60 - 136,30/09/2015,Social Care & Inclusion,REDACTED,14/09/2015,"1,505.00",76422-DIRECT PAYMENTS TO SOCIAL SERVICES CLIENTS,Transfer Payments,Transfer Payments,Revenue
Walsall Council,http://opendatacommunities.org/id/metropolitan-district-council/walsall,WC 60 - 137,30/09/2015,Economy & Environment,REDACTED,24/09/2015,320.48,63239-EXTERNAL WORKS-PAYMENT TO CONTRACTOR,Third Party Payments,Private Contractor Fees,Revenue
Walsall Council,http://opendatacommunities.org/id/metropolitan-district-council/walsall,WC 60 - 138,30/09/2015,Social Care & Inclusion,ALEXANDRA HOUSE CARE SERVICES LTD T/A STONEBRIDGE NURSING HOME,09/09/2015,508.95,73373-RESIDENTIAL & NURSING CARE PLACEMENTS,Third Party Payments,Private Contractor Fees,Revenue
Walsall Council,http://opendatacommunities.org/id/metropolitan-district-council/walsall,WC 60 - 139,30/09/2015,Social Care & Inclusion,ALEXANDRA HOUSE CARE SERVICES LTD T/A STONEBRIDGE NURSING HOME,09/09/2015,"7,117.44",73373-RESIDENTIAL & NURSING CARE PLACEMENTS,Third Party Payments,Private Contractor Fees,Revenue
Walsall Council,http://opendatacommunities.org/id/metropolitan-district-council/walsall,WC 60 - 140,30/09/2015,Social Care & Inclusion,ALEXANDRA HOUSE CARE SERVICES LTD T/A STONEBRIDGE NURSING HOME,09/09/2015,"7,117.44",73373-RESIDENTIAL & NURSING CARE PLACEMENTS,Third Party Payments,Private Contractor Fees,Revenue
Walsall Council,http://opendatacommunities.org/id/metropolitan-district-council/walsall,WC 60 - 141,30/09/2015,Social Care & Inclusion,ALEXANDRA HOUSE CARE SERVICES LTD T/A STONEBRIDGE NURSING HOME,09/09/2015,"7,117.44",73373-RESIDENTIAL & NURSING CARE PLACEMENTS,Third Party Payments,Private Contractor Fees,Revenue
Walsall Council,http://opendatacommunities.org/id/metropolitan-district-council/walsall,WC 60 - 142,30/09/2015,Childrens,REDACTED,14/09/2015,728.33,76422-DIRECT PAYMENTS TO SOCIAL SERVICES CLIENTS,Transfer Payments,Transfer Payments,Revenue
Walsall Council,http://opendatacommunities.org/id/metropolitan-district-council/walsall,WC 60 - 143,30/09/2015,Economy & Environment,ALFRED STREET ALLOTMENT ASSOCIATION,23/09/2015,580.00,66500-GRANTS TO OTHER ORGS,Third Party Payments,Grants to Other Orgs,Revenue
Walsall Council,http://opendatacommunities.org/id/metropolitan-district-council/walsall,WC 60 - 144,30/09/2015,Social Care & Inclusion,REDACTED,14/09/2015,"1,067.50",76422-DIRECT PAYMENTS TO SOCIAL SERVICES CLIENTS,Transfer Payments,Transfer Payments,Revenue
Walsall Council,http://opendatacommunities.org/id/metropolitan-district-council/walsall,WC 60 - 145,30/09/2015,Social Care & Inclusion,REDACTED,14/09/2015,411.00,76422-DIRECT PAYMENTS TO SOCIAL SERVICES CLIENTS,Transfer Payments,Transfer Payments,Revenue
Walsall Council,http://opendatacommunities.org/id/metropolitan-district-council/walsall,WC 60 - 146,30/09/2015,Childrens,REDACTED,14/09/2015,985.76,74006-HOLIDAY/CHRISTMAS ALLOWANCE-FOSTER CARERS-OTH AGENCY PROVISION,Third Party Payments,Private Contractor Fees,Revenue
Walsall Council,http://opendatacommunities.org/id/metropolitan-district-council/walsall,WC 60 - 147,30/09/2015,Childrens,REDACTED,14/09/2015,"1,445.32",62515-MISCELLANEOUS SUPPLIES,Supplies & Services,Other Supplies & Services,Revenue
Walsall Council,http://opendatacommunities.org/id/metropolitan-district-council/walsall,WC 60 - 148,30/09/2015,Childrens,REDACTED,04/09/2015,667.49,66505-OTHER-GRANTS TO OTHER ORGS,Third Party Payments,Grants to Other Orgs,Revenue
Walsall Council,http://opendatacommunities.org/id/metropolitan-district-council/walsall,WC 60 - 149,30/09/2015,Childrens,REDACTED,01/09/2015,552.96,74006-HOLIDAY/CHRISTMAS ALLOWANCE-FOSTER CARERS-OTH AGENCY PROVISION,Third Party Payments,Private Contractor Fees,Revenue
Walsall Council,http://opendatacommunities.org/id/metropolitan-district-council/walsall,WC 60 - 150,30/09/2015,Childrens,REDACTED,28/09/2015,552.96,74006-HOLIDAY/CHRISTMAS ALLOWANCE-FOSTER CARERS-OTH AGENCY PROVISION,Third Party Payments,Private Contractor Fees,Revenue
Walsall Council,http://opendatacommunities.org/id/metropolitan-district-council/walsall,WC 60 - 151,30/09/2015,Social Care & Inclusion,ALMA COURT,15/09/2015,"6,113.10",73373-RESIDENTIAL & NURSING CARE PLACEMENTS,Third Party Payments,Private Contractor Fees,Revenue
Walsall Council,http://opendatacommunities.org/id/metropolitan-district-council/walsall,WC 60 - 152,30/09/2015,Social Care & Inclusion,ALMA COURT,01/09/2015,"6,316.87",73373-RESIDENTIAL & NURSING CARE PLACEMENTS,Third Party Payments,Private Contractor Fees,Revenue
Walsall Council,http://opendatacommunities.org/id/metropolitan-district-council/walsall,WC 60 - 153,30/09/2015,Social Care & Inclusion,ALMA COURT,15/09/2015,"6,316.87",73373-RESIDENTIAL & NURSING CARE PLACEMENTS,Third Party Payments,Private Contractor Fees,Revenue
Walsall Council,http://opendatacommunities.org/id/metropolitan-district-council/walsall,WC 60 - 154,30/09/2015,Childrens,ALMOZENE NURSERY & CHILDRENS CENTRE,07/09/2015,"2,694.08",66502-TOP UP FUNDING -GRANTS TO SCHOOLS,Third Party Payments,Grants to Other Orgs,Revenue
Walsall Council,http://opendatacommunities.org/id/metropolitan-district-council/walsall,WC 60 - 155,30/09/2015,Childrens,ALMOZENE NURSERY & CHILDRENS CENTRE,04/09/2015,"3,337.43",66505-OTHER-GRANTS TO OTHER ORGS,Third Party Payments,Grants to Other Orgs,Revenue
Walsall Council,http://opendatacommunities.org/id/metropolitan-district-council/walsall,WC 60 - 156,30/09/2015,Childrens,ALMOZENE NURSERY & CHILDRENS CENTRE,01/09/2015,"6,038.11",66505-OTHER-GRANTS TO OTHER ORGS,Third Party Payments,Grants to Other Orgs,Revenue
Walsall Council,http://opendatacommunities.org/id/metropolitan-district-council/walsall,WC 60 - 157,30/09/2015,Childrens,ALPHA HAIR DESIGN ACADEMY,25/09/2015,"2,206.00",66502-TOP UP FUNDING -GRANTS TO SCHOOLS,Third Party Payments,Grants to Other Orgs,Revenue
Walsall Council,http://opendatacommunities.org/id/metropolitan-district-council/walsall,WC 60 - 158,30/09/2015,Childrens,ALPHA HAIR DESIGN ACADEMY,25/09/2015,"2,206.00",66502-TOP UP FUNDING -GRANTS TO SCHOOLS,Third Party Payments,Grants to Other Orgs,Revenue
Walsall Council,http://opendatacommunities.org/id/metropolitan-district-council/walsall,WC 60 - 159,30/09/2015,Social Care & Inclusion,ALPHA HEALTH CARE LTD,23/09/2015,-320.14,73373-RESIDENTIAL & NURSING CARE PLACEMENTS,Third Party Payments,Private Contractor Fees,Revenue
Walsall Council,http://opendatacommunities.org/id/metropolitan-district-council/walsall,WC 60 - 160,30/09/2015,Social Care & Inclusion,ALPHA HEALTH CARE LTD,09/09/2015,423.34,73373-RESIDENTIAL & NURSING CARE PLACEMENTS,Third Party Payments,Private Contractor Fees,Revenue
Walsall Council,http://opendatacommunities.org/id/metropolitan-district-council/walsall,WC 60 - 161,30/09/2015,Social Care & Inclusion,ALPHA HEALTH CARE LTD,25/09/2015,493.90,73373-RESIDENTIAL & NURSING CARE PLACEMENTS,Third Party Payments,Private Contractor Fees,Revenue
Walsall Council,http://opendatacommunities.org/id/metropolitan-district-council/walsall,WC 60 - 162,30/09/2015,Social Care & Inclusion,ALPHA HEALTH CARE LTD,25/09/2015,493.90,73373-RESIDENTIAL & NURSING CARE PLACEMENTS,Third Party Payments,Private Contractor Fees,Revenue
Walsall Council,http://opendatacommunities.org/id/metropolitan-district-council/walsall,WC 60 - 163,30/09/2015,Social Care & Inclusion,ALPHA HEALTH CARE LTD,23/09/2015,533.16,73373-RESIDENTIAL & NURSING CARE PLACEMENTS,Third Party Payments,Private Contractor Fees,Revenue
Walsall Council,http://opendatacommunities.org/id/metropolitan-district-council/walsall,WC 60 - 164,30/09/2015,Social Care & Inclusion,ALPHA HEALTH CARE LTD,15/09/2015,533.30,73373-RESIDENTIAL & NURSING CARE PLACEMENTS,Third Party Payments,Private Contractor Fees,Revenue
Walsall Council,http://opendatacommunities.org/id/metropolitan-district-council/walsall,WC 60 - 165,30/09/2015,Social Care & Inclusion,ALPHA HEALTH CARE LTD,23/09/2015,582.86,73373-RESIDENTIAL & NURSING CARE PLACEMENTS,Third Party Payments,Private Contractor Fees,Revenue
Walsall Council,http://opendatacommunities.org/id/metropolitan-district-council/walsall,WC 60 - 166,30/09/2015,Social Care & Inclusion,ALPHA HEALTH CARE LTD,25/09/2015,"1,058.36",73373-RESIDENTIAL & NURSING CARE PLACEMENTS,Third Party Payments,Private Contractor Fees,Revenue
Walsall Council,http://opendatacommunities.org/id/metropolitan-district-council/walsall,WC 60 - 167,30/09/2015,Social Care & Inclusion,ALPHA HEALTH CARE LTD,15/09/2015,"1,406.56",73373-RESIDENTIAL & NURSING CARE PLACEMENTS,Third Party Payments,Private Contractor Fees,Revenue
Walsall Council,http://opendatacommunities.org/id/metropolitan-district-council/walsall,WC 60 - 168,30/09/2015,Social Care & Inclusion,ALPHA HEALTH CARE LTD,25/09/2015,"1,406.56",73373-RESIDENTIAL & NURSING CARE PLACEMENTS,Third Party Payments,Private Contractor Fees,Revenue
Walsall Council,http://opendatacommunities.org/id/metropolitan-district-council/walsall,WC 60 - 169,30/09/2015,Social Care & Inclusion,ALPHA HEALTH CARE LTD,15/09/2015,"1,413.08",73373-RESIDENTIAL & NURSING CARE PLACEMENTS,Third Party Payments,Private Contractor Fees,Revenue
Walsall Council,http://opendatacommunities.org/id/metropolitan-district-council/walsall,WC 60 - 170,30/09/2015,Social Care & Inclusion,ALPHA HEALTH CARE LTD,25/09/2015,"1,413.08",73373-RESIDENTIAL & NURSING CARE PLACEMENTS,Third Party Payments,Private Contractor Fees,Revenue
Walsall Council,http://opendatacommunities.org/id/metropolitan-district-council/walsall,WC 60 - 171,30/09/2015,Social Care & Inclusion,ALPHA HEALTH CARE LTD,15/09/2015,"1,493.24",73373-RESIDENTIAL & NURSING CARE PLACEMENTS,Third Party Payments,Private Contractor Fees,Revenue
Walsall Council,http://opendatacommunities.org/id/metropolitan-district-council/walsall,WC 60 - 172,30/09/2015,Social Care & Inclusion,ALPHA HEALTH CARE LTD,25/09/2015,"1,493.24",73373-RESIDENTIAL & NURSING CARE PLACEMENTS,Third Party Payments,Private Contractor Fees,Revenue
Walsall Council,http://opendatacommunities.org/id/metropolitan-district-council/walsall,WC 60 - 173,30/09/2015,Social Care & Inclusion,ALPHA HEALTH CARE LTD,23/09/2015,"1,494.00",73373-RESIDENTIAL & NURSING CARE PLACEMENTS,Third Party Payments,Private Contractor Fees,Revenue
Walsall Council,http://opendatacommunities.org/id/metropolitan-district-council/walsall,WC 60 - 174,30/09/2015,Social Care & Inclusion,ALPHA HEALTH CARE LTD,25/09/2015,"1,494.00",73373-RESIDENTIAL & NURSING CARE PLACEMENTS,Third Party Payments,Private Contractor Fees,Revenue
Walsall Council,http://opendatacommunities.org/id/metropolitan-district-council/walsall,WC 60 - 175,30/09/2015,Social Care & Inclusion,ALPHA HEALTH CARE LTD,25/09/2015,"1,494.00",73373-RESIDENTIAL & NURSING CARE PLACEMENTS,Third Party Payments,Private Contractor Fees,Revenue
Walsall Council,http://opendatacommunities.org/id/metropolitan-district-council/walsall,WC 60 - 176,30/09/2015,Social Care & Inclusion,ALPHA HEALTH CARE LTD,15/09/2015,"1,510.08",73373-RESIDENTIAL & NURSING CARE PLACEMENTS,Third Party Payments,Private Contractor Fees,Revenue
Walsall Council,http://opendatacommunities.org/id/metropolitan-district-council/walsall,WC 60 - 177,30/09/2015,Social Care & Inclusion,ALPHA HEALTH CARE LTD,15/09/2015,"1,510.08",73373-RESIDENTIAL & NURSING CARE PLACEMENTS,Third Party Payments,Private Contractor Fees,Revenue
Walsall Council,http://opendatacommunities.org/id/metropolitan-district-council/walsall,WC 60 - 178,30/09/2015,Social Care & Inclusion,ALPHA HEALTH CARE LTD,15/09/2015,"1,510.08",73373-RESIDENTIAL & NURSING CARE PLACEMENTS,Third Party Payments,Private Contractor Fees,Revenue
Walsall Council,http://opendatacommunities.org/id/metropolitan-district-council/walsall,WC 60 - 179,30/09/2015,Social Care & Inclusion,ALPHA HEALTH CARE LTD,15/09/2015,"1,510.08",73373-RESIDENTIAL & NURSING CARE PLACEMENTS,Third Party Payments,Private Contractor Fees,Revenue
Walsall Council,http://opendatacommunities.org/id/metropolitan-district-council/walsall,WC 60 - 180,30/09/2015,Social Care & Inclusion,ALPHA HEALTH CARE LTD,25/09/2015,"1,510.08",73373-RESIDENTIAL & NURSING CARE PLACEMENTS,Third Party Payments,Private Contractor Fees,Revenue
Walsall Council,http://opendatacommunities.org/id/metropolitan-district-council/walsall,WC 60 - 181,30/09/2015,Social Care & Inclusion,ALPHA HEALTH CARE LTD,25/09/2015,"1,510.08",73373-RESIDENTIAL & NURSING CARE PLACEMENTS,Third Party Payments,Private Contractor Fees,Revenue
Walsall Council,http://opendatacommunities.org/id/metropolitan-district-council/walsall,WC 60 - 182,30/09/2015,Social Care & Inclusion,ALPHA HEALTH CARE LTD,15/09/2015,"1,527.60",73373-RESIDENTIAL & NURSING CARE PLACEMENTS,Third Party Payments,Private Contractor Fees,Revenue
Walsall Council,http://opendatacommunities.org/id/metropolitan-district-council/walsall,WC 60 - 183,30/09/2015,Social Care & Inclusion,ALPHA HEALTH CARE LTD,15/09/2015,"1,527.60",73373-RESIDENTIAL & NURSING CARE PLACEMENTS,Third Party Payments,Private Contractor Fees,Revenue
Walsall Council,http://opendatacommunities.org/id/metropolitan-district-council/walsall,WC 60 - 184,30/09/2015,Social Care & Inclusion,ALPHA HEALTH CARE LTD,15/09/2015,"1,527.60",73373-RESIDENTIAL & NURSING CARE PLACEMENTS,Third Party Payments,Private Contractor Fees,Revenue
Walsall Council,http://opendatacommunities.org/id/metropolitan-district-council/walsall,WC 60 - 185,30/09/2015,Social Care & Inclusion,ALPHA HEALTH CARE LTD,15/09/2015,"1,527.60",73373-RESIDENTIAL & NURSING CARE PLACEMENTS,Third Party Payments,Private Contractor Fees,Revenue
Walsall Council,http://opendatacommunities.org/id/metropolitan-district-council/walsall,WC 60 - 186,30/09/2015,Social Care & Inclusion,ALPHA HEALTH CARE LTD,15/09/2015,"1,527.60",73373-RESIDENTIAL & NURSING CARE PLACEMENTS,Third Party Payments,Private Contractor Fees,Revenue
Walsall Council,http://opendatacommunities.org/id/metropolitan-district-council/walsall,WC 60 - 187,30/09/2015,Social Care & Inclusion,ALPHA HEALTH CARE LTD,15/09/2015,"1,527.60",73373-RESIDENTIAL & NURSING CARE PLACEMENTS,Third Party Payments,Private Contractor Fees,Revenue
Walsall Council,http://opendatacommunities.org/id/metropolitan-district-council/walsall,WC 60 - 188,30/09/2015,Social Care & Inclusion,ALPHA HEALTH CARE LTD,15/09/2015,"1,527.60",73373-RESIDENTIAL & NURSING CARE PLACEMENTS,Third Party Payments,Private Contractor Fees,Revenue
Walsall Council,http://opendatacommunities.org/id/metropolitan-district-council/walsall,WC 60 - 189,30/09/2015,Social Care & Inclusion,ALPHA HEALTH CARE LTD,15/09/2015,"1,527.60",73373-RESIDENTIAL & NURSING CARE PLACEMENTS,Third Party Payments,Private Contractor Fees,Revenue
Walsall Council,http://opendatacommunities.org/id/metropolitan-district-council/walsall,WC 60 - 190,30/09/2015,Social Care & Inclusion,ALPHA HEALTH CARE LTD,15/09/2015,"1,527.60",73373-RESIDENTIAL & NURSING CARE PLACEMENTS,Third Party Payments,Private Contractor Fees,Revenue
Walsall Council,http://opendatacommunities.org/id/metropolitan-district-council/walsall,WC 60 - 191,30/09/2015,Social Care & Inclusion,ALPHA HEALTH CARE LTD,15/09/2015,"1,527.60",73373-RESIDENTIAL & NURSING CARE PLACEMENTS,Third Party Payments,Private Contractor Fees,Revenue
Walsall Council,http://opendatacommunities.org/id/metropolitan-district-council/walsall,WC 60 - 192,30/09/2015,Social Care & Inclusion,ALPHA HEALTH CARE LTD,15/09/2015,"1,527.60",73373-RESIDENTIAL & NURSING CARE PLACEMENTS,Third Party Payments,Private Contractor Fees,Revenue
Walsall Council,http://opendatacommunities.org/id/metropolitan-district-council/walsall,WC 60 - 193,30/09/2015,Social Care & Inclusion,ALPHA HEALTH CARE LTD,25/09/2015,"1,527.60",73373-RESIDENTIAL & NURSING CARE PLACEMENTS,Third Party Payments,Private Contractor Fees,Revenue
Walsall Council,http://opendatacommunities.org/id/metropolitan-district-council/walsall,WC 60 - 194,30/09/2015,Social Care & Inclusion,ALPHA HEALTH CARE LTD,25/09/2015,"1,527.60",73373-RESIDENTIAL & NURSING CARE PLACEMENTS,Third Party Payments,Private Contractor Fees,Revenue
Walsall Council,http://opendatacommunities.org/id/metropolitan-district-council/walsall,WC 60 - 195,30/09/2015,Social Care & Inclusion,ALPHA HEALTH CARE LTD,25/09/2015,"1,527.60",73373-RESIDENTIAL & NURSING CARE PLACEMENTS,Third Party Payments,Private Contractor Fees,Revenue
Walsall Council,http://opendatacommunities.org/id/metropolitan-district-council/walsall,WC 60 - 196,30/09/2015,Social Care & Inclusion,ALPHA HEALTH CARE LTD,25/09/2015,"1,527.60",73373-RESIDENTIAL & NURSING CARE PLACEMENTS,Third Party Payments,Private Contractor Fees,Revenue
Walsall Council,http://opendatacommunities.org/id/metropolitan-district-council/walsall,WC 60 - 197,30/09/2015,Social Care & Inclusion,ALPHA HEALTH CARE LTD,25/09/2015,"1,527.60",73373-RESIDENTIAL & NURSING CARE PLACEMENTS,Third Party Payments,Private Contractor Fees,Revenue
Walsall Council,http://opendatacommunities.org/id/metropolitan-district-council/walsall,WC 60 - 198,30/09/2015,Social Care & Inclusion,ALPHA HEALTH CARE LTD,25/09/2015,"1,527.60",73373-RESIDENTIAL & NURSING CARE PLACEMENTS,Third Party Payments,Private Contractor Fees,Revenue
Walsall Council,http://opendatacommunities.org/id/metropolitan-district-council/walsall,WC 60 - 199,30/09/2015,Social Care & Inclusion,ALPHA HEALTH CARE LTD,25/09/2015,"1,527.60",73373-RESIDENTIAL & NURSING CARE PLACEMENTS,Third Party Payments,Private Contractor Fees,Revenue
Walsall Council,http://opendatacommunities.org/id/metropolitan-district-council/walsall,WC 60 - 200,30/09/2015,Social Care & Inclusion,ALPHA HEALTH CARE LTD,25/09/2015,"1,527.60",73373-RESIDENTIAL & NURSING CARE PLACEMENTS,Third Party Payments,Private Contractor Fees,Revenue
Walsall Council,http://opendatacommunities.org/id/metropolitan-district-council/walsall,WC 60 - 201,30/09/2015,Social Care & Inclusion,ALPHA HEALTH CARE LTD,25/09/2015,"1,527.60",73373-RESIDENTIAL & NURSING CARE PLACEMENTS,Third Party Payments,Private Contractor Fees,Revenue
Walsall Council,http://opendatacommunities.org/id/metropolitan-district-council/walsall,WC 60 - 202,30/09/2015,Social Care & Inclusion,ALPHA HEALTH CARE LTD,25/09/2015,"1,527.60",73373-RESIDENTIAL & NURSING CARE PLACEMENTS,Third Party Payments,Private Contractor Fees,Revenue
Walsall Council,http://opendatacommunities.org/id/metropolitan-district-council/walsall,WC 60 - 203,30/09/2015,Social Care & Inclusion,ALPHA HEALTH CARE LTD,25/09/2015,"1,527.60",73373-RESIDENTIAL & NURSING CARE PLACEMENTS,Third Party Payments,Private Contractor Fees,Revenue
Walsall Council,http://opendatacommunities.org/id/metropolitan-district-council/walsall,WC 60 - 204,30/09/2015,Social Care & Inclusion,ALPHA HEALTH CARE LTD,15/09/2015,"1,527.64",73373-RESIDENTIAL & NURSING CARE PLACEMENTS,Third Party Payments,Private Contractor Fees,Revenue
Walsall Council,http://opendatacommunities.org/id/metropolitan-district-council/walsall,WC 60 - 205,30/09/2015,Social Care & Inclusion,ALPHA HEALTH CARE LTD,25/09/2015,"1,527.64",73373-RESIDENTIAL & NURSING CARE PLACEMENTS,Third Party Payments,Private Contractor Fees,Revenue
Walsall Council,http://opendatacommunities.org/id/metropolitan-district-council/walsall,WC 60 - 206,30/09/2015,Social Care & Inclusion,ALPHA HEALTH CARE LTD,15/09/2015,"1,568.64",73373-RESIDENTIAL & NURSING CARE PLACEMENTS,Third Party Payments,Private Contractor Fees,Revenue
Walsall Council,http://opendatacommunities.org/id/metropolitan-district-council/walsall,WC 60 - 207,30/09/2015,Social Care & Inclusion,ALPHA HEALTH CARE LTD,15/09/2015,"1,568.64",73373-RESIDENTIAL & NURSING CARE PLACEMENTS,Third Party Payments,Private Contractor Fees,Revenue
Walsall Council,http://opendatacommunities.org/id/metropolitan-district-council/walsall,WC 60 - 208,30/09/2015,Social Care & Inclusion,ALPHA HEALTH CARE LTD,15/09/2015,"1,568.64",73373-RESIDENTIAL & NURSING CARE PLACEMENTS,Third Party Payments,Private Contractor Fees,Revenue
Walsall Council,http://opendatacommunities.org/id/metropolitan-district-council/walsall,WC 60 - 209,30/09/2015,Social Care & Inclusion,ALPHA HEALTH CARE LTD,15/09/2015,"1,568.64",73373-RESIDENTIAL & NURSING CARE PLACEMENTS,Third Party Payments,Private Contractor Fees,Revenue
Walsall Council,http://opendatacommunities.org/id/metropolitan-district-council/walsall,WC 60 - 210,30/09/2015,Social Care & Inclusion,ALPHA HEALTH CARE LTD,25/09/2015,"1,568.64",73373-RESIDENTIAL & NURSING CARE PLACEMENTS,Third Party Payments,Private Contractor Fees,Revenue
Walsall Council,http://opendatacommunities.org/id/metropolitan-district-council/walsall,WC 60 - 211,30/09/2015,Social Care & Inclusion,ALPHA HEALTH CARE LTD,25/09/2015,"1,568.64",73373-RESIDENTIAL & NURSING CARE PLACEMENTS,Third Party Payments,Private Contractor Fees,Revenue
Walsall Council,http://opendatacommunities.org/id/metropolitan-district-council/walsall,WC 60 - 212,30/09/2015,Social Care & Inclusion,ALPHA HEALTH CARE LTD,25/09/2015,"1,568.64",73373-RESIDENTIAL & NURSING CARE PLACEMENTS,Third Party Payments,Private Contractor Fees,Revenue
Walsall Council,http://opendatacommunities.org/id/metropolitan-district-council/walsall,WC 60 - 213,30/09/2015,Social Care & Inclusion,ALPHA HEALTH CARE LTD,25/09/2015,"1,568.64",73373-RESIDENTIAL & NURSING CARE PLACEMENTS,Third Party Payments,Private Contractor Fees,Revenue
Walsall Council,http://opendatacommunities.org/id/metropolitan-district-council/walsall,WC 60 - 214,30/09/2015,Social Care & Inclusion,ALPHA HEALTH CARE LTD,15/09/2015,"1,568.80",73373-RESIDENTIAL & NURSING CARE PLACEMENTS,Third Party Payments,Private Contractor Fees,Revenue
Walsall Council,http://opendatacommunities.org/id/metropolitan-district-council/walsall,WC 60 - 215,30/09/2015,Social Care & Inclusion,ALPHA HEALTH CARE LTD,25/09/2015,"1,568.80",73373-RESIDENTIAL & NURSING CARE PLACEMENTS,Third Party Payments,Private Contractor Fees,Revenue
Walsall Council,http://opendatacommunities.org/id/metropolitan-district-council/walsall,WC 60 - 216,30/09/2015,Social Care & Inclusion,ALPHA HEALTH CARE LTD,15/09/2015,"1,630.60",73373-RESIDENTIAL & NURSING CARE PLACEMENTS,Third Party Payments,Private Contractor Fees,Revenue
Walsall Council,http://opendatacommunities.org/id/metropolitan-district-council/walsall,WC 60 - 217,30/09/2015,Social Care & Inclusion,ALPHA HEALTH CARE LTD,25/09/2015,"1,630.60",73373-RESIDENTIAL & NURSING CARE PLACEMENTS,Third Party Payments,Private Contractor Fees,Revenue
Walsall Council,http://opendatacommunities.org/id/metropolitan-district-council/walsall,WC 60 - 218,30/09/2015,Social Care & Inclusion,ALPHA HEALTH CARE LTD,09/09/2015,"1,975.60",73373-RESIDENTIAL & NURSING CARE PLACEMENTS,Third Party Payments,Private Contractor Fees,Revenue
Walsall Council,http://opendatacommunities.org/id/metropolitan-district-council/walsall,WC 60 - 219,30/09/2015,Social Care & Inclusion,ALPHA HEALTH CARE LTD,15/09/2015,"1,975.60",73373-RESIDENTIAL & NURSING CARE PLACEMENTS,Third Party Payments,Private Contractor Fees,Revenue
Walsall Council,http://opendatacommunities.org/id/metropolitan-district-council/walsall,WC 60 - 220,30/09/2015,Social Care & Inclusion,ALPHA HEALTH CARE LTD,25/09/2015,"1,975.60",73373-RESIDENTIAL & NURSING CARE PLACEMENTS,Third Party Payments,Private Contractor Fees,Revenue
Walsall Council,http://opendatacommunities.org/id/metropolitan-district-council/walsall,WC 60 - 221,30/09/2015,Social Care & Inclusion,ALPHA HEALTH CARE LTD,25/09/2015,"1,975.60",73373-RESIDENTIAL & NURSING CARE PLACEMENTS,Third Party Payments,Private Contractor Fees,Revenue
Walsall Council,http://opendatacommunities.org/id/metropolitan-district-council/walsall,WC 60 - 222,30/09/2015,Social Care & Inclusion,ALPHA HEALTH CARE LTD,25/09/2015,"1,975.60",73373-RESIDENTIAL & NURSING CARE PLACEMENTS,Third Party Payments,Private Contractor Fees,Revenue
Walsall Council,http://opendatacommunities.org/id/metropolitan-district-council/walsall,WC 60 - 223,30/09/2015,Social Care & Inclusion,ALPHA HEALTH CARE LTD,15/09/2015,"2,057.88",73373-RESIDENTIAL & NURSING CARE PLACEMENTS,Third Party Payments,Private Contractor Fees,Revenue
Walsall Council,http://opendatacommunities.org/id/metropolitan-district-council/walsall,WC 60 - 224,30/09/2015,Social Care & Inclusion,ALPHA HEALTH CARE LTD,25/09/2015,"2,057.88",73373-RESIDENTIAL & NURSING CARE PLACEMENTS,Third Party Payments,Private Contractor Fees,Revenue
Walsall Council,http://opendatacommunities.org/id/metropolitan-district-council/walsall,WC 60 - 225,30/09/2015,Social Care & Inclusion,ALPHA HEALTH CARE LTD,15/09/2015,"2,161.40",73373-RESIDENTIAL & NURSING CARE PLACEMENTS,Third Party Payments,Private Contractor Fees,Revenue
Walsall Council,http://opendatacommunities.org/id/metropolitan-district-council/walsall,WC 60 - 226,30/09/2015,Social Care & Inclusion,ALPHA HEALTH CARE LTD,25/09/2015,"2,161.40",73373-RESIDENTIAL & NURSING CARE PLACEMENTS,Third Party Payments,Private Contractor Fees,Revenue
Walsall Council,http://opendatacommunities.org/id/metropolitan-district-council/walsall,WC 60 - 227,30/09/2015,Social Care & Inclusion,ALPHA HEALTH CARE LTD,25/09/2015,"2,398.94",73373-RESIDENTIAL & NURSING CARE PLACEMENTS,Third Party Payments,Private Contractor Fees,Revenue
Walsall Council,http://opendatacommunities.org/id/metropolitan-district-council/walsall,WC 60 - 228,30/09/2015,Social Care & Inclusion,ALPHA HEALTH CARE LTD,25/09/2015,"2,521.44",73373-RESIDENTIAL & NURSING CARE PLACEMENTS,Third Party Payments,Private Contractor Fees,Revenue
Walsall Council,http://opendatacommunities.org/id/metropolitan-district-council/walsall,WC 60 - 229,30/09/2015,Social Care & Inclusion,ALPHA HEALTH CARE LTD,15/09/2015,"2,914.29",73373-RESIDENTIAL & NURSING CARE PLACEMENTS,Third Party Payments,Private Contractor Fees,Revenue
Walsall Council,http://opendatacommunities.org/id/metropolitan-district-council/walsall,WC 60 - 230,30/09/2015,Social Care & Inclusion,ALPHA HEALTH CARE LTD,23/09/2015,"2,914.29",73373-RESIDENTIAL & NURSING CARE PLACEMENTS,Third Party Payments,Private Contractor Fees,Revenue
Walsall Council,http://opendatacommunities.org/id/metropolitan-district-council/walsall,WC 60 - 231,30/09/2015,Social Care & Inclusion,ALPHA HEALTH CARE LTD,15/09/2015,"3,011.43",73373-RESIDENTIAL & NURSING CARE PLACEMENTS,Third Party Payments,Private Contractor Fees,Revenue
Walsall Council,http://opendatacommunities.org/id/metropolitan-district-council/walsall,WC 60 - 232,30/09/2015,Social Care & Inclusion,ALPHA HEALTH CARE LTD,15/09/2015,"3,011.43",73373-RESIDENTIAL & NURSING CARE PLACEMENTS,Third Party Payments,Private Contractor Fees,Revenue
Walsall Council,http://opendatacommunities.org/id/metropolitan-district-council/walsall,WC 60 - 233,30/09/2015,Social Care & Inclusion,ALPHA HEALTH CARE LTD,15/09/2015,"5,413.72",73373-RESIDENTIAL & NURSING CARE PLACEMENTS,Third Party Payments,Private Contractor Fees,Revenue
Walsall Council,http://opendatacommunities.org/id/metropolitan-district-council/walsall,WC 60 - 234,30/09/2015,Social Care & Inclusion,ALPHA HEALTH CARE LTD,25/09/2015,"5,413.72",73373-RESIDENTIAL & NURSING CARE PLACEMENTS,Third Party Payments,Private Contractor Fees,Revenue
Walsall Council,http://opendatacommunities.org/id/metropolitan-district-council/walsall,WC 60 - 235,30/09/2015,Social Care & Inclusion,ALPHA HEALTH CARE LTD,15/09/2015,"5,553.32",73373-RESIDENTIAL & NURSING CARE PLACEMENTS,Third Party Payments,Private Contractor Fees,Revenue
Walsall Council,http://opendatacommunities.org/id/metropolitan-district-council/walsall,WC 60 - 236,30/09/2015,Social Care & Inclusion,ALPHA HEALTH CARE LTD,25/09/2015,"5,553.32",73373-RESIDENTIAL & NURSING CARE PLACEMENTS,Third Party Payments,Private Contractor Fees,Revenue
Walsall Council,http://opendatacommunities.org/id/metropolitan-district-council/walsall,WC 60 - 237,30/09/2015,Social Care & Inclusion,ALPHA HEALTH CARE LTD,25/09/2015,"7,654.37",73373-RESIDENTIAL & NURSING CARE PLACEMENTS,Third Party Payments,Private Contractor Fees,Revenue
Walsall Council,http://opendatacommunities.org/id/metropolitan-district-council/walsall,WC 60 - 238,30/09/2015,Childrens,ALPHABIOLABS,24/09/2015,272.50,73014-LEGAL FEES-PRIV CONTRACTOR FEES,Third Party Payments,Private Contractor Fees,Revenue
Walsall Council,http://opendatacommunities.org/id/metropolitan-district-council/walsall,WC 60 - 239,30/09/2015,Childrens,ALPHABIOLABS,23/09/2015,331.00,73014-LEGAL FEES-PRIV CONTRACTOR FEES,Third Party Payments,Private Contractor Fees,Revenue
Walsall Council,http://opendatacommunities.org/id/metropolitan-district-council/walsall,WC 60 - 240,30/09/2015,Childrens,ALPHABIOLABS,24/09/2015,331.00,73014-LEGAL FEES-PRIV CONTRACTOR FEES,Third Party Payments,Private Contractor Fees,Revenue
Walsall Council,http://opendatacommunities.org/id/metropolitan-district-council/walsall,WC 60 - 241,30/09/2015,Change and Governance,ALTODIGITAL NETWORKS LTD,21/09/2015,265.26,60009-LEASING/HIRE/RENTAL-EQUIPMENT,Supplies & Services,"Equip,Furniture & Materials",Revenue
Walsall Council,http://opendatacommunities.org/id/metropolitan-district-council/walsall,WC 60 - 242,30/09/2015,Social Care & Inclusion,ALTODIGITAL NETWORKS LTD,21/09/2015,590.04,60009-LEASING/HIRE/RENTAL-EQUIPMENT,Supplies & Services,"Equip,Furniture & Materials",Revenue
Walsall Council,http://opendatacommunities.org/id/metropolitan-district-council/walsall,WC 60 - 243,30/09/2015,Childrens,ALUMWELLIES NURSERY,01/09/2015,"1,412.96",66505-OTHER-GRANTS TO OTHER ORGS,Third Party Payments,Grants to Other Orgs,Revenue
Walsall Council,http://opendatacommunities.org/id/metropolitan-district-council/walsall,WC 60 - 244,30/09/2015,Childrens,ALUMWELLIES NURSERY,02/09/2015,"1,416.00",32000-MISC FEES AND EXPENSES,Employees,Other Staff Costs,Revenue
Walsall Council,http://opendatacommunities.org/id/metropolitan-district-council/walsall,WC 60 - 245,30/09/2015,Childrens,ALUMWELLIES NURSERY,02/09/2015,"1,416.00",32000-MISC FEES AND EXPENSES,Employees,Other Staff Costs,Revenue
Walsall Council,http://opendatacommunities.org/id/metropolitan-district-council/walsall,WC 60 - 246,30/09/2015,Childrens,REDACTED,01/09/2015,"1,500.88",74006-HOLIDAY/CHRISTMAS ALLOWANCE-FOSTER CARERS-OTH AGENCY PROVISION,Third Party Payments,Private Contractor Fees,Revenue
Walsall Council,http://opendatacommunities.org/id/metropolitan-district-council/walsall,WC 60 - 247,30/09/2015,Childrens,REDACTED,28/09/2015,"1,500.88",74006-HOLIDAY/CHRISTMAS ALLOWANCE-FOSTER CARERS-OTH AGENCY PROVISION,Third Party Payments,Private Contractor Fees,Revenue
Walsall Council,http://opendatacommunities.org/id/metropolitan-district-council/walsall,WC 60 - 248,30/09/2015,Childrens,REDACTED,14/09/2015,354.48,62515-MISCELLANEOUS SUPPLIES,Supplies & Services,Other Supplies & Services,Revenue
Walsall Council,http://opendatacommunities.org/id/metropolitan-district-council/walsall,WC 60 - 249,30/09/2015,Childrens,REDACTED,14/09/2015,571.44,74006-HOLIDAY/CHRISTMAS ALLOWANCE-FOSTER CARERS-OTH AGENCY PROVISION,Third Party Payments,Private Contractor Fees,Revenue
Walsall Council,http://opendatacommunities.org/id/metropolitan-district-council/walsall,WC 60 - 250,30/09/2015,Social Care & Inclusion,REDACTED,14/09/2015,945.00,76422-DIRECT PAYMENTS TO SOCIAL SERVICES CLIENTS,Transfer Payments,Transfer Payments,Revenue
Walsall Council,http://opendatacommunities.org/id/metropolitan-district-council/walsall,WC 60 - 251,30/09/2015,Social Care & Inclusion,REDACTED,14/09/2015,818.13,76422-DIRECT PAYMENTS TO SOCIAL SERVICES CLIENTS,Transfer Payments,Transfer Payments,Revenue
Walsall Council,http://opendatacommunities.org/id/metropolitan-district-council/walsall,WC 60 - 252,30/09/2015,Childrens,REDACTED,14/09/2015,391.15,76422-DIRECT PAYMENTS TO SOCIAL SERVICES CLIENTS,Transfer Payments,Transfer Payments,Revenue
Walsall Council,http://opendatacommunities.org/id/metropolitan-district-council/walsall,WC 60 - 253,30/09/2015,Economy & Environment,AMEY LG LIMITED,07/09/2015,"1,536.26",73025-PROFESSIONAL SERVICES-PRIV CONTRACTOR & OTHER AGENCIES,Third Party Payments,Private Contractor Fees,Revenue
Walsall Council,http://opendatacommunities.org/id/metropolitan-district-council/walsall,WC 60 - 254,30/09/2015,Economy & Environment,AMEY LG LIMITED,21/09/2015,"7,916.92",73025-PROFESSIONAL SERVICES-PRIV CONTRACTOR & OTHER AGENCIES,Third Party Payments,Private Contractor Fees,Revenue
Walsall Council,http://opendatacommunities.org/id/metropolitan-district-council/walsall,WC 60 - 255,30/09/2015,Childrens,AMG NURSING CARE SERVICES,11/09/2015,"1,448.35",74036-EXTERNAL RESIDENTIAL CARE-OTH AGENCY PROVISION,Third Party Payments,Private Contractor Fees,Revenue
Walsall Council,http://opendatacommunities.org/id/metropolitan-district-council/walsall,WC 60 - 256,30/09/2015,Childrens,AMG NURSING CARE SERVICES,09/09/2015,"1,866.80",74036-EXTERNAL RESIDENTIAL CARE-OTH AGENCY PROVISION,Third Party Payments,Private Contractor Fees,Revenue
Walsall Council,http://opendatacommunities.org/id/metropolitan-district-council/walsall,WC 60 - 257,30/09/2015,Childrens,AMG NURSING CARE SERVICES,14/09/2015,"1,866.80",74036-EXTERNAL RESIDENTIAL CARE-OTH AGENCY PROVISION,Third Party Payments,Private Contractor Fees,Revenue
Walsall Council,http://opendatacommunities.org/id/metropolitan-district-council/walsall,WC 60 - 258,30/09/2015,Childrens,AMG NURSING CARE SERVICES,07/09/2015,"2,229.76",74036-EXTERNAL RESIDENTIAL CARE-OTH AGENCY PROVISION,Third Party Payments,Private Contractor Fees,Revenue
Walsall Council,http://opendatacommunities.org/id/metropolitan-district-council/walsall,WC 60 - 259,30/09/2015,Social Care & Inclusion,AMG NURSING CARE SERVICES,03/09/2015,"6,394.00",73372-DOMICILIARY CARE,Third Party Payments,Private Contractor Fees,Revenue
Walsall Council,http://opendatacommunities.org/id/metropolitan-district-council/walsall,WC 60 - 260,30/09/2015,Economy & Environment,AMUSEMENT EQUIPMENT,24/09/2015,900.00,62523-EVENTS,Supplies & Services,Other Supplies & Services,Revenue
Walsall Council,http://opendatacommunities.org/id/metropolitan-district-council/walsall,WC 60 - 261,30/09/2015,Social Care & Inclusion,REDACTED,14/09/2015,"1,181.25",76422-DIRECT PAYMENTS TO SOCIAL SERVICES CLIENTS,Transfer Payments,Transfer Payments,Revenue
Walsall Council,http://opendatacommunities.org/id/metropolitan-district-council/walsall,WC 60 - 262,30/09/2015,Childrens,REDACTED,01/09/2015,425.08,74006-HOLIDAY/CHRISTMAS ALLOWANCE-FOSTER CARERS-OTH AGENCY PROVISION,Third Party Payments,Private Contractor Fees,Revenue
Walsall Council,http://opendatacommunities.org/id/metropolitan-district-council/walsall,WC 60 - 263,30/09/2015,Childrens,REDACTED,28/09/2015,425.08,74006-HOLIDAY/CHRISTMAS ALLOWANCE-FOSTER CARERS-OTH AGENCY PROVISION,Third Party Payments,Private Contractor Fees,Revenue
Walsall Council,http://opendatacommunities.org/id/metropolitan-district-council/walsall,WC 60 - 264,30/09/2015,Social Care & Inclusion,REDACTED,14/09/2015,680.00,76422-DIRECT PAYMENTS TO SOCIAL SERVICES CLIENTS,Transfer Payments,Transfer Payments,Revenue
Walsall Council,http://opendatacommunities.org/id/metropolitan-district-council/walsall,WC 60 - 265,30/09/2015,Social Care & Inclusion,REDACTED,14/09/2015,892.50,76422-DIRECT PAYMENTS TO SOCIAL SERVICES CLIENTS,Transfer Payments,Transfer Payments,Revenue
Walsall Council,http://opendatacommunities.org/id/metropolitan-district-council/walsall,WC 60 - 266,30/09/2015,Social Care & Inclusion,ANCHOR,01/09/2015,"1,493.24",73373-RESIDENTIAL & NURSING CARE PLACEMENTS,Third Party Payments,Private Contractor Fees,Revenue
Walsall Council,http://opendatacommunities.org/id/metropolitan-district-council/walsall,WC 60 - 267,30/09/2015,Social Care & Inclusion,ANCHOR,25/09/2015,"1,493.24",73373-RESIDENTIAL & NURSING CARE PLACEMENTS,Third Party Payments,Private Contractor Fees,Revenue
Walsall Council,http://opendatacommunities.org/id/metropolitan-district-council/walsall,WC 60 - 268,30/09/2015,Social Care & Inclusion,ANCHOR,01/09/2015,"1,534.12",73373-RESIDENTIAL & NURSING CARE PLACEMENTS,Third Party Payments,Private Contractor Fees,Revenue
Walsall Council,http://opendatacommunities.org/id/metropolitan-district-council/walsall,WC 60 - 269,30/09/2015,Social Care & Inclusion,ANCHOR,01/09/2015,"1,568.64",73373-RESIDENTIAL & NURSING CARE PLACEMENTS,Third Party Payments,Private Contractor Fees,Revenue
Walsall Council,http://opendatacommunities.org/id/metropolitan-district-council/walsall,WC 60 - 270,30/09/2015,Social Care & Inclusion,ANCHOR,01/09/2015,"1,568.64",73373-RESIDENTIAL & NURSING CARE PLACEMENTS,Third Party Payments,Private Contractor Fees,Revenue
Walsall Council,http://opendatacommunities.org/id/metropolitan-district-council/walsall,WC 60 - 271,30/09/2015,Social Care & Inclusion,ANCHOR,01/09/2015,"1,568.64",73373-RESIDENTIAL & NURSING CARE PLACEMENTS,Third Party Payments,Private Contractor Fees,Revenue
Walsall Council,http://opendatacommunities.org/id/metropolitan-district-council/walsall,WC 60 - 272,30/09/2015,Social Care & Inclusion,ANCHOR,01/09/2015,"1,568.64",73373-RESIDENTIAL & NURSING CARE PLACEMENTS,Third Party Payments,Private Contractor Fees,Revenue
Walsall Council,http://opendatacommunities.org/id/metropolitan-district-council/walsall,WC 60 - 273,30/09/2015,Social Care & Inclusion,ANCHOR,01/09/2015,"1,568.64",73373-RESIDENTIAL & NURSING CARE PLACEMENTS,Third Party Payments,Private Contractor Fees,Revenue
Walsall Council,http://opendatacommunities.org/id/metropolitan-district-council/walsall,WC 60 - 274,30/09/2015,Social Care & Inclusion,ANCHOR,01/09/2015,"1,568.64",73373-RESIDENTIAL & NURSING CARE PLACEMENTS,Third Party Payments,Private Contractor Fees,Revenue
Walsall Council,http://opendatacommunities.org/id/metropolitan-district-council/walsall,WC 60 - 275,30/09/2015,Social Care & Inclusion,ANCHOR,01/09/2015,"1,568.64",73373-RESIDENTIAL & NURSING CARE PLACEMENTS,Third Party Payments,Private Contractor Fees,Revenue
Walsall Council,http://opendatacommunities.org/id/metropolitan-district-council/walsall,WC 60 - 276,30/09/2015,Social Care & Inclusion,ANCHOR,01/09/2015,"1,568.64",73373-RESIDENTIAL & NURSING CARE PLACEMENTS,Third Party Payments,Private Contractor Fees,Revenue
Walsall Council,http://opendatacommunities.org/id/metropolitan-district-council/walsall,WC 60 - 277,30/09/2015,Social Care & Inclusion,ANCHOR,01/09/2015,"1,568.64",73373-RESIDENTIAL & NURSING CARE PLACEMENTS,Third Party Payments,Private Contractor Fees,Revenue
Walsall Council,http://opendatacommunities.org/id/metropolitan-district-council/walsall,WC 60 - 278,30/09/2015,Social Care & Inclusion,ANCHOR,01/09/2015,"1,568.64",73373-RESIDENTIAL & NURSING CARE PLACEMENTS,Third Party Payments,Private Contractor Fees,Revenue
Walsall Council,http://opendatacommunities.org/id/metropolitan-district-council/walsall,WC 60 - 279,30/09/2015,Social Care & Inclusion,ANCHOR,01/09/2015,"1,568.64",73373-RESIDENTIAL & NURSING CARE PLACEMENTS,Third Party Payments,Private Contractor Fees,Revenue
Walsall Council,http://opendatacommunities.org/id/metropolitan-district-council/walsall,WC 60 - 280,30/09/2015,Social Care & Inclusion,ANCHOR,25/09/2015,"1,568.64",73373-RESIDENTIAL & NURSING CARE PLACEMENTS,Third Party Payments,Private Contractor Fees,Revenue
Walsall Council,http://opendatacommunities.org/id/metropolitan-district-council/walsall,WC 60 - 281,30/09/2015,Social Care & Inclusion,ANCHOR,25/09/2015,"1,568.64",73373-RESIDENTIAL & NURSING CARE PLACEMENTS,Third Party Payments,Private Contractor Fees,Revenue
Walsall Council,http://opendatacommunities.org/id/metropolitan-district-council/walsall,WC 60 - 282,30/09/2015,Social Care & Inclusion,ANCHOR,25/09/2015,"1,568.64",73373-RESIDENTIAL & NURSING CARE PLACEMENTS,Third Party Payments,Private Contractor Fees,Revenue
Walsall Council,http://opendatacommunities.org/id/metropolitan-district-council/walsall,WC 60 - 283,30/09/2015,Social Care & Inclusion,ANCHOR,25/09/2015,"1,568.64",73373-RESIDENTIAL & NURSING CARE PLACEMENTS,Third Party Payments,Private Contractor Fees,Revenue
Walsall Council,http://opendatacommunities.org/id/metropolitan-district-council/walsall,WC 60 - 284,30/09/2015,Social Care & Inclusion,ANCHOR,25/09/2015,"1,568.64",73373-RESIDENTIAL & NURSING CARE PLACEMENTS,Third Party Payments,Private Contractor Fees,Revenue
Walsall Council,http://opendatacommunities.org/id/metropolitan-district-council/walsall,WC 60 - 285,30/09/2015,Social Care & Inclusion,ANCHOR,25/09/2015,"1,568.64",73373-RESIDENTIAL & NURSING CARE PLACEMENTS,Third Party Payments,Private Contractor Fees,Revenue
Walsall Council,http://opendatacommunities.org/id/metropolitan-district-council/walsall,WC 60 - 286,30/09/2015,Social Care & Inclusion,ANCHOR,25/09/2015,"1,568.64",73373-RESIDENTIAL & NURSING CARE PLACEMENTS,Third Party Payments,Private Contractor Fees,Revenue
Walsall Council,http://opendatacommunities.org/id/metropolitan-district-council/walsall,WC 60 - 287,30/09/2015,Social Care & Inclusion,ANCHOR,25/09/2015,"1,568.64",73373-RESIDENTIAL & NURSING CARE PLACEMENTS,Third Party Payments,Private Contractor Fees,Revenue
Walsall Council,http://opendatacommunities.org/id/metropolitan-district-council/walsall,WC 60 - 288,30/09/2015,Social Care & Inclusion,ANCHOR,25/09/2015,"1,568.64",73373-RESIDENTIAL & NURSING CARE PLACEMENTS,Third Party Payments,Private Contractor Fees,Revenue
Walsall Council,http://opendatacommunities.org/id/metropolitan-district-council/walsall,WC 60 - 289,30/09/2015,Social Care & Inclusion,ANCHOR,25/09/2015,"1,568.64",73373-RESIDENTIAL & NURSING CARE PLACEMENTS,Third Party Payments,Private Contractor Fees,Revenue
Walsall Council,http://opendatacommunities.org/id/metropolitan-district-council/walsall,WC 60 - 290,30/09/2015,Social Care & Inclusion,ANCHOR,09/09/2015,"4,986.03",73373-RESIDENTIAL & NURSING CARE PLACEMENTS,Third Party Payments,Private Contractor Fees,Revenue
Walsall Council,http://opendatacommunities.org/id/metropolitan-district-council/walsall,WC 60 - 291,30/09/2015,Social Care & Inclusion,ANCHOR,09/09/2015,"19,450.45",73373-RESIDENTIAL & NURSING CARE PLACEMENTS,Third Party Payments,Private Contractor Fees,Revenue
Walsall Council,http://opendatacommunities.org/id/metropolitan-district-council/walsall,WC 60 - 292,30/09/2015,Childrens,REDACTED,14/09/2015,471.49,62515-MISCELLANEOUS SUPPLIES,Supplies & Services,Other Supplies & Services,Revenue
Walsall Council,http://opendatacommunities.org/id/metropolitan-district-council/walsall,WC 60 - 293,30/09/2015,Childrens,REDACTED,14/09/2015,511.43,74006-HOLIDAY/CHRISTMAS ALLOWANCE-FOSTER CARERS-OTH AGENCY PROVISION,Third Party Payments,Private Contractor Fees,Revenue
Walsall Council,http://opendatacommunities.org/id/metropolitan-district-council/walsall,WC 60 - 294,30/09/2015,Social Care & Inclusion,REDACTED,14/09/2015,472.50,76422-DIRECT PAYMENTS TO SOCIAL SERVICES CLIENTS,Transfer Payments,Transfer Payments,Revenue
Walsall Council,http://opendatacommunities.org/id/metropolitan-district-council/walsall,WC 60 - 295,30/09/2015,Childrens,REDACTED,14/09/2015,906.76,62515-MISCELLANEOUS SUPPLIES,Supplies & Services,Other Supplies & Services,Revenue
Walsall Council,http://opendatacommunities.org/id/metropolitan-district-council/walsall,WC 60 - 296,30/09/2015,Childrens,REDACTED,14/09/2015,985.76,74006-HOLIDAY/CHRISTMAS ALLOWANCE-FOSTER CARERS-OTH AGENCY PROVISION,Third Party Payments,Private Contractor Fees,Revenue
Walsall Council,http://opendatacommunities.org/id/metropolitan-district-council/walsall,WC 60 - 297,30/09/2015,Childrens,ANDREWS ELECTRICAL LTD,02/09/2015,"20,814.50",01006-SITE WORKS MAIN CONTRACTORS,Capital,Capital,Capital
Walsall Council,http://opendatacommunities.org/id/metropolitan-district-council/walsall,WC 60 - 298,30/09/2015,Social Care & Inclusion,ANGEL COURT RESIDENTIAL CARE HOME,23/09/2015,"1,680.69",73373-RESIDENTIAL & NURSING CARE PLACEMENTS,Third Party Payments,Private Contractor Fees,Revenue
Walsall Council,http://opendatacommunities.org/id/metropolitan-district-council/walsall,WC 60 - 299,30/09/2015,Social Care & Inclusion,ANGEL COURT RESIDENTIAL CARE HOME,23/09/2015,"1,837.84",73373-RESIDENTIAL & NURSING CARE PLACEMENTS,Third Party Payments,Private Contractor Fees,Revenue
Walsall Council,http://opendatacommunities.org/id/metropolitan-district-council/walsall,WC 60 - 300,30/09/2015,Childrens,REDACTED,28/09/2015,"1,952.76",74006-HOLIDAY/CHRISTMAS ALLOWANCE-FOSTER CARERS-OTH AGENCY PROVISION,Third Party Payments,Private Contractor Fees,Revenue
Walsall Council,http://opendatacommunities.org/id/metropolitan-district-council/walsall,WC 60 - 301,30/09/2015,Childrens,REDACTED,01/09/2015,"2,603.68",74006-HOLIDAY/CHRISTMAS ALLOWANCE-FOSTER CARERS-OTH AGENCY PROVISION,Third Party Payments,Private Contractor Fees,Revenue
Walsall Council,http://opendatacommunities.org/id/metropolitan-district-council/walsall,WC 60 - 302,30/09/2015,Change and Governance,ANGLIA STAIRLIFTS LTD,03/09/2015,"3,695.00",01045-PRIVATE GRANTS,Capital,Capital,Capital
Walsall Council,http://opendatacommunities.org/id/metropolitan-district-council/walsall,WC 60 - 303,30/09/2015,Change and Governance,ANGLIA STAIRLIFTS LTD,18/09/2015,"3,695.00",01045-PRIVATE GRANTS,Capital,Capital,Capital
Walsall Council,http://opendatacommunities.org/id/metropolitan-district-council/walsall,WC 60 - 304,30/09/2015,Change and Governance,ANGLIA STAIRLIFTS LTD,29/09/2015,"3,765.00",01045-PRIVATE GRANTS,Capital,Capital,Capital
Walsall Council,http://opendatacommunities.org/id/metropolitan-district-council/walsall,WC 60 - 305,30/09/2015,Change and Governance,ANGLIA STAIRLIFTS LTD,07/09/2015,"3,805.00",01045-PRIVATE GRANTS,Capital,Capital,Capital
Walsall Council,http://opendatacommunities.org/id/metropolitan-district-council/walsall,WC 60 - 306,30/09/2015,Change and Governance,ANGLIA STAIRLIFTS LTD,29/09/2015,"3,825.00",01045-PRIVATE GRANTS,Capital,Capital,Capital
Walsall Council,http://opendatacommunities.org/id/metropolitan-district-council/walsall,WC 60 - 307,30/09/2015,Change and Governance,ANGLIA STAIRLIFTS LTD,03/09/2015,"3,965.00",01045-PRIVATE GRANTS,Capital,Capital,Capital
Walsall Council,http://opendatacommunities.org/id/metropolitan-district-council/walsall,WC 60 - 308,30/09/2015,Change and Governance,ANGLIA STAIRLIFTS LTD,08/09/2015,"4,085.00",01045-PRIVATE GRANTS,Capital,Capital,Capital
Walsall Council,http://opendatacommunities.org/id/metropolitan-district-council/walsall,WC 60 - 309,30/09/2015,Change and Governance,ANGLIA STAIRLIFTS LTD,11/09/2015,"4,115.00",01045-PRIVATE GRANTS,Capital,Capital,Capital
Walsall Council,http://opendatacommunities.org/id/metropolitan-district-council/walsall,WC 60 - 310,30/09/2015,Change and Governance,ANGLIA STAIRLIFTS LTD,18/09/2015,"4,691.77",01045-PRIVATE GRANTS,Capital,Capital,Capital
Walsall Council,http://opendatacommunities.org/id/metropolitan-district-council/walsall,WC 60 - 311,30/09/2015,Change and Governance,ANGLIA STAIRLIFTS LTD,03/09/2015,"4,725.81",01045-PRIVATE GRANTS,Capital,Capital,Capital
Walsall Council,http://opendatacommunities.org/id/metropolitan-district-council/walsall,WC 60 - 312,30/09/2015,Change and Governance,ANGLIA STAIRLIFTS LTD,11/09/2015,"4,765.00",01045-PRIVATE GRANTS,Capital,Capital,Capital
Walsall Council,http://opendatacommunities.org/id/metropolitan-district-council/walsall,WC 60 - 313,30/09/2015,Economy & Environment,ANIMALMANIA,02/09/2015,285.00,62515-MISCELLANEOUS SUPPLIES,Supplies & Services,Other Supplies & Services,Revenue
Walsall Council,http://opendatacommunities.org/id/metropolitan-district-council/walsall,WC 60 - 314,30/09/2015,Economy & Environment,ANIMALMANIA,02/09/2015,540.00,62515-MISCELLANEOUS SUPPLIES,Supplies & Services,Other Supplies & Services,Revenue
Walsall Council,http://opendatacommunities.org/id/metropolitan-district-council/walsall,WC 60 - 315,30/09/2015,Childrens,REDACTED,14/09/2015,925.00,62515-MISCELLANEOUS SUPPLIES,Supplies & Services,Other Supplies & Services,Revenue
Walsall Council,http://opendatacommunities.org/id/metropolitan-district-council/walsall,WC 60 - 316,30/09/2015,Childrens,REDACTED,14/09/2015,"1,461.24",74006-HOLIDAY/CHRISTMAS ALLOWANCE-FOSTER CARERS-OTH AGENCY PROVISION,Third Party Payments,Private Contractor Fees,Revenue
Walsall Council,http://opendatacommunities.org/id/metropolitan-district-council/walsall,WC 60 - 317,30/09/2015,Social Care & Inclusion,REDACTED,14/09/2015,397.50,76422-DIRECT PAYMENTS TO SOCIAL SERVICES CLIENTS,Transfer Payments,Transfer Payments,Revenue
Walsall Council,http://opendatacommunities.org/id/metropolitan-district-council/walsall,WC 60 - 318,30/09/2015,Social Care & Inclusion,REDACTED,16/09/2015,"1,237.35",73374-SUPPORTED & OTHER ACCOMMODATION,Third Party Payments,Private Contractor Fees,Revenue
Walsall Council,http://opendatacommunities.org/id/metropolitan-district-council/walsall,WC 60 - 319,30/09/2015,Social Care & Inclusion,ANSON COURT RESIDENTIAL HOME,25/09/2015,"-1,918.40",73373-RESIDENTIAL & NURSING CARE PLACEMENTS,Third Party Payments,Private Contractor Fees,Revenue
Walsall Council,http://opendatacommunities.org/id/metropolitan-district-council/walsall,WC 60 - 320,30/09/2015,Social Care & Inclusion,ANSON COURT RESIDENTIAL HOME,01/09/2015,"1,567.00",73373-RESIDENTIAL & NURSING CARE PLACEMENTS,Third Party Payments,Private Contractor Fees,Revenue
Walsall Council,http://opendatacommunities.org/id/metropolitan-district-council/walsall,WC 60 - 321,30/09/2015,Social Care & Inclusion,ANSON COURT RESIDENTIAL HOME,23/09/2015,"1,567.00",73373-RESIDENTIAL & NURSING CARE PLACEMENTS,Third Party Payments,Private Contractor Fees,Revenue
Walsall Council,http://opendatacommunities.org/id/metropolitan-district-council/walsall,WC 60 - 322,30/09/2015,Social Care & Inclusion,ANSON COURT RESIDENTIAL HOME,01/09/2015,"1,568.64",73373-RESIDENTIAL & NURSING CARE PLACEMENTS,Third Party Payments,Private Contractor Fees,Revenue
Walsall Council,http://opendatacommunities.org/id/metropolitan-district-council/walsall,WC 60 - 323,30/09/2015,Social Care & Inclusion,ANSON COURT RESIDENTIAL HOME,01/09/2015,"1,568.64",73373-RESIDENTIAL & NURSING CARE PLACEMENTS,Third Party Payments,Private Contractor Fees,Revenue
Walsall Council,http://opendatacommunities.org/id/metropolitan-district-council/walsall,WC 60 - 324,30/09/2015,Social Care & Inclusion,ANSON COURT RESIDENTIAL HOME,01/09/2015,"1,568.64",73373-RESIDENTIAL & NURSING CARE PLACEMENTS,Third Party Payments,Private Contractor Fees,Revenue
Walsall Council,http://opendatacommunities.org/id/metropolitan-district-council/walsall,WC 60 - 325,30/09/2015,Social Care & Inclusion,ANSON COURT RESIDENTIAL HOME,01/09/2015,"1,568.64",73373-RESIDENTIAL & NURSING CARE PLACEMENTS,Third Party Payments,Private Contractor Fees,Revenue
Walsall Council,http://opendatacommunities.org/id/metropolitan-district-council/walsall,WC 60 - 326,30/09/2015,Social Care & Inclusion,ANSON COURT RESIDENTIAL HOME,01/09/2015,"1,568.64",73373-RESIDENTIAL & NURSING CARE PLACEMENTS,Third Party Payments,Private Contractor Fees,Revenue
Walsall Council,http://opendatacommunities.org/id/metropolitan-district-council/walsall,WC 60 - 327,30/09/2015,Social Care & Inclusion,ANSON COURT RESIDENTIAL HOME,01/09/2015,"1,568.64",73373-RESIDENTIAL & NURSING CARE PLACEMENTS,Third Party Payments,Private Contractor Fees,Revenue
Walsall Council,http://opendatacommunities.org/id/metropolitan-district-council/walsall,WC 60 - 328,30/09/2015,Social Care & Inclusion,ANSON COURT RESIDENTIAL HOME,01/09/2015,"1,568.64",73373-RESIDENTIAL & NURSING CARE PLACEMENTS,Third Party Payments,Private Contractor Fees,Revenue
Walsall Council,http://opendatacommunities.org/id/metropolitan-district-council/walsall,WC 60 - 329,30/09/2015,Social Care & Inclusion,ANSON COURT RESIDENTIAL HOME,01/09/2015,"1,568.64",73373-RESIDENTIAL & NURSING CARE PLACEMENTS,Third Party Payments,Private Contractor Fees,Revenue
Walsall Council,http://opendatacommunities.org/id/metropolitan-district-council/walsall,WC 60 - 330,30/09/2015,Social Care & Inclusion,ANSON COURT RESIDENTIAL HOME,01/09/2015,"1,568.64",73373-RESIDENTIAL & NURSING CARE PLACEMENTS,Third Party Payments,Private Contractor Fees,Revenue
Walsall Council,http://opendatacommunities.org/id/metropolitan-district-council/walsall,WC 60 - 331,30/09/2015,Social Care & Inclusion,ANSON COURT RESIDENTIAL HOME,01/09/2015,"1,568.64",73373-RESIDENTIAL & NURSING CARE PLACEMENTS,Third Party Payments,Private Contractor Fees,Revenue
Walsall Council,http://opendatacommunities.org/id/metropolitan-district-council/walsall,WC 60 - 332,30/09/2015,Social Care & Inclusion,ANSON COURT RESIDENTIAL HOME,01/09/2015,"1,568.64",73373-RESIDENTIAL & NURSING CARE PLACEMENTS,Third Party Payments,Private Contractor Fees,Revenue
Walsall Council,http://opendatacommunities.org/id/metropolitan-district-council/walsall,WC 60 - 333,30/09/2015,Social Care & Inclusion,ANSON COURT RESIDENTIAL HOME,01/09/2015,"1,568.64",73373-RESIDENTIAL & NURSING CARE PLACEMENTS,Third Party Payments,Private Contractor Fees,Revenue
Walsall Council,http://opendatacommunities.org/id/metropolitan-district-council/walsall,WC 60 - 334,30/09/2015,Social Care & Inclusion,ANSON COURT RESIDENTIAL HOME,01/09/2015,"1,568.64",73373-RESIDENTIAL & NURSING CARE PLACEMENTS,Third Party Payments,Private Contractor Fees,Revenue
Walsall Council,http://opendatacommunities.org/id/metropolitan-district-council/walsall,WC 60 - 335,30/09/2015,Social Care & Inclusion,ANSON COURT RESIDENTIAL HOME,23/09/2015,"1,568.64",73373-RESIDENTIAL & NURSING CARE PLACEMENTS,Third Party Payments,Private Contractor Fees,Revenue
Walsall Council,http://opendatacommunities.org/id/metropolitan-district-council/walsall,WC 60 - 336,30/09/2015,Social Care & Inclusion,ANSON COURT RESIDENTIAL HOME,23/09/2015,"1,568.64",73373-RESIDENTIAL & NURSING CARE PLACEMENTS,Third Party Payments,Private Contractor Fees,Revenue
Walsall Council,http://opendatacommunities.org/id/metropolitan-district-council/walsall,WC 60 - 337,30/09/2015,Social Care & Inclusion,ANSON COURT RESIDENTIAL HOME,23/09/2015,"1,568.64",73373-RESIDENTIAL & NURSING CARE PLACEMENTS,Third Party Payments,Private Contractor Fees,Revenue
Walsall Council,http://opendatacommunities.org/id/metropolitan-district-council/walsall,WC 60 - 338,30/09/2015,Social Care & Inclusion,ANSON COURT RESIDENTIAL HOME,23/09/2015,"1,568.64",73373-RESIDENTIAL & NURSING CARE PLACEMENTS,Third Party Payments,Private Contractor Fees,Revenue
Walsall Council,http://opendatacommunities.org/id/metropolitan-district-council/walsall,WC 60 - 339,30/09/2015,Social Care & Inclusion,ANSON COURT RESIDENTIAL HOME,23/09/2015,"1,568.64",73373-RESIDENTIAL & NURSING CARE PLACEMENTS,Third Party Payments,Private Contractor Fees,Revenue
Walsall Council,http://opendatacommunities.org/id/metropolitan-district-council/walsall,WC 60 - 340,30/09/2015,Social Care & Inclusion,ANSON COURT RESIDENTIAL HOME,23/09/2015,"1,568.64",73373-RESIDENTIAL & NURSING CARE PLACEMENTS,Third Party Payments,Private Contractor Fees,Revenue
Walsall Council,http://opendatacommunities.org/id/metropolitan-district-council/walsall,WC 60 - 341,30/09/2015,Social Care & Inclusion,ANSON COURT RESIDENTIAL HOME,23/09/2015,"1,568.64",73373-RESIDENTIAL & NURSING CARE PLACEMENTS,Third Party Payments,Private Contractor Fees,Revenue
Walsall Council,http://opendatacommunities.org/id/metropolitan-district-council/walsall,WC 60 - 342,30/09/2015,Social Care & Inclusion,ANSON COURT RESIDENTIAL HOME,23/09/2015,"1,568.64",73373-RESIDENTIAL & NURSING CARE PLACEMENTS,Third Party Payments,Private Contractor Fees,Revenue
Walsall Council,http://opendatacommunities.org/id/metropolitan-district-council/walsall,WC 60 - 343,30/09/2015,Social Care & Inclusion,ANSON COURT RESIDENTIAL HOME,23/09/2015,"1,568.64",73373-RESIDENTIAL & NURSING CARE PLACEMENTS,Third Party Payments,Private Contractor Fees,Revenue
Walsall Council,http://opendatacommunities.org/id/metropolitan-district-council/walsall,WC 60 - 344,30/09/2015,Social Care & Inclusion,ANSON COURT RESIDENTIAL HOME,23/09/2015,"1,568.64",73373-RESIDENTIAL & NURSING CARE PLACEMENTS,Third Party Payments,Private Contractor Fees,Revenue
Walsall Council,http://opendatacommunities.org/id/metropolitan-district-council/walsall,WC 60 - 345,30/09/2015,Social Care & Inclusion,ANSON COURT RESIDENTIAL HOME,23/09/2015,"1,568.64",73373-RESIDENTIAL & NURSING CARE PLACEMENTS,Third Party Payments,Private Contractor Fees,Revenue
Walsall Council,http://opendatacommunities.org/id/metropolitan-district-council/walsall,WC 60 - 346,30/09/2015,Social Care & Inclusion,ANSON COURT RESIDENTIAL HOME,23/09/2015,"1,568.64",73373-RESIDENTIAL & NURSING CARE PLACEMENTS,Third Party Payments,Private Contractor Fees,Revenue
Walsall Council,http://opendatacommunities.org/id/metropolitan-district-council/walsall,WC 60 - 347,30/09/2015,Social Care & Inclusion,ANSON COURT RESIDENTIAL HOME,01/09/2015,"1,649.20",73373-RESIDENTIAL & NURSING CARE PLACEMENTS,Third Party Payments,Private Contractor Fees,Revenue
Walsall Council,http://opendatacommunities.org/id/metropolitan-district-council/walsall,WC 60 - 348,30/09/2015,Social Care & Inclusion,ANSON COURT RESIDENTIAL HOME,23/09/2015,"1,649.20",73373-RESIDENTIAL & NURSING CARE PLACEMENTS,Third Party Payments,Private Contractor Fees,Revenue
Walsall Council,http://opendatacommunities.org/id/metropolitan-district-council/walsall,WC 60 - 349,30/09/2015,Social Care & Inclusion,ANSON COURT RESIDENTIAL HOME,01/09/2015,"1,650.44",73373-RESIDENTIAL & NURSING CARE PLACEMENTS,Third Party Payments,Private Contractor Fees,Revenue
Walsall Council,http://opendatacommunities.org/id/metropolitan-district-council/walsall,WC 60 - 350,30/09/2015,Social Care & Inclusion,ANSON COURT RESIDENTIAL HOME,23/09/2015,"1,650.44",73373-RESIDENTIAL & NURSING CARE PLACEMENTS,Third Party Payments,Private Contractor Fees,Revenue
Walsall Council,http://opendatacommunities.org/id/metropolitan-district-council/walsall,WC 60 - 351,30/09/2015,Social Care & Inclusion,ANSON COURT RESIDENTIAL HOME,01/09/2015,"1,651.04",73373-RESIDENTIAL & NURSING CARE PLACEMENTS,Third Party Payments,Private Contractor Fees,Revenue
Walsall Council,http://opendatacommunities.org/id/metropolitan-district-council/walsall,WC 60 - 352,30/09/2015,Social Care & Inclusion,ANSON COURT RESIDENTIAL HOME,01/09/2015,"1,651.04",73373-RESIDENTIAL & NURSING CARE PLACEMENTS,Third Party Payments,Private Contractor Fees,Revenue
Walsall Council,http://opendatacommunities.org/id/metropolitan-district-council/walsall,WC 60 - 353,30/09/2015,Social Care & Inclusion,ANSON COURT RESIDENTIAL HOME,23/09/2015,"1,651.04",73373-RESIDENTIAL & NURSING CARE PLACEMENTS,Third Party Payments,Private Contractor Fees,Revenue
Walsall Council,http://opendatacommunities.org/id/metropolitan-district-council/walsall,WC 60 - 354,30/09/2015,Social Care & Inclusion,ANSON COURT RESIDENTIAL HOME,23/09/2015,"1,651.04",73373-RESIDENTIAL & NURSING CARE PLACEMENTS,Third Party Payments,Private Contractor Fees,Revenue
Walsall Council,http://opendatacommunities.org/id/metropolitan-district-council/walsall,WC 60 - 355,30/09/2015,Childrens,REDACTED,01/09/2015,"1,369.84",74006-HOLIDAY/CHRISTMAS ALLOWANCE-FOSTER CARERS-OTH AGENCY PROVISION,Third Party Payments,Private Contractor Fees,Revenue
Walsall Council,http://opendatacommunities.org/id/metropolitan-district-council/walsall,WC 60 - 356,30/09/2015,Childrens,REDACTED,28/09/2015,"1,369.84",74006-HOLIDAY/CHRISTMAS ALLOWANCE-FOSTER CARERS-OTH AGENCY PROVISION,Third Party Payments,Private Contractor Fees,Revenue
Walsall Council,http://opendatacommunities.org/id/metropolitan-district-council/walsall,WC 60 - 357,30/09/2015,Childrens,REDACTED,01/09/2015,571.44,74006-HOLIDAY/CHRISTMAS ALLOWANCE-FOSTER CARERS-OTH AGENCY PROVISION,Third Party Payments,Private Contractor Fees,Revenue
Walsall Council,http://opendatacommunities.org/id/metropolitan-district-council/walsall,WC 60 - 358,30/09/2015,Childrens,REDACTED,28/09/2015,571.44,74006-HOLIDAY/CHRISTMAS ALLOWANCE-FOSTER CARERS-OTH AGENCY PROVISION,Third Party Payments,Private Contractor Fees,Revenue
Walsall Council,http://opendatacommunities.org/id/metropolitan-district-council/walsall,WC 60 - 359,30/09/2015,Economy & Environment,APCOA PARKING SERVICES (UK) LTD,11/09/2015,"46,279.03",73025-PROFESSIONAL SERVICES-PRIV CONTRACTOR & OTHER AGENCIES,Third Party Payments,Private Contractor Fees,Revenue
Walsall Council,http://opendatacommunities.org/id/metropolitan-district-council/walsall,WC 60 - 360,30/09/2015,Social Care & Inclusion,APNA HOUSE LTD,01/09/2015,518.19,73373-RESIDENTIAL & NURSING CARE PLACEMENTS,Third Party Payments,Private Contractor Fees,Revenue
Walsall Council,http://opendatacommunities.org/id/metropolitan-district-council/walsall,WC 60 - 361,30/09/2015,Social Care & Inclusion,APNA HOUSE LTD,01/09/2015,"5,586.96",73373-RESIDENTIAL & NURSING CARE PLACEMENTS,Third Party Payments,Private Contractor Fees,Revenue
Walsall Council,http://opendatacommunities.org/id/metropolitan-district-council/walsall,WC 60 - 362,30/09/2015,Social Care & Inclusion,APNA HOUSE LTD,01/09/2015,"5,586.96",73373-RESIDENTIAL & NURSING CARE PLACEMENTS,Third Party Payments,Private Contractor Fees,Revenue
Walsall Council,http://opendatacommunities.org/id/metropolitan-district-council/walsall,WC 60 - 363,30/09/2015,Social Care & Inclusion,APNA HOUSE LTD,25/09/2015,"5,586.96",73373-RESIDENTIAL & NURSING CARE PLACEMENTS,Third Party Payments,Private Contractor Fees,Revenue
Walsall Council,http://opendatacommunities.org/id/metropolitan-district-council/walsall,WC 60 - 364,30/09/2015,Childrens,APPLE TRANSCRIPTION LIMITED,16/09/2015,300.30,73014-LEGAL FEES-PRIV CONTRACTOR FEES,Third Party Payments,Private Contractor Fees,Revenue
Walsall Council,http://opendatacommunities.org/id/metropolitan-district-council/walsall,WC 60 - 365,30/09/2015,Childrens,APPLEGREEN CHILDRENS CARE LTD,10/09/2015,"6,300.00",74036-EXTERNAL RESIDENTIAL CARE-OTH AGENCY PROVISION,Third Party Payments,Private Contractor Fees,Revenue
Walsall Council,http://opendatacommunities.org/id/metropolitan-district-council/walsall,WC 60 - 366,30/09/2015,Childrens,APPLEGREEN CHILDRENS CARE LTD,10/09/2015,"12,857.10",74036-EXTERNAL RESIDENTIAL CARE-OTH AGENCY PROVISION,Third Party Payments,Private Contractor Fees,Revenue
Walsall Council,http://opendatacommunities.org/id/metropolitan-district-council/walsall,WC 60 - 367,30/09/2015,Social Care & Inclusion,ARBORETUM NURSING HOME.,15/09/2015,"1,975.60",73373-RESIDENTIAL & NURSING CARE PLACEMENTS,Third Party Payments,Private Contractor Fees,Revenue
Walsall Council,http://opendatacommunities.org/id/metropolitan-district-council/walsall,WC 60 - 368,30/09/2015,Social Care & Inclusion,ARBORETUM NURSING HOME.,15/09/2015,"2,466.50",73373-RESIDENTIAL & NURSING CARE PLACEMENTS,Third Party Payments,Private Contractor Fees,Revenue
Walsall Council,http://opendatacommunities.org/id/metropolitan-district-council/walsall,WC 60 - 369,30/09/2015,Social Care & Inclusion,ARBORETUM NURSING HOME.,15/09/2015,"2,466.50",73373-RESIDENTIAL & NURSING CARE PLACEMENTS,Third Party Payments,Private Contractor Fees,Revenue
Walsall Council,http://opendatacommunities.org/id/metropolitan-district-council/walsall,WC 60 - 370,30/09/2015,Social Care & Inclusion,ARBORETUM NURSING HOME.,15/09/2015,"2,469.50",73373-RESIDENTIAL & NURSING CARE PLACEMENTS,Third Party Payments,Private Contractor Fees,Revenue
Walsall Council,http://opendatacommunities.org/id/metropolitan-district-council/walsall,WC 60 - 371,30/09/2015,Social Care & Inclusion,ARBORETUM NURSING HOME.,15/09/2015,"2,469.50",73373-RESIDENTIAL & NURSING CARE PLACEMENTS,Third Party Payments,Private Contractor Fees,Revenue
Walsall Council,http://opendatacommunities.org/id/metropolitan-district-council/walsall,WC 60 - 372,30/09/2015,Social Care & Inclusion,ARBORETUM NURSING HOME.,15/09/2015,"2,522.45",73373-RESIDENTIAL & NURSING CARE PLACEMENTS,Third Party Payments,Private Contractor Fees,Revenue
Walsall Council,http://opendatacommunities.org/id/metropolitan-district-council/walsall,WC 60 - 373,30/09/2015,Social Care & Inclusion,ARBORETUM NURSING HOME.,15/09/2015,"2,537.50",73373-RESIDENTIAL & NURSING CARE PLACEMENTS,Third Party Payments,Private Contractor Fees,Revenue
Walsall Council,http://opendatacommunities.org/id/metropolitan-district-council/walsall,WC 60 - 374,30/09/2015,Social Care & Inclusion,ARBORETUM NURSING HOME.,15/09/2015,"2,537.50",73373-RESIDENTIAL & NURSING CARE PLACEMENTS,Third Party Payments,Private Contractor Fees,Revenue
Walsall Council,http://opendatacommunities.org/id/metropolitan-district-council/walsall,WC 60 - 375,30/09/2015,Social Care & Inclusion,ARBORETUM NURSING HOME.,29/09/2015,"15,000.00",73019-PSE'S-PRIV CONTRACTOR FEES,Third Party Payments,Private Contractor Fees,Revenue
Walsall Council,http://opendatacommunities.org/id/metropolitan-district-council/walsall,WC 60 - 376,30/09/2015,Social Care & Inclusion,ARBORETUM NURSING HOME.,29/09/2015,"15,000.00",73019-PSE'S-PRIV CONTRACTOR FEES,Third Party Payments,Private Contractor Fees,Revenue
Walsall Council,http://opendatacommunities.org/id/metropolitan-district-council/walsall,WC 60 - 377,30/09/2015,Social Care & Inclusion,ARJOHUNTLEIGH UK,11/09/2015,453.85,60500-GENERAL MATERIALS,Supplies & Services,"Equip,Furniture & Materials",Revenue
Walsall Council,http://opendatacommunities.org/id/metropolitan-district-council/walsall,WC 60 - 378,30/09/2015,Economy & Environment,ART & MUSIC PUBLICATIONS,28/09/2015,600.00,68001-PUBLICITY & ADVERTISING (NOT STAFF ADVERTISING),Supplies & Services,Communications & Computing,Revenue
Walsall Council,http://opendatacommunities.org/id/metropolitan-district-council/walsall,WC 60 - 379,30/09/2015,Change and Governance,ARTHUR J GALLAGHER INTERNATIONAL,02/09/2015,"-6,500.00",63000-PROFESSIONAL FEES AND SERVICES,Supplies & Services,Services,Revenue
Walsall Council,http://opendatacommunities.org/id/metropolitan-district-council/walsall,WC 60 - 380,30/09/2015,Economy & Environment,ASDA PHARMACY,29/09/2015,265.50,63000-PROFESSIONAL FEES AND SERVICES,Supplies & Services,Services,Revenue
Walsall Council,http://opendatacommunities.org/id/metropolitan-district-council/walsall,WC 60 - 381,30/09/2015,Social Care & Inclusion,ASH GRANGE CARE HOME,25/09/2015,"1,472.44",73373-RESIDENTIAL & NURSING CARE PLACEMENTS,Third Party Payments,Private Contractor Fees,Revenue
Walsall Council,http://opendatacommunities.org/id/metropolitan-district-council/walsall,WC 60 - 382,30/09/2015,Social Care & Inclusion,ASH GRANGE CARE HOME,15/09/2015,"1,505.56",73373-RESIDENTIAL & NURSING CARE PLACEMENTS,Third Party Payments,Private Contractor Fees,Revenue
Walsall Council,http://opendatacommunities.org/id/metropolitan-district-council/walsall,WC 60 - 383,30/09/2015,Social Care & Inclusion,ASH GRANGE CARE HOME,15/09/2015,"1,505.56",73373-RESIDENTIAL & NURSING CARE PLACEMENTS,Third Party Payments,Private Contractor Fees,Revenue
Walsall Council,http://opendatacommunities.org/id/metropolitan-district-council/walsall,WC 60 - 384,30/09/2015,Social Care & Inclusion,ASH GRANGE CARE HOME,25/09/2015,"1,505.56",73373-RESIDENTIAL & NURSING CARE PLACEMENTS,Third Party Payments,Private Contractor Fees,Revenue
Walsall Council,http://opendatacommunities.org/id/metropolitan-district-council/walsall,WC 60 - 385,30/09/2015,Social Care & Inclusion,ASH GRANGE CARE HOME,25/09/2015,"1,505.56",73373-RESIDENTIAL & NURSING CARE PLACEMENTS,Third Party Payments,Private Contractor Fees,Revenue
Walsall Council,http://opendatacommunities.org/id/metropolitan-district-council/walsall,WC 60 - 386,30/09/2015,Social Care & Inclusion,ASH GRANGE CARE HOME,25/09/2015,"1,505.56",73373-RESIDENTIAL & NURSING CARE PLACEMENTS,Third Party Payments,Private Contractor Fees,Revenue
Walsall Council,http://opendatacommunities.org/id/metropolitan-district-council/walsall,WC 60 - 387,30/09/2015,Social Care & Inclusion,ASH GRANGE CARE HOME,25/09/2015,"1,505.56",73373-RESIDENTIAL & NURSING CARE PLACEMENTS,Third Party Payments,Private Contractor Fees,Revenue
Walsall Council,http://opendatacommunities.org/id/metropolitan-district-council/walsall,WC 60 - 388,30/09/2015,Social Care & Inclusion,ASH GRANGE CARE HOME,25/09/2015,"1,505.56",73373-RESIDENTIAL & NURSING CARE PLACEMENTS,Third Party Payments,Private Contractor Fees,Revenue
Walsall Council,http://opendatacommunities.org/id/metropolitan-district-council/walsall,WC 60 - 389,30/09/2015,Social Care & Inclusion,ASH GRANGE CARE HOME,15/09/2015,"1,949.88",73373-RESIDENTIAL & NURSING CARE PLACEMENTS,Third Party Payments,Private Contractor Fees,Revenue
Walsall Council,http://opendatacommunities.org/id/metropolitan-district-council/walsall,WC 60 - 390,30/09/2015,Social Care & Inclusion,ASH GRANGE CARE HOME,15/09/2015,"1,988.20",73373-RESIDENTIAL & NURSING CARE PLACEMENTS,Third Party Payments,Private Contractor Fees,Revenue
Walsall Council,http://opendatacommunities.org/id/metropolitan-district-council/walsall,WC 60 - 391,30/09/2015,Social Care & Inclusion,ASH GRANGE CARE HOME,15/09/2015,"1,988.20",73373-RESIDENTIAL & NURSING CARE PLACEMENTS,Third Party Payments,Private Contractor Fees,Revenue
Walsall Council,http://opendatacommunities.org/id/metropolitan-district-council/walsall,WC 60 - 392,30/09/2015,Social Care & Inclusion,ASH GRANGE CARE HOME,15/09/2015,"1,988.20",73373-RESIDENTIAL & NURSING CARE PLACEMENTS,Third Party Payments,Private Contractor Fees,Revenue
Walsall Council,http://opendatacommunities.org/id/metropolitan-district-council/walsall,WC 60 - 393,30/09/2015,Social Care & Inclusion,ASH GRANGE CARE HOME,15/09/2015,"1,988.20",73373-RESIDENTIAL & NURSING CARE PLACEMENTS,Third Party Payments,Private Contractor Fees,Revenue
Walsall Council,http://opendatacommunities.org/id/metropolitan-district-council/walsall,WC 60 - 394,30/09/2015,Social Care & Inclusion,ASH GRANGE CARE HOME,15/09/2015,"1,988.20",73373-RESIDENTIAL & NURSING CARE PLACEMENTS,Third Party Payments,Private Contractor Fees,Revenue
Walsall Council,http://opendatacommunities.org/id/metropolitan-district-council/walsall,WC 60 - 395,30/09/2015,Social Care & Inclusion,ASH GRANGE CARE HOME,15/09/2015,"1,988.20",73373-RESIDENTIAL & NURSING CARE PLACEMENTS,Third Party Payments,Private Contractor Fees,Revenue
Walsall Council,http://opendatacommunities.org/id/metropolitan-district-council/walsall,WC 60 - 396,30/09/2015,Social Care & Inclusion,ASH GRANGE CARE HOME,15/09/2015,"1,988.20",73373-RESIDENTIAL & NURSING CARE PLACEMENTS,Third Party Payments,Private Contractor Fees,Revenue
Walsall Council,http://opendatacommunities.org/id/metropolitan-district-council/walsall,WC 60 - 397,30/09/2015,Social Care & Inclusion,ASH GRANGE CARE HOME,15/09/2015,"1,988.20",73373-RESIDENTIAL & NURSING CARE PLACEMENTS,Third Party Payments,Private Contractor Fees,Revenue
Walsall Council,http://opendatacommunities.org/id/metropolitan-district-council/walsall,WC 60 - 398,30/09/2015,Social Care & Inclusion,ASH GRANGE CARE HOME,15/09/2015,"1,988.20",73373-RESIDENTIAL & NURSING CARE PLACEMENTS,Third Party Payments,Private Contractor Fees,Revenue
Walsall Council,http://opendatacommunities.org/id/metropolitan-district-council/walsall,WC 60 - 399,30/09/2015,Social Care & Inclusion,ASH GRANGE CARE HOME,23/09/2015,"1,988.20",73373-RESIDENTIAL & NURSING CARE PLACEMENTS,Third Party Payments,Private Contractor Fees,Revenue
Walsall Council,http://opendatacommunities.org/id/metropolitan-district-council/walsall,WC 60 - 400,30/09/2015,Social Care & Inclusion,ASH GRANGE CARE HOME,23/09/2015,"1,988.20",73373-RESIDENTIAL & NURSING CARE PLACEMENTS,Third Party Payments,Private Contractor Fees,Revenue
Walsall Council,http://opendatacommunities.org/id/metropolitan-district-council/walsall,WC 60 - 401,30/09/2015,Social Care & Inclusion,ASH GRANGE CARE HOME,23/09/2015,"2,065.64",73373-RESIDENTIAL & NURSING CARE PLACEMENTS,Third Party Payments,Private Contractor Fees,Revenue
Walsall Council,http://opendatacommunities.org/id/metropolitan-district-council/walsall,WC 60 - 402,30/09/2015,Social Care & Inclusion,ASH GRANGE CARE HOME,09/09/2015,"2,130.22",73373-RESIDENTIAL & NURSING CARE PLACEMENTS,Third Party Payments,Private Contractor Fees,Revenue
Walsall Council,http://opendatacommunities.org/id/metropolitan-district-council/walsall,WC 60 - 403,30/09/2015,Social Care & Inclusion,ASH GRANGE CARE HOME,25/09/2015,"2,130.22",73373-RESIDENTIAL & NURSING CARE PLACEMENTS,Third Party Payments,Private Contractor Fees,Revenue
Walsall Council,http://opendatacommunities.org/id/metropolitan-district-council/walsall,WC 60 - 404,30/09/2015,Social Care & Inclusion,ASH GRANGE CARE HOME,09/09/2015,"2,201.22",73373-RESIDENTIAL & NURSING CARE PLACEMENTS,Third Party Payments,Private Contractor Fees,Revenue
Walsall Council,http://opendatacommunities.org/id/metropolitan-district-council/walsall,WC 60 - 405,30/09/2015,Social Care & Inclusion,ASH GRANGE CARE HOME,25/09/2015,"2,201.22",73373-RESIDENTIAL & NURSING CARE PLACEMENTS,Third Party Payments,Private Contractor Fees,Revenue
Walsall Council,http://opendatacommunities.org/id/metropolitan-district-council/walsall,WC 60 - 406,30/09/2015,Social Care & Inclusion,ASH GRANGE CARE HOME,15/09/2015,"2,943.72",73373-RESIDENTIAL & NURSING CARE PLACEMENTS,Third Party Payments,Private Contractor Fees,Revenue
Walsall Council,http://opendatacommunities.org/id/metropolitan-district-council/walsall,WC 60 - 407,30/09/2015,Social Care & Inclusion,ASH GRANGE CARE HOME,09/09/2015,"14,700.00",73019-PSE'S-PRIV CONTRACTOR FEES,Third Party Payments,Private Contractor Fees,Revenue
Walsall Council,http://opendatacommunities.org/id/metropolitan-district-council/walsall,WC 60 - 408,30/09/2015,Social Care & Inclusion,ASHBOURNE LODGE,15/09/2015,"2,126.16",73373-RESIDENTIAL & NURSING CARE PLACEMENTS,Third Party Payments,Private Contractor Fees,Revenue
Walsall Council,http://opendatacommunities.org/id/metropolitan-district-council/walsall,WC 60 - 409,30/09/2015,Economy & Environment,ASHTON ENGINEERING CO LTD,02/09/2015,305.50,60500-GENERAL MATERIALS,Supplies & Services,"Equip,Furniture & Materials",Revenue
Walsall Council,http://opendatacommunities.org/id/metropolitan-district-council/walsall,WC 60 - 410,30/09/2015,Economy & Environment,ASHTON ENGINEERING CO LTD,15/09/2015,624.35,60006-NEW-FURNITURE & EQUIPMENT,Supplies & Services,"Equip,Furniture & Materials",Revenue
Walsall Council,http://opendatacommunities.org/id/metropolitan-district-council/walsall,WC 60 - 411,30/09/2015,Economy & Environment,ASKEWS AND HOLTS LIBRARY SERVICES LTD,28/09/2015,250.86,60501-LIBRARY BOOKS,Supplies & Services,"Equip,Furniture & Materials",Revenue
Walsall Council,http://opendatacommunities.org/id/metropolitan-district-council/walsall,WC 60 - 412,30/09/2015,Economy & Environment,ASKEWS AND HOLTS LIBRARY SERVICES LTD,07/09/2015,256.50,60501-LIBRARY BOOKS,Supplies & Services,"Equip,Furniture & Materials",Revenue
Walsall Council,http://opendatacommunities.org/id/metropolitan-district-council/walsall,WC 60 - 413,30/09/2015,Economy & Environment,ASKEWS AND HOLTS LIBRARY SERVICES LTD,28/09/2015,257.14,60501-LIBRARY BOOKS,Supplies & Services,"Equip,Furniture & Materials",Revenue
Walsall Council,http://opendatacommunities.org/id/metropolitan-district-council/walsall,WC 60 - 414,30/09/2015,Economy & Environment,ASKEWS AND HOLTS LIBRARY SERVICES LTD,25/09/2015,263.61,60501-LIBRARY BOOKS,Supplies & Services,"Equip,Furniture & Materials",Revenue
Walsall Council,http://opendatacommunities.org/id/metropolitan-district-council/walsall,WC 60 - 415,30/09/2015,Economy & Environment,ASKEWS AND HOLTS LIBRARY SERVICES LTD,28/09/2015,264.35,60501-LIBRARY BOOKS,Supplies & Services,"Equip,Furniture & Materials",Revenue
Walsall Council,http://opendatacommunities.org/id/metropolitan-district-council/walsall,WC 60 - 416,30/09/2015,Economy & Environment,ASKEWS AND HOLTS LIBRARY SERVICES LTD,28/09/2015,274.71,60501-LIBRARY BOOKS,Supplies & Services,"Equip,Furniture & Materials",Revenue
Walsall Council,http://opendatacommunities.org/id/metropolitan-district-council/walsall,WC 60 - 417,30/09/2015,Economy & Environment,ASKEWS AND HOLTS LIBRARY SERVICES LTD,25/09/2015,284.48,60501-LIBRARY BOOKS,Supplies & Services,"Equip,Furniture & Materials",Revenue
Walsall Council,http://opendatacommunities.org/id/metropolitan-district-council/walsall,WC 60 - 418,30/09/2015,Economy & Environment,ASKEWS AND HOLTS LIBRARY SERVICES LTD,23/09/2015,286.48,60501-LIBRARY BOOKS,Supplies & Services,"Equip,Furniture & Materials",Revenue
Walsall Council,http://opendatacommunities.org/id/metropolitan-district-council/walsall,WC 60 - 419,30/09/2015,Economy & Environment,ASKEWS AND HOLTS LIBRARY SERVICES LTD,25/09/2015,303.45,60501-LIBRARY BOOKS,Supplies & Services,"Equip,Furniture & Materials",Revenue
Walsall Council,http://opendatacommunities.org/id/metropolitan-district-council/walsall,WC 60 - 420,30/09/2015,Economy & Environment,ASKEWS AND HOLTS LIBRARY SERVICES LTD,25/09/2015,309.54,60501-LIBRARY BOOKS,Supplies & Services,"Equip,Furniture & Materials",Revenue
Walsall Council,http://opendatacommunities.org/id/metropolitan-district-council/walsall,WC 60 - 421,30/09/2015,Economy & Environment,ASKEWS AND HOLTS LIBRARY SERVICES LTD,29/09/2015,316.59,60501-LIBRARY BOOKS,Supplies & Services,"Equip,Furniture & Materials",Revenue
Walsall Council,http://opendatacommunities.org/id/metropolitan-district-council/walsall,WC 60 - 422,30/09/2015,Economy & Environment,ASKEWS AND HOLTS LIBRARY SERVICES LTD,22/09/2015,573.53,60501-LIBRARY BOOKS,Supplies & Services,"Equip,Furniture & Materials",Revenue
Walsall Council,http://opendatacommunities.org/id/metropolitan-district-council/walsall,WC 60 - 423,30/09/2015,Economy & Environment,ASKEWS AND HOLTS LIBRARY SERVICES LTD,09/09/2015,582.95,60501-LIBRARY BOOKS,Supplies & Services,"Equip,Furniture & Materials",Revenue
Walsall Council,http://opendatacommunities.org/id/metropolitan-district-council/walsall,WC 60 - 424,30/09/2015,Economy & Environment,ASKEWS AND HOLTS LIBRARY SERVICES LTD,25/09/2015,623.73,60501-LIBRARY BOOKS,Supplies & Services,"Equip,Furniture & Materials",Revenue
Walsall Council,http://opendatacommunities.org/id/metropolitan-district-council/walsall,WC 60 - 425,30/09/2015,Economy & Environment,ASKEWS AND HOLTS LIBRARY SERVICES LTD,29/09/2015,663.30,60501-LIBRARY BOOKS,Supplies & Services,"Equip,Furniture & Materials",Revenue
Walsall Council,http://opendatacommunities.org/id/metropolitan-district-council/walsall,WC 60 - 426,30/09/2015,Economy & Environment,ASKEWS AND HOLTS LIBRARY SERVICES LTD,25/09/2015,696.89,60501-LIBRARY BOOKS,Supplies & Services,"Equip,Furniture & Materials",Revenue
Walsall Council,http://opendatacommunities.org/id/metropolitan-district-council/walsall,WC 60 - 427,30/09/2015,Economy & Environment,ASKEWS AND HOLTS LIBRARY SERVICES LTD,29/09/2015,701.68,60501-LIBRARY BOOKS,Supplies & Services,"Equip,Furniture & Materials",Revenue
Walsall Council,http://opendatacommunities.org/id/metropolitan-district-council/walsall,WC 60 - 428,30/09/2015,Economy & Environment,ASKEWS AND HOLTS LIBRARY SERVICES LTD,29/09/2015,716.53,60501-LIBRARY BOOKS,Supplies & Services,"Equip,Furniture & Materials",Revenue
Walsall Council,http://opendatacommunities.org/id/metropolitan-district-council/walsall,WC 60 - 429,30/09/2015,Economy & Environment,ASKEWS AND HOLTS LIBRARY SERVICES LTD,10/09/2015,746.27,60501-LIBRARY BOOKS,Supplies & Services,"Equip,Furniture & Materials",Revenue
Walsall Council,http://opendatacommunities.org/id/metropolitan-district-council/walsall,WC 60 - 430,30/09/2015,Economy & Environment,ASKEWS AND HOLTS LIBRARY SERVICES LTD,25/09/2015,772.96,60501-LIBRARY BOOKS,Supplies & Services,"Equip,Furniture & Materials",Revenue
Walsall Council,http://opendatacommunities.org/id/metropolitan-district-council/walsall,WC 60 - 431,30/09/2015,Economy & Environment,ASKEWS AND HOLTS LIBRARY SERVICES LTD,10/09/2015,868.11,60501-LIBRARY BOOKS,Supplies & Services,"Equip,Furniture & Materials",Revenue
Walsall Council,http://opendatacommunities.org/id/metropolitan-district-council/walsall,WC 60 - 432,30/09/2015,Economy & Environment,ASKEWS AND HOLTS LIBRARY SERVICES LTD,14/09/2015,900.63,60501-LIBRARY BOOKS,Supplies & Services,"Equip,Furniture & Materials",Revenue
Walsall Council,http://opendatacommunities.org/id/metropolitan-district-council/walsall,WC 60 - 433,30/09/2015,Social Care & Inclusion,REDACTED,14/09/2015,616.25,76422-DIRECT PAYMENTS TO SOCIAL SERVICES CLIENTS,Transfer Payments,Transfer Payments,Revenue
Walsall Council,http://opendatacommunities.org/id/metropolitan-district-council/walsall,WC 60 - 434,30/09/2015,Social Care & Inclusion,ASN FIRST AID & HYGIENE LTD,16/09/2015,363.50,60520-HEALTH & SAFETY-MATERIALS,Supplies & Services,"Equip,Furniture & Materials",Revenue
Walsall Council,http://opendatacommunities.org/id/metropolitan-district-council/walsall,WC 60 - 435,30/09/2015,Social Care & Inclusion,ASN FIRST AID & HYGIENE LTD,16/09/2015,394.00,60520-HEALTH & SAFETY-MATERIALS,Supplies & Services,"Equip,Furniture & Materials",Revenue
Walsall Council,http://opendatacommunities.org/id/metropolitan-district-council/walsall,WC 60 - 436,30/09/2015,Childrens,ASTON CHILDRENS CARE,29/09/2015,"10,285.50",74036-EXTERNAL RESIDENTIAL CARE-OTH AGENCY PROVISION,Third Party Payments,Private Contractor Fees,Revenue
Walsall Council,http://opendatacommunities.org/id/metropolitan-district-council/walsall,WC 60 - 437,30/09/2015,Economy & Environment,ATHWAL NEWS LTD,29/09/2015,496.07,60501-LIBRARY BOOKS,Supplies & Services,"Equip,Furniture & Materials",Revenue
Walsall Council,http://opendatacommunities.org/id/metropolitan-district-council/walsall,WC 60 - 438,30/09/2015,Economy & Environment,ATHWAL NEWS LTD,14/09/2015,524.92,60501-LIBRARY BOOKS,Supplies & Services,"Equip,Furniture & Materials",Revenue
Walsall Council,http://opendatacommunities.org/id/metropolitan-district-council/walsall,WC 60 - 439,30/09/2015,Economy & Environment,AURORAS CARNIVAL,14/09/2015,275.00,32000-MISC FEES AND EXPENSES,Employees,Other Staff Costs,Revenue
Walsall Council,http://opendatacommunities.org/id/metropolitan-district-council/walsall,WC 60 - 440,30/09/2015,Economy & Environment,AURORAS CARNIVAL,14/09/2015,345.00,32000-MISC FEES AND EXPENSES,Employees,Other Staff Costs,Revenue
Walsall Council,http://opendatacommunities.org/id/metropolitan-district-council/walsall,WC 60 - 441,30/09/2015,Social Care & Inclusion,AUTISM WEST MIDLANDS,23/09/2015,"7,314.45",73373-RESIDENTIAL & NURSING CARE PLACEMENTS,Third Party Payments,Private Contractor Fees,Revenue
Walsall Council,http://opendatacommunities.org/id/metropolitan-district-council/walsall,WC 60 - 442,30/09/2015,Social Care & Inclusion,AUTISM WEST MIDLANDS,23/09/2015,"8,362.62",73373-RESIDENTIAL & NURSING CARE PLACEMENTS,Third Party Payments,Private Contractor Fees,Revenue
Walsall Council,http://opendatacommunities.org/id/metropolitan-district-council/walsall,WC 60 - 443,30/09/2015,Social Care & Inclusion,AUTISM WEST MIDLANDS 001,09/09/2015,"10,321.52",73373-RESIDENTIAL & NURSING CARE PLACEMENTS,Third Party Payments,Private Contractor Fees,Revenue
Walsall Council,http://opendatacommunities.org/id/metropolitan-district-council/walsall,WC 60 - 444,30/09/2015,Social Care & Inclusion,REDACTED,14/09/2015,971.25,76422-DIRECT PAYMENTS TO SOCIAL SERVICES CLIENTS,Transfer Payments,Transfer Payments,Revenue
Walsall Council,http://opendatacommunities.org/id/metropolitan-district-council/walsall,WC 60 - 445,30/09/2015,Economy & Environment,AWKEYE,15/09/2015,652.12,60006-NEW-FURNITURE & EQUIPMENT,Supplies & Services,"Equip,Furniture & Materials",Revenue
Walsall Council,http://opendatacommunities.org/id/metropolitan-district-council/walsall,WC 60 - 446,30/09/2015,Economy & Environment,AXIELL LIMITED,08/09/2015,732.06,63000-PROFESSIONAL FEES AND SERVICES,Supplies & Services,Services,Revenue
Walsall Council,http://opendatacommunities.org/id/metropolitan-district-council/walsall,WC 60 - 447,30/09/2015,Childrens,AXIOM BUILDING SOLUTIONS LTD,28/09/2015,"18,270.00",01006-SITE WORKS MAIN CONTRACTORS,Capital,Capital,Capital
Walsall Council,http://opendatacommunities.org/id/metropolitan-district-council/walsall,WC 60 - 448,30/09/2015,Childrens,REDACTED,14/09/2015,"1,605.00",76422-DIRECT PAYMENTS TO SOCIAL SERVICES CLIENTS,Transfer Payments,Transfer Payments,Revenue
Walsall Council,http://opendatacommunities.org/id/metropolitan-district-council/walsall,WC 60 - 449,30/09/2015,Social Care & Inclusion,REDACTED,14/09/2015,"3,315.00",76422-DIRECT PAYMENTS TO SOCIAL SERVICES CLIENTS,Transfer Payments,Transfer Payments,Revenue
Walsall Council,http://opendatacommunities.org/id/metropolitan-district-council/walsall,WC 60 - 450,30/09/2015,Childrens,REDACTED,14/09/2015,906.76,62515-MISCELLANEOUS SUPPLIES,Supplies & Services,Other Supplies & Services,Revenue
Walsall Council,http://opendatacommunities.org/id/metropolitan-district-council/walsall,WC 60 - 451,30/09/2015,Childrens,REDACTED,14/09/2015,985.76,74006-HOLIDAY/CHRISTMAS ALLOWANCE-FOSTER CARERS-OTH AGENCY PROVISION,Third Party Payments,Private Contractor Fees,Revenue
Walsall Council,http://opendatacommunities.org/id/metropolitan-district-council/walsall,WC 60 - 452,30/09/2015,Childrens,REDACTED,14/09/2015,"1,445.32",62515-MISCELLANEOUS SUPPLIES,Supplies & Services,Other Supplies & Services,Revenue
Walsall Council,http://opendatacommunities.org/id/metropolitan-district-council/walsall,WC 60 - 453,30/09/2015,Childrens,REDACTED,14/09/2015,"2,957.28",74006-HOLIDAY/CHRISTMAS ALLOWANCE-FOSTER CARERS-OTH AGENCY PROVISION,Third Party Payments,Private Contractor Fees,Revenue
Walsall Council,http://opendatacommunities.org/id/metropolitan-district-council/walsall,WC 60 - 454,30/09/2015,Childrens,REDACTED,14/09/2015,305.15,73014-LEGAL FEES-PRIV CONTRACTOR FEES,Third Party Payments,Private Contractor Fees,Revenue
Walsall Council,http://opendatacommunities.org/id/metropolitan-district-council/walsall,WC 60 - 455,30/09/2015,Childrens,REDACTED,14/09/2015,342.92,73014-LEGAL FEES-PRIV CONTRACTOR FEES,Third Party Payments,Private Contractor Fees,Revenue
Walsall Council,http://opendatacommunities.org/id/metropolitan-district-council/walsall,WC 60 - 456,30/09/2015,Economy & Environment,BAART HARRIES NEWALL,09/09/2015,"4,000.00",01002-PROJECT FEES,Capital,Capital,Capital
Walsall Council,http://opendatacommunities.org/id/metropolitan-district-council/walsall,WC 60 - 457,30/09/2015,Social Care & Inclusion,REDACTED,14/09/2015,"1,079.00",76422-DIRECT PAYMENTS TO SOCIAL SERVICES CLIENTS,Transfer Payments,Transfer Payments,Revenue
Walsall Council,http://opendatacommunities.org/id/metropolitan-district-council/walsall,WC 60 - 458,30/09/2015,Economy & Environment,BAKER HALL PARTNERSHIP,29/09/2015,"1,135.75",63248-SURVEYS & PROF SERVICES-PAYMENT TO CONTRACTOR,Supplies & Services,Services,Revenue
Walsall Council,http://opendatacommunities.org/id/metropolitan-district-council/walsall,WC 60 - 459,30/09/2015,Social Care & Inclusion,REDACTED,14/09/2015,"3,562.40",76422-DIRECT PAYMENTS TO SOCIAL SERVICES CLIENTS,Transfer Payments,Transfer Payments,Revenue
Walsall Council,http://opendatacommunities.org/id/metropolitan-district-council/walsall,WC 60 - 460,30/09/2015,Change and Governance,BALTIMORE AIRCOIL INTERNATIONAL NV,07/09/2015,685.00,"40000-REPAIRS,ALTERATIONS & MAINTENANCE-PREM",Premises,Premises-Repairs & Maintenance,Revenue
Walsall Council,http://opendatacommunities.org/id/metropolitan-district-council/walsall,WC 60 - 461,30/09/2015,Social Care & Inclusion,REDACTED,15/09/2015,450.00,76422-DIRECT PAYMENTS TO SOCIAL SERVICES CLIENTS,Transfer Payments,Transfer Payments,Revenue
Walsall Council,http://opendatacommunities.org/id/metropolitan-district-council/walsall,WC 60 - 462,30/09/2015,Social Care & Inclusion,REDACTED,15/09/2015,775.00,76422-DIRECT PAYMENTS TO SOCIAL SERVICES CLIENTS,Transfer Payments,Transfer Payments,Revenue
Walsall Council,http://opendatacommunities.org/id/metropolitan-district-council/walsall,WC 60 - 463,30/09/2015,Social Care & Inclusion,REDACTED,14/09/2015,"1,610.00",76422-DIRECT PAYMENTS TO SOCIAL SERVICES CLIENTS,Transfer Payments,Transfer Payments,Revenue
Walsall Council,http://opendatacommunities.org/id/metropolitan-district-council/walsall,WC 60 - 464,30/09/2015,Social Care & Inclusion,REDACTED,14/09/2015,"1,978.58",76422-DIRECT PAYMENTS TO SOCIAL SERVICES CLIENTS,Transfer Payments,Transfer Payments,Revenue
Walsall Council,http://opendatacommunities.org/id/metropolitan-district-council/walsall,WC 60 - 465,30/09/2015,Social Care & Inclusion,REDACTED,14/09/2015,"1,920.10",76422-DIRECT PAYMENTS TO SOCIAL SERVICES CLIENTS,Transfer Payments,Transfer Payments,Revenue
Walsall Council,http://opendatacommunities.org/id/metropolitan-district-council/walsall,WC 60 - 466,30/09/2015,Social Care & Inclusion,REDACTED,14/09/2015,790.65,76422-DIRECT PAYMENTS TO SOCIAL SERVICES CLIENTS,Transfer Payments,Transfer Payments,Revenue
Walsall Council,http://opendatacommunities.org/id/metropolitan-district-council/walsall,WC 60 - 467,30/09/2015,Economy & Environment,BARBOUR LOGIC LIMITED,28/09/2015,"7,837.50",73025-PROFESSIONAL SERVICES-PRIV CONTRACTOR & OTHER AGENCIES,Third Party Payments,Private Contractor Fees,Revenue
Walsall Council,http://opendatacommunities.org/id/metropolitan-district-council/walsall,WC 60 - 468,30/09/2015,Economy & Environment,BARHALE PLC,23/09/2015,540.00,30030-EXTERNAL TRAINING,Employees,Training,Revenue
Walsall Council,http://opendatacommunities.org/id/metropolitan-district-council/walsall,WC 60 - 469,30/09/2015,Economy & Environment,BARHALE PLC,28/09/2015,540.00,30030-EXTERNAL TRAINING,Employees,Training,Revenue
Walsall Council,http://opendatacommunities.org/id/metropolitan-district-council/walsall,WC 60 - 470,30/09/2015,Change and Governance,BARNARD & WESTWOOD LIMITED,29/09/2015,463.24,62000-EXTERNAL PRINTING SERVICES,Supplies & Services,"Printing, Stationery & Office Exp",Revenue
Walsall Council,http://opendatacommunities.org/id/metropolitan-district-council/walsall,WC 60 - 471,30/09/2015,Childrens,BARNARDOS SERVICES LTD,15/09/2015,600.00,63000-PROFESSIONAL FEES AND SERVICES,Supplies & Services,Services,Revenue
Walsall Council,http://opendatacommunities.org/id/metropolitan-district-council/walsall,WC 60 - 472,30/09/2015,Childrens,BARNARDOS SERVICES LTD,14/09/2015,"4,478.57",74037-INDEPENDENT FOSTER CARE-OTH AGENCY PROVISION,Third Party Payments,Private Contractor Fees,Revenue
Walsall Council,http://opendatacommunities.org/id/metropolitan-district-council/walsall,WC 60 - 473,30/09/2015,Childrens,BARNARDOS SERVICES LTD,10/09/2015,"4,627.86",74037-INDEPENDENT FOSTER CARE-OTH AGENCY PROVISION,Third Party Payments,Private Contractor Fees,Revenue
Walsall Council,http://opendatacommunities.org/id/metropolitan-district-council/walsall,WC 60 - 474,30/09/2015,Childrens,BARR BEACON SCHOOL TRUST,07/09/2015,"5,642.28",66502-TOP UP FUNDING -GRANTS TO SCHOOLS,Third Party Payments,Grants to Other Orgs,Revenue
Walsall Council,http://opendatacommunities.org/id/metropolitan-district-council/walsall,WC 60 - 475,30/09/2015,Childrens,BEADEN POWERLEC LIMITED,21/09/2015,"49,433.48",01006-SITE WORKS MAIN CONTRACTORS,Capital,Capital,Capital
Walsall Council,http://opendatacommunities.org/id/metropolitan-district-council/walsall,WC 60 - 476,30/09/2015,Childrens,REDACTED,14/09/2015,"1,228.69",62515-MISCELLANEOUS SUPPLIES,Supplies & Services,Other Supplies & Services,Revenue
Walsall Council,http://opendatacommunities.org/id/metropolitan-district-council/walsall,WC 60 - 477,30/09/2015,Childrens,REDACTED,14/09/2015,"1,301.84",74006-HOLIDAY/CHRISTMAS ALLOWANCE-FOSTER CARERS-OTH AGENCY PROVISION,Third Party Payments,Private Contractor Fees,Revenue
Walsall Council,http://opendatacommunities.org/id/metropolitan-district-council/walsall,WC 60 - 478,30/09/2015,Social Care & Inclusion,BEARWOOD NURSING HOME LTD,15/09/2015,"1,527.60",73373-RESIDENTIAL & NURSING CARE PLACEMENTS,Third Party Payments,Private Contractor Fees,Revenue
Walsall Council,http://opendatacommunities.org/id/metropolitan-district-council/walsall,WC 60 - 479,30/09/2015,Social Care & Inclusion,BEARWOOD NURSING HOME LTD,15/09/2015,"1,527.60",73373-RESIDENTIAL & NURSING CARE PLACEMENTS,Third Party Payments,Private Contractor Fees,Revenue
Walsall Council,http://opendatacommunities.org/id/metropolitan-district-council/walsall,WC 60 - 480,30/09/2015,Social Care & Inclusion,REDACTED,14/09/2015,802.20,76422-DIRECT PAYMENTS TO SOCIAL SERVICES CLIENTS,Transfer Payments,Transfer Payments,Revenue
Walsall Council,http://opendatacommunities.org/id/metropolitan-district-council/walsall,WC 60 - 481,30/09/2015,Economy & Environment,BEAVER 84 LTD,28/09/2015,305.00,62523-EVENTS,Supplies & Services,Other Supplies & Services,Revenue
Walsall Council,http://opendatacommunities.org/id/metropolitan-district-council/walsall,WC 60 - 482,30/09/2015,Childrens,REDACTED,04/09/2015,"2,669.94",66505-OTHER-GRANTS TO OTHER ORGS,Third Party Payments,Grants to Other Orgs,Revenue
Walsall Council,http://opendatacommunities.org/id/metropolitan-district-council/walsall,WC 60 - 483,30/09/2015,Childrens,REDACTED,14/09/2015,497.80,62515-MISCELLANEOUS SUPPLIES,Supplies & Services,Other Supplies & Services,Revenue
Walsall Council,http://opendatacommunities.org/id/metropolitan-district-council/walsall,WC 60 - 484,30/09/2015,Childrens,REDACTED,14/09/2015,857.16,74006-HOLIDAY/CHRISTMAS ALLOWANCE-FOSTER CARERS-OTH AGENCY PROVISION,Third Party Payments,Private Contractor Fees,Revenue
Walsall Council,http://opendatacommunities.org/id/metropolitan-district-council/walsall,WC 60 - 485,30/09/2015,Social Care & Inclusion,BELLEVUE COURT CARE HOME,09/09/2015,"1,532.96",73373-RESIDENTIAL & NURSING CARE PLACEMENTS,Third Party Payments,Private Contractor Fees,Revenue
Walsall Council,http://opendatacommunities.org/id/metropolitan-district-council/walsall,WC 60 - 486,30/09/2015,Social Care & Inclusion,BELLEVUE COURT CARE HOME,15/09/2015,"1,532.96",73373-RESIDENTIAL & NURSING CARE PLACEMENTS,Third Party Payments,Private Contractor Fees,Revenue
Walsall Council,http://opendatacommunities.org/id/metropolitan-district-council/walsall,WC 60 - 487,30/09/2015,Social Care & Inclusion,BELLEVUE COURT CARE HOME,09/09/2015,"1,540.20",73373-RESIDENTIAL & NURSING CARE PLACEMENTS,Third Party Payments,Private Contractor Fees,Revenue
Walsall Council,http://opendatacommunities.org/id/metropolitan-district-council/walsall,WC 60 - 488,30/09/2015,Social Care & Inclusion,BELLEVUE COURT CARE HOME,15/09/2015,"1,540.20",73373-RESIDENTIAL & NURSING CARE PLACEMENTS,Third Party Payments,Private Contractor Fees,Revenue
Walsall Council,http://opendatacommunities.org/id/metropolitan-district-council/walsall,WC 60 - 489,30/09/2015,Social Care & Inclusion,BELLEVUE COURT CARE HOME,09/09/2015,"1,577.52",73373-RESIDENTIAL & NURSING CARE PLACEMENTS,Third Party Payments,Private Contractor Fees,Revenue
Walsall Council,http://opendatacommunities.org/id/metropolitan-district-council/walsall,WC 60 - 490,30/09/2015,Social Care & Inclusion,BELLEVUE COURT CARE HOME,15/09/2015,"1,577.52",73373-RESIDENTIAL & NURSING CARE PLACEMENTS,Third Party Payments,Private Contractor Fees,Revenue
Walsall Council,http://opendatacommunities.org/id/metropolitan-district-council/walsall,WC 60 - 491,30/09/2015,Social Care & Inclusion,REDACTED,14/09/2015,"2,756.25",76422-DIRECT PAYMENTS TO SOCIAL SERVICES CLIENTS,Transfer Payments,Transfer Payments,Revenue
Walsall Council,http://opendatacommunities.org/id/metropolitan-district-council/walsall,WC 60 - 492,30/09/2015,Economy & Environment,BENTLEY MILL WAY ALLOTMENTS ASSOCIATION,07/09/2015,755.00,66500-GRANTS TO OTHER ORGS,Third Party Payments,Grants to Other Orgs,Revenue
Walsall Council,http://opendatacommunities.org/id/metropolitan-district-council/walsall,WC 60 - 493,30/09/2015,Social Care & Inclusion,REDACTED,14/09/2015,530.70,76422-DIRECT PAYMENTS TO SOCIAL SERVICES CLIENTS,Transfer Payments,Transfer Payments,Revenue
Walsall Council,http://opendatacommunities.org/id/metropolitan-district-council/walsall,WC 60 - 494,30/09/2015,Social Care & Inclusion,REDACTED,14/09/2015,"1,140.00",76422-DIRECT PAYMENTS TO SOCIAL SERVICES CLIENTS,Transfer Payments,Transfer Payments,Revenue
Walsall Council,http://opendatacommunities.org/id/metropolitan-district-council/walsall,WC 60 - 495,30/09/2015,Childrens,REDACTED,14/09/2015,"1,045.32",62515-MISCELLANEOUS SUPPLIES,Supplies & Services,Other Supplies & Services,Revenue
Walsall Council,http://opendatacommunities.org/id/metropolitan-district-council/walsall,WC 60 - 496,30/09/2015,Childrens,REDACTED,14/09/2015,"1,142.88",74006-HOLIDAY/CHRISTMAS ALLOWANCE-FOSTER CARERS-OTH AGENCY PROVISION,Third Party Payments,Private Contractor Fees,Revenue
Walsall Council,http://opendatacommunities.org/id/metropolitan-district-council/walsall,WC 60 - 497,30/09/2015,Social Care & Inclusion,REDACTED,14/09/2015,"1,210.00",76422-DIRECT PAYMENTS TO SOCIAL SERVICES CLIENTS,Transfer Payments,Transfer Payments,Revenue
Walsall Council,http://opendatacommunities.org/id/metropolitan-district-council/walsall,WC 60 - 498,30/09/2015,Social Care & Inclusion,BESCOT LODGE RESIDENTIAL CARE HOME,23/09/2015,-448.18,73373-RESIDENTIAL & NURSING CARE PLACEMENTS,Third Party Payments,Private Contractor Fees,Revenue
Walsall Council,http://opendatacommunities.org/id/metropolitan-district-council/walsall,WC 60 - 499,30/09/2015,Social Care & Inclusion,BESCOT LODGE RESIDENTIAL CARE HOME,01/09/2015,736.12,73373-RESIDENTIAL & NURSING CARE PLACEMENTS,Third Party Payments,Private Contractor Fees,Revenue
Walsall Council,http://opendatacommunities.org/id/metropolitan-district-council/walsall,WC 60 - 500,30/09/2015,Social Care & Inclusion,BESCOT LODGE RESIDENTIAL CARE HOME,15/09/2015,"1,599.90",73373-RESIDENTIAL & NURSING CARE PLACEMENTS,Third Party Payments,Private Contractor Fees,Revenue
Walsall Council,http://opendatacommunities.org/id/metropolitan-district-council/walsall,WC 60 - 501,30/09/2015,Social Care & Inclusion,BESCOT LODGE RESIDENTIAL CARE HOME,15/09/2015,"1,599.90",73373-RESIDENTIAL & NURSING CARE PLACEMENTS,Third Party Payments,Private Contractor Fees,Revenue
Walsall Council,http://opendatacommunities.org/id/metropolitan-district-council/walsall,WC 60 - 502,30/09/2015,Social Care & Inclusion,BESCOT LODGE RESIDENTIAL CARE HOME,23/09/2015,"1,599.90",73373-RESIDENTIAL & NURSING CARE PLACEMENTS,Third Party Payments,Private Contractor Fees,Revenue
Walsall Council,http://opendatacommunities.org/id/metropolitan-district-council/walsall,WC 60 - 503,30/09/2015,Social Care & Inclusion,BESCOT LODGE RESIDENTIAL CARE HOME,01/09/2015,"1,653.23",73373-RESIDENTIAL & NURSING CARE PLACEMENTS,Third Party Payments,Private Contractor Fees,Revenue
Walsall Council,http://opendatacommunities.org/id/metropolitan-district-council/walsall,WC 60 - 504,30/09/2015,Social Care & Inclusion,BESCOT LODGE RESIDENTIAL CARE HOME,15/09/2015,"1,680.69",73373-RESIDENTIAL & NURSING CARE PLACEMENTS,Third Party Payments,Private Contractor Fees,Revenue
Walsall Council,http://opendatacommunities.org/id/metropolitan-district-council/walsall,WC 60 - 505,30/09/2015,Social Care & Inclusion,BESCOT LODGE RESIDENTIAL CARE HOME,15/09/2015,"1,680.69",73373-RESIDENTIAL & NURSING CARE PLACEMENTS,Third Party Payments,Private Contractor Fees,Revenue
Walsall Council,http://opendatacommunities.org/id/metropolitan-district-council/walsall,WC 60 - 506,30/09/2015,Social Care & Inclusion,BESCOT LODGE RESIDENTIAL CARE HOME,15/09/2015,"1,680.69",73373-RESIDENTIAL & NURSING CARE PLACEMENTS,Third Party Payments,Private Contractor Fees,Revenue
Walsall Council,http://opendatacommunities.org/id/metropolitan-district-council/walsall,WC 60 - 507,30/09/2015,Social Care & Inclusion,BESCOT LODGE RESIDENTIAL CARE HOME,15/09/2015,"1,698.73",73373-RESIDENTIAL & NURSING CARE PLACEMENTS,Third Party Payments,Private Contractor Fees,Revenue
Walsall Council,http://opendatacommunities.org/id/metropolitan-district-council/walsall,WC 60 - 508,30/09/2015,Social Care & Inclusion,BESCOT LODGE RESIDENTIAL CARE HOME,09/09/2015,"1,736.71",73373-RESIDENTIAL & NURSING CARE PLACEMENTS,Third Party Payments,Private Contractor Fees,Revenue
Walsall Council,http://opendatacommunities.org/id/metropolitan-district-council/walsall,WC 60 - 509,30/09/2015,Social Care & Inclusion,BESCOT LODGE RESIDENTIAL CARE HOME,09/09/2015,"1,848.75",73373-RESIDENTIAL & NURSING CARE PLACEMENTS,Third Party Payments,Private Contractor Fees,Revenue
Walsall Council,http://opendatacommunities.org/id/metropolitan-district-council/walsall,WC 60 - 510,30/09/2015,Economy & Environment,BESCOT STADIUM SUNDAY MARKET LTD,23/09/2015,"2,800.00",73025-PROFESSIONAL SERVICES-PRIV CONTRACTOR & OTHER AGENCIES,Third Party Payments,Private Contractor Fees,Revenue
Walsall Council,http://opendatacommunities.org/id/metropolitan-district-council/walsall,WC 60 - 511,30/09/2015,Social Care & Inclusion,BESWICK HOUSE SUPPORTED ACCOMMODATION LTD,28/09/2015,"15,045.79",73365-BLOCK GROSS-SUPPORTING PEOPLE,Third Party Payments,Private Contractor Fees,Revenue
Walsall Council,http://opendatacommunities.org/id/metropolitan-district-council/walsall,WC 60 - 512,30/09/2015,Social Care & Inclusion,BETHPHAGE.,11/09/2015,650.00,73374-SUPPORTED & OTHER ACCOMMODATION,Third Party Payments,Private Contractor Fees,Revenue
Walsall Council,http://opendatacommunities.org/id/metropolitan-district-council/walsall,WC 60 - 513,30/09/2015,Social Care & Inclusion,BETHPHAGE.,25/09/2015,650.00,73374-SUPPORTED & OTHER ACCOMMODATION,Third Party Payments,Private Contractor Fees,Revenue
Walsall Council,http://opendatacommunities.org/id/metropolitan-district-council/walsall,WC 60 - 514,30/09/2015,Social Care & Inclusion,BETHPHAGE.,11/09/2015,"1,411.02",73374-SUPPORTED & OTHER ACCOMMODATION,Third Party Payments,Private Contractor Fees,Revenue
Walsall Council,http://opendatacommunities.org/id/metropolitan-district-council/walsall,WC 60 - 515,30/09/2015,Social Care & Inclusion,BETHPHAGE.,11/09/2015,"1,439.24",73374-SUPPORTED & OTHER ACCOMMODATION,Third Party Payments,Private Contractor Fees,Revenue
Walsall Council,http://opendatacommunities.org/id/metropolitan-district-council/walsall,WC 60 - 516,30/09/2015,Social Care & Inclusion,BETHPHAGE.,11/09/2015,"1,768.00",73374-SUPPORTED & OTHER ACCOMMODATION,Third Party Payments,Private Contractor Fees,Revenue
Walsall Council,http://opendatacommunities.org/id/metropolitan-district-council/walsall,WC 60 - 517,30/09/2015,Social Care & Inclusion,BETHPHAGE.,25/09/2015,"1,768.00",73374-SUPPORTED & OTHER ACCOMMODATION,Third Party Payments,Private Contractor Fees,Revenue
Walsall Council,http://opendatacommunities.org/id/metropolitan-district-council/walsall,WC 60 - 518,30/09/2015,Social Care & Inclusion,BETHPHAGE.,29/09/2015,"2,210.00",73374-SUPPORTED & OTHER ACCOMMODATION,Third Party Payments,Private Contractor Fees,Revenue
Walsall Council,http://opendatacommunities.org/id/metropolitan-district-council/walsall,WC 60 - 519,30/09/2015,Social Care & Inclusion,BETHPHAGE.,11/09/2015,"3,831.92",73374-SUPPORTED & OTHER ACCOMMODATION,Third Party Payments,Private Contractor Fees,Revenue
Walsall Council,http://opendatacommunities.org/id/metropolitan-district-council/walsall,WC 60 - 520,30/09/2015,Social Care & Inclusion,BETHPHAGE.,25/09/2015,"3,831.92",73372-DOMICILIARY CARE,Third Party Payments,Private Contractor Fees,Revenue
Walsall Council,http://opendatacommunities.org/id/metropolitan-district-council/walsall,WC 60 - 521,30/09/2015,Social Care & Inclusion,BETHPHAGE.,29/09/2015,"4,789.90",73374-SUPPORTED & OTHER ACCOMMODATION,Third Party Payments,Private Contractor Fees,Revenue
Walsall Council,http://opendatacommunities.org/id/metropolitan-district-council/walsall,WC 60 - 522,30/09/2015,Social Care & Inclusion,REDACTED,14/09/2015,"1,186.90",76422-DIRECT PAYMENTS TO SOCIAL SERVICES CLIENTS,Transfer Payments,Transfer Payments,Revenue
Walsall Council,http://opendatacommunities.org/id/metropolitan-district-council/walsall,WC 60 - 523,30/09/2015,Social Care & Inclusion,REDACTED,14/09/2015,"2,480.88",76422-DIRECT PAYMENTS TO SOCIAL SERVICES CLIENTS,Transfer Payments,Transfer Payments,Revenue
Walsall Council,http://opendatacommunities.org/id/metropolitan-district-council/walsall,WC 60 - 524,30/09/2015,Economy & Environment,BGPW LMA,07/09/2015,272.40,66500-GRANTS TO OTHER ORGS,Third Party Payments,Grants to Other Orgs,Revenue
Walsall Council,http://opendatacommunities.org/id/metropolitan-district-council/walsall,WC 60 - 525,30/09/2015,Economy & Environment,BIFFA WASTE SERVICES LTD,24/09/2015,692.72,73022-DISPOSAL & TRANSPORTATION OF CARDBOARD-PRIV CONTRACTOR FEES,Third Party Payments,Private Contractor Fees,Revenue
Walsall Council,http://opendatacommunities.org/id/metropolitan-district-council/walsall,WC 60 - 526,30/09/2015,Economy & Environment,BIFFA WASTE SERVICES LTD,02/09/2015,733.73,73005-LANDFILL PTYS-PRIV CONTRACTOR FEES,Third Party Payments,Private Contractor Fees,Revenue
Walsall Council,http://opendatacommunities.org/id/metropolitan-district-council/walsall,WC 60 - 527,30/09/2015,Economy & Environment,BIFFA WASTE SERVICES LTD,09/09/2015,950.70,73005-LANDFILL PTYS-PRIV CONTRACTOR FEES,Third Party Payments,Private Contractor Fees,Revenue
Walsall Council,http://opendatacommunities.org/id/metropolitan-district-council/walsall,WC 60 - 528,30/09/2015,Economy & Environment,BIFFA WASTE SERVICES LTD,24/09/2015,"1,118.18",73005-LANDFILL PTYS-PRIV CONTRACTOR FEES,Third Party Payments,Private Contractor Fees,Revenue
Walsall Council,http://opendatacommunities.org/id/metropolitan-district-council/walsall,WC 60 - 529,30/09/2015,Economy & Environment,BIFFA WASTE SERVICES LTD,25/09/2015,"1,285.69",73005-LANDFILL PTYS-PRIV CONTRACTOR FEES,Third Party Payments,Private Contractor Fees,Revenue
Walsall Council,http://opendatacommunities.org/id/metropolitan-district-council/walsall,WC 60 - 530,30/09/2015,Economy & Environment,BIFFA WASTE SERVICES LTD,24/09/2015,"4,324.94",73039-LANDFILL TAX-PRIV CONTRACTOR FEES,Third Party Payments,Private Contractor Fees,Revenue
Walsall Council,http://opendatacommunities.org/id/metropolitan-district-council/walsall,WC 60 - 531,30/09/2015,Economy & Environment,BIFFA WASTE SERVICES LTD,02/09/2015,"4,581.00",73039-LANDFILL TAX-PRIV CONTRACTOR FEES,Third Party Payments,Private Contractor Fees,Revenue
Walsall Council,http://opendatacommunities.org/id/metropolitan-district-council/walsall,WC 60 - 532,30/09/2015,Economy & Environment,BIFFA WASTE SERVICES LTD,09/09/2015,"5,935.64",73039-LANDFILL TAX-PRIV CONTRACTOR FEES,Third Party Payments,Private Contractor Fees,Revenue
Walsall Council,http://opendatacommunities.org/id/metropolitan-district-council/walsall,WC 60 - 533,30/09/2015,Economy & Environment,BIFFA WASTE SERVICES LTD,24/09/2015,"6,981.37",73039-LANDFILL TAX-PRIV CONTRACTOR FEES,Third Party Payments,Private Contractor Fees,Revenue
Walsall Council,http://opendatacommunities.org/id/metropolitan-district-council/walsall,WC 60 - 534,30/09/2015,Economy & Environment,BIFFA WASTE SERVICES LTD,25/09/2015,"8,027.07",73039-LANDFILL TAX-PRIV CONTRACTOR FEES,Third Party Payments,Private Contractor Fees,Revenue
Walsall Council,http://opendatacommunities.org/id/metropolitan-district-council/walsall,WC 60 - 535,30/09/2015,Childrens,REDACTED,14/09/2015,609.65,76422-DIRECT PAYMENTS TO SOCIAL SERVICES CLIENTS,Transfer Payments,Transfer Payments,Revenue
Walsall Council,http://opendatacommunities.org/id/metropolitan-district-council/walsall,WC 60 - 536,30/09/2015,Childrens,REDACTED,14/09/2015,671.50,76422-DIRECT PAYMENTS TO SOCIAL SERVICES CLIENTS,Transfer Payments,Transfer Payments,Revenue
Walsall Council,http://opendatacommunities.org/id/metropolitan-district-council/walsall,WC 60 - 537,30/09/2015,Childrens,BIRCHILLS C OF E COMMUNITY ACADEMY,22/09/2015,"8,499.84",66505-OTHER-GRANTS TO OTHER ORGS,Third Party Payments,Grants to Other Orgs,Revenue
Walsall Council,http://opendatacommunities.org/id/metropolitan-district-council/walsall,WC 60 - 538,30/09/2015,Childrens,BIRCHILLS C OF E COMMUNITY ACADEMY,01/09/2015,"10,038.42",66502-TOP UP FUNDING -GRANTS TO SCHOOLS,Third Party Payments,Grants to Other Orgs,Revenue
Walsall Council,http://opendatacommunities.org/id/metropolitan-district-council/walsall,WC 60 - 539,30/09/2015,Childrens,BIRMINGHAM CITY COUNCIL,21/09/2015,"6,199.06",74000-OTHER AGENCY FEES,Third Party Payments,Private Contractor Fees,Revenue
Walsall Council,http://opendatacommunities.org/id/metropolitan-district-council/walsall,WC 60 - 540,30/09/2015,Economy & Environment,BIRMINGHAM WOMENS NHS FOUNDATION TRUST,15/09/2015,850.00,74000-OTHER AGENCY FEES,Third Party Payments,Private Contractor Fees,Revenue
Walsall Council,http://opendatacommunities.org/id/metropolitan-district-council/walsall,WC 60 - 541,30/09/2015,Economy & Environment,BLACK COUNTRY CONSORTIUM LIMITED,29/09/2015,"1,232.43",63000-PROFESSIONAL FEES AND SERVICES,Supplies & Services,Services,Revenue
Walsall Council,http://opendatacommunities.org/id/metropolitan-district-council/walsall,WC 60 - 542,30/09/2015,Social Care & Inclusion,BLACK COUNTRY PARTNERSHIP NHS,09/09/2015,"264,038.00",71007-CONTRIBUTION TO PCT,Third Party Payments,Joint Arrangements,Revenue
Walsall Council,http://opendatacommunities.org/id/metropolitan-district-council/walsall,WC 60 - 543,30/09/2015,Economy & Environment,BLACK COUNTRY TOURING,25/09/2015,500.00,63000-PROFESSIONAL FEES AND SERVICES,Supplies & Services,Services,Revenue
Walsall Council,http://opendatacommunities.org/id/metropolitan-district-council/walsall,WC 60 - 544,30/09/2015,Childrens,BLAKENALL HEATH JMI SCHOOL,07/09/2015,"2,423.07",66502-TOP UP FUNDING -GRANTS TO SCHOOLS,Third Party Payments,Grants to Other Orgs,Revenue
Walsall Council,http://opendatacommunities.org/id/metropolitan-district-council/walsall,WC 60 - 545,30/09/2015,Childrens,BLAKENALL HEATH JMI SCHOOL,21/09/2015,"88,933.93",77300-ISB-FORMULA ALLOCATION,Transfer Payments,Transfer Payments,Revenue
Walsall Council,http://opendatacommunities.org/id/metropolitan-district-council/walsall,WC 60 - 546,30/09/2015,Economy & Environment,BLE SECURITY,17/09/2015,500.00,73025-PROFESSIONAL SERVICES-PRIV CONTRACTOR & OTHER AGENCIES,Third Party Payments,Private Contractor Fees,Revenue
Walsall Council,http://opendatacommunities.org/id/metropolitan-district-council/walsall,WC 60 - 547,30/09/2015,Childrens,BLOXWICH ACADEMY,07/09/2015,"4,846.14",66502-TOP UP FUNDING -GRANTS TO SCHOOLS,Third Party Payments,Grants to Other Orgs,Revenue
Walsall Council,http://opendatacommunities.org/id/metropolitan-district-council/walsall,WC 60 - 548,30/09/2015,Childrens,BLOXWICH ACADEMY,07/09/2015,"6,092.28",66502-TOP UP FUNDING -GRANTS TO SCHOOLS,Third Party Payments,Grants to Other Orgs,Revenue
Walsall Council,http://opendatacommunities.org/id/metropolitan-district-council/walsall,WC 60 - 549,30/09/2015,Childrens,BLOXWICH ACADEMY,22/09/2015,"9,652.30",66505-OTHER-GRANTS TO OTHER ORGS,Third Party Payments,Grants to Other Orgs,Revenue
Walsall Council,http://opendatacommunities.org/id/metropolitan-district-council/walsall,WC 60 - 550,30/09/2015,Change and Governance,BLOXWICH COMMUNITY PARTNERSHIP.,08/09/2015,277.49,62515-MISCELLANEOUS SUPPLIES,Supplies & Services,Other Supplies & Services,Revenue
Walsall Council,http://opendatacommunities.org/id/metropolitan-district-council/walsall,WC 60 - 551,30/09/2015,Change and Governance,BLOXWICH COMMUNITY PARTNERSHIP.,23/09/2015,"9,999.99",66500-GRANTS TO OTHER ORGS,Third Party Payments,Grants to Other Orgs,Revenue
Walsall Council,http://opendatacommunities.org/id/metropolitan-district-council/walsall,WC 60 - 552,30/09/2015,Economy & Environment,BLOXWICH HARDWARE & D I Y,11/09/2015,621.03,62515-MISCELLANEOUS SUPPLIES,Supplies & Services,Other Supplies & Services,Revenue
Walsall Council,http://opendatacommunities.org/id/metropolitan-district-council/walsall,WC 60 - 553,30/09/2015,Childrens,BLUE COAT CHURCH OF ENGLAND ACADEMY,07/09/2015,"6,542.28",66502-TOP UP FUNDING -GRANTS TO SCHOOLS,Third Party Payments,Grants to Other Orgs,Revenue
Walsall Council,http://opendatacommunities.org/id/metropolitan-district-council/walsall,WC 60 - 554,30/09/2015,Childrens,BLUE GIRAFFE CHILDCARE,02/09/2015,"3,672.71",66505-OTHER-GRANTS TO OTHER ORGS,Third Party Payments,Grants to Other Orgs,Revenue
Walsall Council,http://opendatacommunities.org/id/metropolitan-district-council/walsall,WC 60 - 555,30/09/2015,Childrens,BLUE GIRAFFE CHILDCARE,04/09/2015,"8,677.31",66505-OTHER-GRANTS TO OTHER ORGS,Third Party Payments,Grants to Other Orgs,Revenue
Walsall Council,http://opendatacommunities.org/id/metropolitan-district-council/walsall,WC 60 - 556,30/09/2015,Social Care & Inclusion,BNP PARIBAS LEASE GROUP,01/09/2015,479.74,60009-LEASING/HIRE/RENTAL-EQUIPMENT,Supplies & Services,"Equip,Furniture & Materials",Revenue
Walsall Council,http://opendatacommunities.org/id/metropolitan-district-council/walsall,WC 60 - 557,30/09/2015,Economy & Environment,BOC LTD,25/09/2015,285.80,60500-GENERAL MATERIALS,Supplies & Services,"Equip,Furniture & Materials",Revenue
Walsall Council,http://opendatacommunities.org/id/metropolitan-district-council/walsall,WC 60 - 558,30/09/2015,Social Care & Inclusion,BOLDMERE COURT CARE HOME,09/09/2015,"1,636.71",73373-RESIDENTIAL & NURSING CARE PLACEMENTS,Third Party Payments,Private Contractor Fees,Revenue
Walsall Council,http://opendatacommunities.org/id/metropolitan-district-council/walsall,WC 60 - 559,30/09/2015,Social Care & Inclusion,BOLDMERE COURT CARE HOME,09/09/2015,"1,636.71",73373-RESIDENTIAL & NURSING CARE PLACEMENTS,Third Party Payments,Private Contractor Fees,Revenue
Walsall Council,http://opendatacommunities.org/id/metropolitan-district-council/walsall,WC 60 - 560,30/09/2015,Social Care & Inclusion,BOLDMERE COURT CARE HOME,09/09/2015,"1,636.71",73373-RESIDENTIAL & NURSING CARE PLACEMENTS,Third Party Payments,Private Contractor Fees,Revenue
Walsall Council,http://opendatacommunities.org/id/metropolitan-district-council/walsall,WC 60 - 561,30/09/2015,Economy & Environment,BOLINDA UK LTD,22/09/2015,410.29,60501-LIBRARY BOOKS,Supplies & Services,"Equip,Furniture & Materials",Revenue
Walsall Council,http://opendatacommunities.org/id/metropolitan-district-council/walsall,WC 60 - 562,30/09/2015,Economy & Environment,BOLINDA UK LTD,02/09/2015,507.86,60501-LIBRARY BOOKS,Supplies & Services,"Equip,Furniture & Materials",Revenue
Walsall Council,http://opendatacommunities.org/id/metropolitan-district-council/walsall,WC 60 - 563,30/09/2015,Economy & Environment,BOLINDA UK LTD,25/09/2015,579.04,60501-LIBRARY BOOKS,Supplies & Services,"Equip,Furniture & Materials",Revenue
Walsall Council,http://opendatacommunities.org/id/metropolitan-district-council/walsall,WC 60 - 564,30/09/2015,Childrens,BOSTICO INTERNATIONAL,29/09/2015,717.15,"62521-INTERPRETATION,TRANSLATION & HUMAN AIDS TO TRANSCRIPTION",Supplies & Services,Services,Revenue
Walsall Council,http://opendatacommunities.org/id/metropolitan-district-council/walsall,WC 60 - 565,30/09/2015,Childrens,BOSTICO INTERNATIONAL,29/09/2015,791.80,"62521-INTERPRETATION,TRANSLATION & HUMAN AIDS TO TRANSCRIPTION",Supplies & Services,Services,Revenue
Walsall Council,http://opendatacommunities.org/id/metropolitan-district-council/walsall,WC 60 - 566,30/09/2015,Childrens,BOSTICO INTERNATIONAL,07/09/2015,886.30,"62521-INTERPRETATION,TRANSLATION & HUMAN AIDS TO TRANSCRIPTION",Supplies & Services,Services,Revenue
Walsall Council,http://opendatacommunities.org/id/metropolitan-district-council/walsall,WC 60 - 567,30/09/2015,Childrens,BOSTICO INTERNATIONAL,07/09/2015,986.55,"62521-INTERPRETATION,TRANSLATION & HUMAN AIDS TO TRANSCRIPTION",Supplies & Services,Services,Revenue
Walsall Council,http://opendatacommunities.org/id/metropolitan-district-council/walsall,WC 60 - 568,30/09/2015,Childrens,BOSTICO INTERNATIONAL,08/09/2015,"1,801.44","62521-INTERPRETATION,TRANSLATION & HUMAN AIDS TO TRANSCRIPTION",Supplies & Services,Services,Revenue
Walsall Council,http://opendatacommunities.org/id/metropolitan-district-council/walsall,WC 60 - 569,30/09/2015,Childrens,BOULTON TRAVEL LIMITED,02/09/2015,"1,469.00",52000-WITH DRIVER-HIRE OF VEHICLES,Transport,Hire,Revenue
Walsall Council,http://opendatacommunities.org/id/metropolitan-district-council/walsall,WC 60 - 570,30/09/2015,Social Care & Inclusion,BOWDEN DERRA PARK,25/09/2015,"10,502.76",73373-RESIDENTIAL & NURSING CARE PLACEMENTS,Third Party Payments,Private Contractor Fees,Revenue
Walsall Council,http://opendatacommunities.org/id/metropolitan-district-council/walsall,WC 60 - 571,30/09/2015,Economy & Environment,BRADVALE LTD T/A INSPIRE HEALTHCARE SERVICES,02/09/2015,414.57,60520-HEALTH & SAFETY-MATERIALS,Supplies & Services,"Equip,Furniture & Materials",Revenue
Walsall Council,http://opendatacommunities.org/id/metropolitan-district-council/walsall,WC 60 - 572,30/09/2015,Childrens,BRADVALE LTD T/A INSPIRE HEALTHCARE SERVICES,14/09/2015,"1,077.96","40000-REPAIRS,ALTERATIONS & MAINTENANCE-PREM",Premises,Premises-Repairs & Maintenance,Revenue
Walsall Council,http://opendatacommunities.org/id/metropolitan-district-council/walsall,WC 60 - 573,30/09/2015,Change and Governance,BRAMBLE HUB LIMITED,15/09/2015,330.00,01002-PROJECT FEES,Capital,Capital,Capital
Walsall Council,http://opendatacommunities.org/id/metropolitan-district-council/walsall,WC 60 - 574,30/09/2015,Change and Governance,BRAMBLE HUB LIMITED,29/09/2015,660.00,01002-PROJECT FEES,Capital,Capital,Capital
Walsall Council,http://opendatacommunities.org/id/metropolitan-district-council/walsall,WC 60 - 575,30/09/2015,Change and Governance,BRAMBLE HUB LIMITED,15/09/2015,"31,504.00",01002-PROJECT FEES,Capital,Capital,Capital
Walsall Council,http://opendatacommunities.org/id/metropolitan-district-council/walsall,WC 60 - 576,30/09/2015,Change and Governance,BRAMBLE HUB LIMITED,30/09/2015,"47,256.00",01002-PROJECT FEES,Capital,Capital,Capital
Walsall Council,http://opendatacommunities.org/id/metropolitan-district-council/walsall,WC 60 - 577,30/09/2015,Change and Governance,BRELMAYNE LTD,25/09/2015,358.18,60008-MAINTENANCE-FURNITURE & EQUIPMENT,Supplies & Services,"Equip,Furniture & Materials",Revenue
Walsall Council,http://opendatacommunities.org/id/metropolitan-district-council/walsall,WC 60 - 578,30/09/2015,Change and Governance,BRELMAYNE LTD,29/09/2015,361.47,73025-PROFESSIONAL SERVICES-PRIV CONTRACTOR & OTHER AGENCIES,Third Party Payments,Private Contractor Fees,Revenue
Walsall Council,http://opendatacommunities.org/id/metropolitan-district-council/walsall,WC 60 - 579,30/09/2015,Change and Governance,BRELMAYNE LTD,14/09/2015,385.16,73025-PROFESSIONAL SERVICES-PRIV CONTRACTOR & OTHER AGENCIES,Third Party Payments,Private Contractor Fees,Revenue
Walsall Council,http://opendatacommunities.org/id/metropolitan-district-council/walsall,WC 60 - 580,30/09/2015,Change and Governance,BRELMAYNE LTD,29/09/2015,"1,315.00",60008-MAINTENANCE-FURNITURE & EQUIPMENT,Supplies & Services,"Equip,Furniture & Materials",Revenue
Walsall Council,http://opendatacommunities.org/id/metropolitan-district-council/walsall,WC 60 - 581,30/09/2015,Change and Governance,BRELMAYNE LTD,25/09/2015,"2,422.53",60006-NEW-FURNITURE & EQUIPMENT,Supplies & Services,"Equip,Furniture & Materials",Revenue
Walsall Council,http://opendatacommunities.org/id/metropolitan-district-council/walsall,WC 60 - 582,30/09/2015,Social Care & Inclusion,REDACTED,14/09/2015,550.00,76422-DIRECT PAYMENTS TO SOCIAL SERVICES CLIENTS,Transfer Payments,Transfer Payments,Revenue
Walsall Council,http://opendatacommunities.org/id/metropolitan-district-council/walsall,WC 60 - 583,30/09/2015,Social Care & Inclusion,REDACTED,14/09/2015,271.25,76422-DIRECT PAYMENTS TO SOCIAL SERVICES CLIENTS,Transfer Payments,Transfer Payments,Revenue
Walsall Council,http://opendatacommunities.org/id/metropolitan-district-council/walsall,WC 60 - 584,30/09/2015,Childrens,REDACTED,14/09/2015,"1,301.84",74006-HOLIDAY/CHRISTMAS ALLOWANCE-FOSTER CARERS-OTH AGENCY PROVISION,Third Party Payments,Private Contractor Fees,Revenue
Walsall Council,http://opendatacommunities.org/id/metropolitan-district-council/walsall,WC 60 - 585,30/09/2015,Childrens,REDACTED,14/09/2015,"1,445.32",62515-MISCELLANEOUS SUPPLIES,Supplies & Services,Other Supplies & Services,Revenue
Walsall Council,http://opendatacommunities.org/id/metropolitan-district-council/walsall,WC 60 - 586,30/09/2015,Social Care & Inclusion,REDACTED,14/09/2015,680.00,76422-DIRECT PAYMENTS TO SOCIAL SERVICES CLIENTS,Transfer Payments,Transfer Payments,Revenue
Walsall Council,http://opendatacommunities.org/id/metropolitan-district-council/walsall,WC 60 - 587,30/09/2015,Economy & Environment,BRENNTAG UK LIMITED,28/09/2015,710.56,50301-FUEL-TRANSPORT RUN COSTS,Transport,Other Transport,Revenue
Walsall Council,http://opendatacommunities.org/id/metropolitan-district-council/walsall,WC 60 - 588,30/09/2015,Social Care & Inclusion,REDACTED,08/09/2015,"2,935.24",73374-SUPPORTED & OTHER ACCOMMODATION,Third Party Payments,Private Contractor Fees,Revenue
Walsall Council,http://opendatacommunities.org/id/metropolitan-district-council/walsall,WC 60 - 589,30/09/2015,Social Care & Inclusion,REDACTED,14/09/2015,616.50,76422-DIRECT PAYMENTS TO SOCIAL SERVICES CLIENTS,Transfer Payments,Transfer Payments,Revenue
Walsall Council,http://opendatacommunities.org/id/metropolitan-district-council/walsall,WC 60 - 590,30/09/2015,Social Care & Inclusion,REDACTED,14/09/2015,"1,618.50",76422-DIRECT PAYMENTS TO SOCIAL SERVICES CLIENTS,Transfer Payments,Transfer Payments,Revenue
Walsall Council,http://opendatacommunities.org/id/metropolitan-district-council/walsall,WC 60 - 591,30/09/2015,Social Care & Inclusion,REDACTED,14/09/2015,871.25,76422-DIRECT PAYMENTS TO SOCIAL SERVICES CLIENTS,Transfer Payments,Transfer Payments,Revenue
Walsall Council,http://opendatacommunities.org/id/metropolitan-district-council/walsall,WC 60 - 592,30/09/2015,Social Care & Inclusion,BRIDGEWOOD HEALTH CARE LTD,23/09/2015,"5,513.72",73373-RESIDENTIAL & NURSING CARE PLACEMENTS,Third Party Payments,Private Contractor Fees,Revenue
Walsall Council,http://opendatacommunities.org/id/metropolitan-district-council/walsall,WC 60 - 593,30/09/2015,Childrens,BRITISH GAS BUSINESS,29/09/2015,428.03,42000-GAS-ENERGY COSTS,Premises,Utilities,Revenue
Walsall Council,http://opendatacommunities.org/id/metropolitan-district-council/walsall,WC 60 - 594,30/09/2015,Childrens,BRITISH GAS BUSINESS,17/09/2015,"3,418.31",42000-GAS-ENERGY COSTS,Premises,Utilities,Revenue
Walsall Council,http://opendatacommunities.org/id/metropolitan-district-council/walsall,WC 60 - 595,30/09/2015,Change and Governance,BRITISH GAS TRADING LIMITED 002,15/09/2015,"2,702.78",01046-OTHER GRANTS,Capital,Capital,Capital
Walsall Council,http://opendatacommunities.org/id/metropolitan-district-council/walsall,WC 60 - 596,30/09/2015,Economy & Environment,BRITISH HGV TRAINING GROUP,24/09/2015,465.00,30030-EXTERNAL TRAINING,Employees,Training,Revenue
Walsall Council,http://opendatacommunities.org/id/metropolitan-district-council/walsall,WC 60 - 597,30/09/2015,Social Care & Inclusion,BROOK DESIGN HARDWARE LTD T/A BROOKVENT,08/09/2015,796.20,60500-GENERAL MATERIALS,Supplies & Services,"Equip,Furniture & Materials",Revenue
Walsall Council,http://opendatacommunities.org/id/metropolitan-district-council/walsall,WC 60 - 598,30/09/2015,Social Care & Inclusion,BROOK DESIGN HARDWARE LTD T/A BROOKVENT,11/09/2015,"1,756.28",60500-GENERAL MATERIALS,Supplies & Services,"Equip,Furniture & Materials",Revenue
Walsall Council,http://opendatacommunities.org/id/metropolitan-district-council/walsall,WC 60 - 599,30/09/2015,Change and Governance,BROWNHILLS ASPHALT TARMACADAM,01/09/2015,-430.00,"40000-REPAIRS,ALTERATIONS & MAINTENANCE-PREM",Premises,Premises-Repairs & Maintenance,Revenue
Walsall Council,http://opendatacommunities.org/id/metropolitan-district-council/walsall,WC 60 - 600,30/09/2015,Economy & Environment,BROWNHILLS ASPHALT TARMACADAM,28/09/2015,520.00,60500-GENERAL MATERIALS,Supplies & Services,"Equip,Furniture & Materials",Revenue
Walsall Council,http://opendatacommunities.org/id/metropolitan-district-council/walsall,WC 60 - 601,30/09/2015,Economy & Environment,BROWNHILLS ASPHALT TARMACADAM,29/09/2015,990.00,60000-FURNITURE & EQUIPMENT,Supplies & Services,"Equip,Furniture & Materials",Revenue
Walsall Council,http://opendatacommunities.org/id/metropolitan-district-council/walsall,WC 60 - 602,30/09/2015,Economy & Environment,BROWNHILLS ASPHALT TARMACADAM,29/09/2015,"2,400.00",60006-NEW-FURNITURE & EQUIPMENT,Supplies & Services,"Equip,Furniture & Materials",Revenue
Walsall Council,http://opendatacommunities.org/id/metropolitan-district-council/walsall,WC 60 - 603,30/09/2015,Childrens,BROWNHILLS COMMUNITY ASSOCIATION,02/09/2015,"3,160.59",66505-OTHER-GRANTS TO OTHER ORGS,Third Party Payments,Grants to Other Orgs,Revenue
Walsall Council,http://opendatacommunities.org/id/metropolitan-district-council/walsall,WC 60 - 604,30/09/2015,Childrens,BROWNHILLS COMMUNITY ASSOCIATION,04/09/2015,"4,004.91",66505-OTHER-GRANTS TO OTHER ORGS,Third Party Payments,Grants to Other Orgs,Revenue
Walsall Council,http://opendatacommunities.org/id/metropolitan-district-council/walsall,WC 60 - 605,30/09/2015,Change and Governance,BROWNHILLS COMMUNITY ASSOCIATION,24/09/2015,"6,666.66",66500-GRANTS TO OTHER ORGS,Third Party Payments,Grants to Other Orgs,Revenue
Walsall Council,http://opendatacommunities.org/id/metropolitan-district-council/walsall,WC 60 - 606,30/09/2015,Economy & Environment,BROXAP LTD,01/09/2015,"1,883.60",01006-SITE WORKS MAIN CONTRACTORS,Capital,Capital,Capital
Walsall Council,http://opendatacommunities.org/id/metropolitan-district-council/walsall,WC 60 - 607,30/09/2015,Economy & Environment,BROXAP LTD,01/09/2015,"2,172.00",01006-SITE WORKS MAIN CONTRACTORS,Capital,Capital,Capital
Walsall Council,http://opendatacommunities.org/id/metropolitan-district-council/walsall,WC 60 - 608,30/09/2015,Social Care & Inclusion,REDACTED,14/09/2015,"1,806.25",76422-DIRECT PAYMENTS TO SOCIAL SERVICES CLIENTS,Transfer Payments,Transfer Payments,Revenue
Walsall Council,http://opendatacommunities.org/id/metropolitan-district-council/walsall,WC 60 - 609,30/09/2015,Change and Governance,REDACTED,29/09/2015,615.00,62515-MISCELLANEOUS SUPPLIES,Supplies & Services,Other Supplies & Services,Revenue
Walsall Council,http://opendatacommunities.org/id/metropolitan-district-council/walsall,WC 60 - 610,30/09/2015,Economy & Environment,REDACTED,29/09/2015,"2,081.25",63000-PROFESSIONAL FEES AND SERVICES,Supplies & Services,Services,Revenue
Walsall Council,http://opendatacommunities.org/id/metropolitan-district-council/walsall,WC 60 - 611,30/09/2015,Change and Governance,BT PLC,14/09/2015,"-11,999.58",63601-COSTS (NOT INTERNAL RECHARGES)-TELEPHONES,Supplies & Services,Communications & Computing,Revenue
Walsall Council,http://opendatacommunities.org/id/metropolitan-district-council/walsall,WC 60 - 612,30/09/2015,Childrens,BT PLC,21/09/2015,580.41,63603-COST OF CALLS-TELEPHONES,Supplies & Services,Communications & Computing,Revenue
Walsall Council,http://opendatacommunities.org/id/metropolitan-district-council/walsall,WC 60 - 613,30/09/2015,Change and Governance,BT PLC,08/09/2015,970.00,63603-COST OF CALLS-TELEPHONES,Supplies & Services,Communications & Computing,Revenue
Walsall Council,http://opendatacommunities.org/id/metropolitan-district-council/walsall,WC 60 - 614,30/09/2015,Change and Governance,BT PLC,14/09/2015,"12,118.77",63601-COSTS (NOT INTERNAL RECHARGES)-TELEPHONES,Supplies & Services,Communications & Computing,Revenue
Walsall Council,http://opendatacommunities.org/id/metropolitan-district-council/walsall,WC 60 - 615,30/09/2015,Change and Governance,BUILDING RECRUITMENT COMPANY,07/09/2015,"1,053.15",73025-PROFESSIONAL SERVICES-PRIV CONTRACTOR & OTHER AGENCIES,Third Party Payments,Private Contractor Fees,Revenue
Walsall Council,http://opendatacommunities.org/id/metropolitan-district-council/walsall,WC 60 - 616,30/09/2015,Change and Governance,BUILDING RECRUITMENT COMPANY,07/09/2015,"1,110.00",73025-PROFESSIONAL SERVICES-PRIV CONTRACTOR & OTHER AGENCIES,Third Party Payments,Private Contractor Fees,Revenue
Walsall Council,http://opendatacommunities.org/id/metropolitan-district-council/walsall,WC 60 - 617,30/09/2015,Change and Governance,BUILDING RECRUITMENT COMPANY,07/09/2015,"1,149.00",73025-PROFESSIONAL SERVICES-PRIV CONTRACTOR & OTHER AGENCIES,Third Party Payments,Private Contractor Fees,Revenue
Walsall Council,http://opendatacommunities.org/id/metropolitan-district-council/walsall,WC 60 - 618,30/09/2015,Change and Governance,BUILDING RECRUITMENT COMPANY,07/09/2015,"1,149.65",73025-PROFESSIONAL SERVICES-PRIV CONTRACTOR & OTHER AGENCIES,Third Party Payments,Private Contractor Fees,Revenue
Walsall Council,http://opendatacommunities.org/id/metropolitan-district-council/walsall,WC 60 - 619,30/09/2015,Change and Governance,BUILDING RECRUITMENT COMPANY,07/09/2015,"1,152.25",73025-PROFESSIONAL SERVICES-PRIV CONTRACTOR & OTHER AGENCIES,Third Party Payments,Private Contractor Fees,Revenue
Walsall Council,http://opendatacommunities.org/id/metropolitan-district-council/walsall,WC 60 - 620,30/09/2015,Change and Governance,BUILDING RECRUITMENT COMPANY,07/09/2015,"1,152.90",73025-PROFESSIONAL SERVICES-PRIV CONTRACTOR & OTHER AGENCIES,Third Party Payments,Private Contractor Fees,Revenue
Walsall Council,http://opendatacommunities.org/id/metropolitan-district-council/walsall,WC 60 - 621,30/09/2015,Change and Governance,BUILDING RECRUITMENT COMPANY,07/09/2015,"2,299.95",73025-PROFESSIONAL SERVICES-PRIV CONTRACTOR & OTHER AGENCIES,Third Party Payments,Private Contractor Fees,Revenue
Walsall Council,http://opendatacommunities.org/id/metropolitan-district-council/walsall,WC 60 - 622,30/09/2015,Economy & Environment,BUILDING SOFTWARE LTD,11/09/2015,"2,500.00",64500-PUBLICATIONS/ORGANISATIONS-SUBSCRIPTIONS,Supplies & Services,Subscriptions,Revenue
Walsall Council,http://opendatacommunities.org/id/metropolitan-district-council/walsall,WC 60 - 623,30/09/2015,Social Care & Inclusion,BUPA CARE HOMES (CFHCARE) LTD,09/09/2015,876.09,73373-RESIDENTIAL & NURSING CARE PLACEMENTS,Third Party Payments,Private Contractor Fees,Revenue
Walsall Council,http://opendatacommunities.org/id/metropolitan-district-council/walsall,WC 60 - 624,30/09/2015,Social Care & Inclusion,BUPA CARE HOMES (CFHCARE) LTD,15/09/2015,"1,458.00",73373-RESIDENTIAL & NURSING CARE PLACEMENTS,Third Party Payments,Private Contractor Fees,Revenue
Walsall Council,http://opendatacommunities.org/id/metropolitan-district-council/walsall,WC 60 - 625,30/09/2015,Social Care & Inclusion,BUPA CARE HOMES (CFHCARE) LTD,15/09/2015,"1,479.59",73373-RESIDENTIAL & NURSING CARE PLACEMENTS,Third Party Payments,Private Contractor Fees,Revenue
Walsall Council,http://opendatacommunities.org/id/metropolitan-district-council/walsall,WC 60 - 626,30/09/2015,Social Care & Inclusion,BUPA CARE HOMES (CFHCARE) LTD,15/09/2015,"1,490.80",73373-RESIDENTIAL & NURSING CARE PLACEMENTS,Third Party Payments,Private Contractor Fees,Revenue
Walsall Council,http://opendatacommunities.org/id/metropolitan-district-council/walsall,WC 60 - 627,30/09/2015,Social Care & Inclusion,BUPA CARE HOMES (CFHCARE) LTD,09/09/2015,"1,494.00",73373-RESIDENTIAL & NURSING CARE PLACEMENTS,Third Party Payments,Private Contractor Fees,Revenue
Walsall Council,http://opendatacommunities.org/id/metropolitan-district-council/walsall,WC 60 - 628,30/09/2015,Social Care & Inclusion,BUPA CARE HOMES (CFHCARE) LTD,15/09/2015,"1,527.60",73373-RESIDENTIAL & NURSING CARE PLACEMENTS,Third Party Payments,Private Contractor Fees,Revenue
Walsall Council,http://opendatacommunities.org/id/metropolitan-district-council/walsall,WC 60 - 629,30/09/2015,Social Care & Inclusion,BUPA CARE HOMES (CFHCARE) LTD,15/09/2015,"1,533.16",73373-RESIDENTIAL & NURSING CARE PLACEMENTS,Third Party Payments,Private Contractor Fees,Revenue
Walsall Council,http://opendatacommunities.org/id/metropolitan-district-council/walsall,WC 60 - 630,30/09/2015,Social Care & Inclusion,BUPA CARE HOMES (CFHCARE) LTD,23/09/2015,"1,533.16",73373-RESIDENTIAL & NURSING CARE PLACEMENTS,Third Party Payments,Private Contractor Fees,Revenue
Walsall Council,http://opendatacommunities.org/id/metropolitan-district-council/walsall,WC 60 - 631,30/09/2015,Social Care & Inclusion,BUPA CARE HOMES (CFHCARE) LTD,23/09/2015,"1,640.75",73373-RESIDENTIAL & NURSING CARE PLACEMENTS,Third Party Payments,Private Contractor Fees,Revenue
Walsall Council,http://opendatacommunities.org/id/metropolitan-district-council/walsall,WC 60 - 632,30/09/2015,Social Care & Inclusion,BUPA CARE HOMES (CFHCARE) LTD,23/09/2015,"1,681.20",73373-RESIDENTIAL & NURSING CARE PLACEMENTS,Third Party Payments,Private Contractor Fees,Revenue
Walsall Council,http://opendatacommunities.org/id/metropolitan-district-council/walsall,WC 60 - 633,30/09/2015,Social Care & Inclusion,BUPA CARE HOMES (CFHCARE) LTD,23/09/2015,"1,720.84",73373-RESIDENTIAL & NURSING CARE PLACEMENTS,Third Party Payments,Private Contractor Fees,Revenue
Walsall Council,http://opendatacommunities.org/id/metropolitan-district-council/walsall,WC 60 - 634,30/09/2015,Social Care & Inclusion,BUPA CARE HOMES (CFHCARE) LTD,25/09/2015,"1,755.68",73373-RESIDENTIAL & NURSING CARE PLACEMENTS,Third Party Payments,Private Contractor Fees,Revenue
Walsall Council,http://opendatacommunities.org/id/metropolitan-district-council/walsall,WC 60 - 635,30/09/2015,Social Care & Inclusion,BUPA CARE HOMES (CFHCARE) LTD,25/09/2015,"1,914.95",73373-RESIDENTIAL & NURSING CARE PLACEMENTS,Third Party Payments,Private Contractor Fees,Revenue
Walsall Council,http://opendatacommunities.org/id/metropolitan-district-council/walsall,WC 60 - 636,30/09/2015,Social Care & Inclusion,BUPA CARE HOMES (CFHCARE) LTD,23/09/2015,"3,060.92",73373-RESIDENTIAL & NURSING CARE PLACEMENTS,Third Party Payments,Private Contractor Fees,Revenue
Walsall Council,http://opendatacommunities.org/id/metropolitan-district-council/walsall,WC 60 - 637,30/09/2015,Social Care & Inclusion,BUPA CARE HOMES (CFHCARE) LTD,15/09/2015,"3,129.80",73373-RESIDENTIAL & NURSING CARE PLACEMENTS,Third Party Payments,Private Contractor Fees,Revenue
Walsall Council,http://opendatacommunities.org/id/metropolitan-district-council/walsall,WC 60 - 638,30/09/2015,Social Care & Inclusion,BUPA CARE HOMES (CFHCARE) LTD,23/09/2015,"3,444.68",73373-RESIDENTIAL & NURSING CARE PLACEMENTS,Third Party Payments,Private Contractor Fees,Revenue
Walsall Council,http://opendatacommunities.org/id/metropolitan-district-council/walsall,WC 60 - 639,30/09/2015,Economy & Environment,BURTON ADDICTION CENTRE,07/09/2015,"1,380.37",63000-PROFESSIONAL FEES AND SERVICES,Supplies & Services,Services,Revenue
Walsall Council,http://opendatacommunities.org/id/metropolitan-district-council/walsall,WC 60 - 640,30/09/2015,Economy & Environment,BURTON HOSPITALS NHS FOUNDATION TRUST,21/09/2015,275.52,63000-PROFESSIONAL FEES AND SERVICES,Supplies & Services,Services,Revenue
Walsall Council,http://opendatacommunities.org/id/metropolitan-district-council/walsall,WC 60 - 641,30/09/2015,Social Care & Inclusion,BUSH HOME LTD,01/09/2015,"1,279.92",73373-RESIDENTIAL & NURSING CARE PLACEMENTS,Third Party Payments,Private Contractor Fees,Revenue
Walsall Council,http://opendatacommunities.org/id/metropolitan-district-council/walsall,WC 60 - 642,30/09/2015,Social Care & Inclusion,BUSH HOME LTD,23/09/2015,"1,490.96",73373-RESIDENTIAL & NURSING CARE PLACEMENTS,Third Party Payments,Private Contractor Fees,Revenue
Walsall Council,http://opendatacommunities.org/id/metropolitan-district-council/walsall,WC 60 - 643,30/09/2015,Social Care & Inclusion,BUSH HOME LTD,01/09/2015,"1,493.24",73373-RESIDENTIAL & NURSING CARE PLACEMENTS,Third Party Payments,Private Contractor Fees,Revenue
Walsall Council,http://opendatacommunities.org/id/metropolitan-district-council/walsall,WC 60 - 644,30/09/2015,Social Care & Inclusion,BUSH HOME LTD,23/09/2015,"1,493.24",73373-RESIDENTIAL & NURSING CARE PLACEMENTS,Third Party Payments,Private Contractor Fees,Revenue
Walsall Council,http://opendatacommunities.org/id/metropolitan-district-council/walsall,WC 60 - 645,30/09/2015,Social Care & Inclusion,BUSH HOME LTD,23/09/2015,"1,493.24",73373-RESIDENTIAL & NURSING CARE PLACEMENTS,Third Party Payments,Private Contractor Fees,Revenue
Walsall Council,http://opendatacommunities.org/id/metropolitan-district-council/walsall,WC 60 - 646,30/09/2015,Social Care & Inclusion,BUSH HOME LTD,23/09/2015,"1,493.24",73373-RESIDENTIAL & NURSING CARE PLACEMENTS,Third Party Payments,Private Contractor Fees,Revenue
Walsall Council,http://opendatacommunities.org/id/metropolitan-district-council/walsall,WC 60 - 647,30/09/2015,Social Care & Inclusion,BUSH HOME LTD,23/09/2015,"1,493.24",73373-RESIDENTIAL & NURSING CARE PLACEMENTS,Third Party Payments,Private Contractor Fees,Revenue
Walsall Council,http://opendatacommunities.org/id/metropolitan-district-council/walsall,WC 60 - 648,30/09/2015,Social Care & Inclusion,BUSH HOME LTD,23/09/2015,"1,568.64",73373-RESIDENTIAL & NURSING CARE PLACEMENTS,Third Party Payments,Private Contractor Fees,Revenue
Walsall Council,http://opendatacommunities.org/id/metropolitan-district-council/walsall,WC 60 - 649,30/09/2015,Social Care & Inclusion,BUSH HOME LTD,23/09/2015,"1,568.64",73373-RESIDENTIAL & NURSING CARE PLACEMENTS,Third Party Payments,Private Contractor Fees,Revenue
Walsall Council,http://opendatacommunities.org/id/metropolitan-district-council/walsall,WC 60 - 650,30/09/2015,Social Care & Inclusion,BUSH HOME LTD,23/09/2015,"1,568.64",73373-RESIDENTIAL & NURSING CARE PLACEMENTS,Third Party Payments,Private Contractor Fees,Revenue
Walsall Council,http://opendatacommunities.org/id/metropolitan-district-council/walsall,WC 60 - 651,30/09/2015,Social Care & Inclusion,BUSH HOME LTD,23/09/2015,"1,568.64",73373-RESIDENTIAL & NURSING CARE PLACEMENTS,Third Party Payments,Private Contractor Fees,Revenue
Walsall Council,http://opendatacommunities.org/id/metropolitan-district-council/walsall,WC 60 - 652,30/09/2015,Social Care & Inclusion,BUSH HOME LTD,23/09/2015,"1,568.64",73373-RESIDENTIAL & NURSING CARE PLACEMENTS,Third Party Payments,Private Contractor Fees,Revenue
Walsall Council,http://opendatacommunities.org/id/metropolitan-district-council/walsall,WC 60 - 653,30/09/2015,Social Care & Inclusion,BUSH HOME LTD,23/09/2015,"1,568.64",73373-RESIDENTIAL & NURSING CARE PLACEMENTS,Third Party Payments,Private Contractor Fees,Revenue
Walsall Council,http://opendatacommunities.org/id/metropolitan-district-council/walsall,WC 60 - 654,30/09/2015,Social Care & Inclusion,BUSH HOME LTD,23/09/2015,"1,568.64",73373-RESIDENTIAL & NURSING CARE PLACEMENTS,Third Party Payments,Private Contractor Fees,Revenue
Walsall Council,http://opendatacommunities.org/id/metropolitan-district-council/walsall,WC 60 - 655,30/09/2015,Social Care & Inclusion,BUSH HOME LTD,23/09/2015,"1,568.64",73373-RESIDENTIAL & NURSING CARE PLACEMENTS,Third Party Payments,Private Contractor Fees,Revenue
Walsall Council,http://opendatacommunities.org/id/metropolitan-district-council/walsall,WC 60 - 656,30/09/2015,Social Care & Inclusion,BUSH HOME LTD,23/09/2015,"1,568.64",73373-RESIDENTIAL & NURSING CARE PLACEMENTS,Third Party Payments,Private Contractor Fees,Revenue
Walsall Council,http://opendatacommunities.org/id/metropolitan-district-council/walsall,WC 60 - 657,30/09/2015,Social Care & Inclusion,BUSH HOME LTD,23/09/2015,"2,128.87",73373-RESIDENTIAL & NURSING CARE PLACEMENTS,Third Party Payments,Private Contractor Fees,Revenue
Walsall Council,http://opendatacommunities.org/id/metropolitan-district-council/walsall,WC 60 - 658,30/09/2015,Childrens,BUSY BEES CHILDCARE LTD,02/09/2015,"4,980.23",66505-OTHER-GRANTS TO OTHER ORGS,Third Party Payments,Grants to Other Orgs,Revenue
Walsall Council,http://opendatacommunities.org/id/metropolitan-district-council/walsall,WC 60 - 659,30/09/2015,Childrens,BY THE BRIDGE,14/09/2015,"5,923.93",74037-INDEPENDENT FOSTER CARE-OTH AGENCY PROVISION,Third Party Payments,Private Contractor Fees,Revenue
Walsall Council,http://opendatacommunities.org/id/metropolitan-district-council/walsall,WC 60 - 660,30/09/2015,Social Care & Inclusion,C & V ORCHARD MANOR LTD,01/09/2015,782.35,73373-RESIDENTIAL & NURSING CARE PLACEMENTS,Third Party Payments,Private Contractor Fees,Revenue
Walsall Council,http://opendatacommunities.org/id/metropolitan-district-council/walsall,WC 60 - 661,30/09/2015,Social Care & Inclusion,C & V ORCHARD MANOR LTD,09/09/2015,"1,472.16",73373-RESIDENTIAL & NURSING CARE PLACEMENTS,Third Party Payments,Private Contractor Fees,Revenue
Walsall Council,http://opendatacommunities.org/id/metropolitan-district-council/walsall,WC 60 - 662,30/09/2015,Social Care & Inclusion,C & V ORCHARD MANOR LTD,09/09/2015,"1,472.16",73373-RESIDENTIAL & NURSING CARE PLACEMENTS,Third Party Payments,Private Contractor Fees,Revenue
Walsall Council,http://opendatacommunities.org/id/metropolitan-district-council/walsall,WC 60 - 663,30/09/2015,Social Care & Inclusion,C & V ORCHARD MANOR LTD,09/09/2015,"1,472.16",73373-RESIDENTIAL & NURSING CARE PLACEMENTS,Third Party Payments,Private Contractor Fees,Revenue
Walsall Council,http://opendatacommunities.org/id/metropolitan-district-council/walsall,WC 60 - 664,30/09/2015,Social Care & Inclusion,C & V ORCHARD MANOR LTD,25/09/2015,"1,472.20",73373-RESIDENTIAL & NURSING CARE PLACEMENTS,Third Party Payments,Private Contractor Fees,Revenue
Walsall Council,http://opendatacommunities.org/id/metropolitan-district-council/walsall,WC 60 - 665,30/09/2015,Social Care & Inclusion,C & V ORCHARD MANOR LTD,09/09/2015,"1,493.24",73373-RESIDENTIAL & NURSING CARE PLACEMENTS,Third Party Payments,Private Contractor Fees,Revenue
Walsall Council,http://opendatacommunities.org/id/metropolitan-district-council/walsall,WC 60 - 666,30/09/2015,Social Care & Inclusion,C & V ORCHARD MANOR LTD,09/09/2015,"1,493.24",73373-RESIDENTIAL & NURSING CARE PLACEMENTS,Third Party Payments,Private Contractor Fees,Revenue
Walsall Council,http://opendatacommunities.org/id/metropolitan-district-council/walsall,WC 60 - 667,30/09/2015,Social Care & Inclusion,C & V ORCHARD MANOR LTD,09/09/2015,"1,493.24",73373-RESIDENTIAL & NURSING CARE PLACEMENTS,Third Party Payments,Private Contractor Fees,Revenue
Walsall Council,http://opendatacommunities.org/id/metropolitan-district-council/walsall,WC 60 - 668,30/09/2015,Social Care & Inclusion,C & V ORCHARD MANOR LTD,09/09/2015,"1,493.32",73373-RESIDENTIAL & NURSING CARE PLACEMENTS,Third Party Payments,Private Contractor Fees,Revenue
Walsall Council,http://opendatacommunities.org/id/metropolitan-district-council/walsall,WC 60 - 669,30/09/2015,Social Care & Inclusion,C & V ORCHARD MANOR LTD,09/09/2015,"1,493.32",73373-RESIDENTIAL & NURSING CARE PLACEMENTS,Third Party Payments,Private Contractor Fees,Revenue
Walsall Council,http://opendatacommunities.org/id/metropolitan-district-council/walsall,WC 60 - 670,30/09/2015,Social Care & Inclusion,C & V ORCHARD MANOR LTD,25/09/2015,"1,503.44",73373-RESIDENTIAL & NURSING CARE PLACEMENTS,Third Party Payments,Private Contractor Fees,Revenue
Walsall Council,http://opendatacommunities.org/id/metropolitan-district-council/walsall,WC 60 - 671,30/09/2015,Social Care & Inclusion,C & V ORCHARD MANOR LTD,09/09/2015,"1,566.20",73373-RESIDENTIAL & NURSING CARE PLACEMENTS,Third Party Payments,Private Contractor Fees,Revenue
Walsall Council,http://opendatacommunities.org/id/metropolitan-district-council/walsall,WC 60 - 672,30/09/2015,Social Care & Inclusion,C & V ORCHARD MANOR LTD,09/09/2015,"1,566.20",73373-RESIDENTIAL & NURSING CARE PLACEMENTS,Third Party Payments,Private Contractor Fees,Revenue
Walsall Council,http://opendatacommunities.org/id/metropolitan-district-council/walsall,WC 60 - 673,30/09/2015,Social Care & Inclusion,C & V ORCHARD MANOR LTD,09/09/2015,"1,568.64",73373-RESIDENTIAL & NURSING CARE PLACEMENTS,Third Party Payments,Private Contractor Fees,Revenue
Walsall Council,http://opendatacommunities.org/id/metropolitan-district-council/walsall,WC 60 - 674,30/09/2015,Social Care & Inclusion,C & V ORCHARD RESIDENTIAL LTD,01/09/2015,438.32,73373-RESIDENTIAL & NURSING CARE PLACEMENTS,Third Party Payments,Private Contractor Fees,Revenue
Walsall Council,http://opendatacommunities.org/id/metropolitan-district-council/walsall,WC 60 - 675,30/09/2015,Social Care & Inclusion,C & V ORCHARD RESIDENTIAL LTD,01/09/2015,438.32,73373-RESIDENTIAL & NURSING CARE PLACEMENTS,Third Party Payments,Private Contractor Fees,Revenue
Walsall Council,http://opendatacommunities.org/id/metropolitan-district-council/walsall,WC 60 - 676,30/09/2015,Social Care & Inclusion,C & V ORCHARD RESIDENTIAL LTD,01/09/2015,"1,493.24",73373-RESIDENTIAL & NURSING CARE PLACEMENTS,Third Party Payments,Private Contractor Fees,Revenue
Walsall Council,http://opendatacommunities.org/id/metropolitan-district-council/walsall,WC 60 - 677,30/09/2015,Social Care & Inclusion,C & V ORCHARD RESIDENTIAL LTD,09/09/2015,"1,493.24",73373-RESIDENTIAL & NURSING CARE PLACEMENTS,Third Party Payments,Private Contractor Fees,Revenue
Walsall Council,http://opendatacommunities.org/id/metropolitan-district-council/walsall,WC 60 - 678,30/09/2015,Social Care & Inclusion,C & V ORCHARD RESIDENTIAL LTD,09/09/2015,"1,493.24",73373-RESIDENTIAL & NURSING CARE PLACEMENTS,Third Party Payments,Private Contractor Fees,Revenue
Walsall Council,http://opendatacommunities.org/id/metropolitan-district-council/walsall,WC 60 - 679,30/09/2015,Social Care & Inclusion,C & V ORCHARD RESIDENTIAL LTD,23/09/2015,"1,493.24",73373-RESIDENTIAL & NURSING CARE PLACEMENTS,Third Party Payments,Private Contractor Fees,Revenue
Walsall Council,http://opendatacommunities.org/id/metropolitan-district-council/walsall,WC 60 - 680,30/09/2015,Social Care & Inclusion,C & V ORCHARD RESIDENTIAL LTD,23/09/2015,"1,493.24",73373-RESIDENTIAL & NURSING CARE PLACEMENTS,Third Party Payments,Private Contractor Fees,Revenue
Walsall Council,http://opendatacommunities.org/id/metropolitan-district-council/walsall,WC 60 - 681,30/09/2015,Social Care & Inclusion,C & V ORCHARD RESIDENTIAL LTD,09/09/2015,"1,493.32",73373-RESIDENTIAL & NURSING CARE PLACEMENTS,Third Party Payments,Private Contractor Fees,Revenue
Walsall Council,http://opendatacommunities.org/id/metropolitan-district-council/walsall,WC 60 - 682,30/09/2015,Social Care & Inclusion,C & V ORCHARD RESIDENTIAL LTD,23/09/2015,"1,493.32",73373-RESIDENTIAL & NURSING CARE PLACEMENTS,Third Party Payments,Private Contractor Fees,Revenue
Walsall Council,http://opendatacommunities.org/id/metropolitan-district-council/walsall,WC 60 - 683,30/09/2015,Social Care & Inclusion,C & V ORCHARD RESIDENTIAL LTD,01/09/2015,"1,566.20",73373-RESIDENTIAL & NURSING CARE PLACEMENTS,Third Party Payments,Private Contractor Fees,Revenue
Walsall Council,http://opendatacommunities.org/id/metropolitan-district-council/walsall,WC 60 - 684,30/09/2015,Social Care & Inclusion,C & V ORCHARD RESIDENTIAL LTD,01/09/2015,"1,566.20",73373-RESIDENTIAL & NURSING CARE PLACEMENTS,Third Party Payments,Private Contractor Fees,Revenue
Walsall Council,http://opendatacommunities.org/id/metropolitan-district-council/walsall,WC 60 - 685,30/09/2015,Social Care & Inclusion,C & V ORCHARD RESIDENTIAL LTD,01/09/2015,"1,566.20",73373-RESIDENTIAL & NURSING CARE PLACEMENTS,Third Party Payments,Private Contractor Fees,Revenue
Walsall Council,http://opendatacommunities.org/id/metropolitan-district-council/walsall,WC 60 - 686,30/09/2015,Social Care & Inclusion,C & V ORCHARD RESIDENTIAL LTD,09/09/2015,"1,566.20",73373-RESIDENTIAL & NURSING CARE PLACEMENTS,Third Party Payments,Private Contractor Fees,Revenue
Walsall Council,http://opendatacommunities.org/id/metropolitan-district-council/walsall,WC 60 - 687,30/09/2015,Social Care & Inclusion,C & V ORCHARD RESIDENTIAL LTD,09/09/2015,"1,566.20",73373-RESIDENTIAL & NURSING CARE PLACEMENTS,Third Party Payments,Private Contractor Fees,Revenue
Walsall Council,http://opendatacommunities.org/id/metropolitan-district-council/walsall,WC 60 - 688,30/09/2015,Social Care & Inclusion,C & V ORCHARD RESIDENTIAL LTD,09/09/2015,"1,566.20",73373-RESIDENTIAL & NURSING CARE PLACEMENTS,Third Party Payments,Private Contractor Fees,Revenue
Walsall Council,http://opendatacommunities.org/id/metropolitan-district-council/walsall,WC 60 - 689,30/09/2015,Social Care & Inclusion,C & V ORCHARD RESIDENTIAL LTD,23/09/2015,"1,566.20",73373-RESIDENTIAL & NURSING CARE PLACEMENTS,Third Party Payments,Private Contractor Fees,Revenue
Walsall Council,http://opendatacommunities.org/id/metropolitan-district-council/walsall,WC 60 - 690,30/09/2015,Social Care & Inclusion,C & V ORCHARD RESIDENTIAL LTD,23/09/2015,"1,566.20",73373-RESIDENTIAL & NURSING CARE PLACEMENTS,Third Party Payments,Private Contractor Fees,Revenue
Walsall Council,http://opendatacommunities.org/id/metropolitan-district-council/walsall,WC 60 - 691,30/09/2015,Social Care & Inclusion,C & V ORCHARD RESIDENTIAL LTD,23/09/2015,"1,566.20",73373-RESIDENTIAL & NURSING CARE PLACEMENTS,Third Party Payments,Private Contractor Fees,Revenue
Walsall Council,http://opendatacommunities.org/id/metropolitan-district-council/walsall,WC 60 - 692,30/09/2015,Social Care & Inclusion,C & V ORCHARD RESIDENTIAL LTD,23/09/2015,"1,566.20",73373-RESIDENTIAL & NURSING CARE PLACEMENTS,Third Party Payments,Private Contractor Fees,Revenue
Walsall Council,http://opendatacommunities.org/id/metropolitan-district-council/walsall,WC 60 - 693,30/09/2015,Social Care & Inclusion,C & V ORCHARD RESIDENTIAL LTD,23/09/2015,"1,566.20",73373-RESIDENTIAL & NURSING CARE PLACEMENTS,Third Party Payments,Private Contractor Fees,Revenue
Walsall Council,http://opendatacommunities.org/id/metropolitan-district-council/walsall,WC 60 - 694,30/09/2015,Social Care & Inclusion,C & V ORCHARD RESIDENTIAL LTD,09/09/2015,"1,568.16",73373-RESIDENTIAL & NURSING CARE PLACEMENTS,Third Party Payments,Private Contractor Fees,Revenue
Walsall Council,http://opendatacommunities.org/id/metropolitan-district-council/walsall,WC 60 - 695,30/09/2015,Social Care & Inclusion,C & V ORCHARD RESIDENTIAL LTD,23/09/2015,"1,568.16",73373-RESIDENTIAL & NURSING CARE PLACEMENTS,Third Party Payments,Private Contractor Fees,Revenue
Walsall Council,http://opendatacommunities.org/id/metropolitan-district-council/walsall,WC 60 - 696,30/09/2015,Social Care & Inclusion,C & V ORCHARD RESIDENTIAL LTD,01/09/2015,"1,568.60",73373-RESIDENTIAL & NURSING CARE PLACEMENTS,Third Party Payments,Private Contractor Fees,Revenue
Walsall Council,http://opendatacommunities.org/id/metropolitan-district-council/walsall,WC 60 - 697,30/09/2015,Social Care & Inclusion,C & V ORCHARD RESIDENTIAL LTD,01/09/2015,"1,568.60",73373-RESIDENTIAL & NURSING CARE PLACEMENTS,Third Party Payments,Private Contractor Fees,Revenue
Walsall Council,http://opendatacommunities.org/id/metropolitan-district-council/walsall,WC 60 - 698,30/09/2015,Social Care & Inclusion,C & V ORCHARD RESIDENTIAL LTD,23/09/2015,"1,568.60",73373-RESIDENTIAL & NURSING CARE PLACEMENTS,Third Party Payments,Private Contractor Fees,Revenue
Walsall Council,http://opendatacommunities.org/id/metropolitan-district-council/walsall,WC 60 - 699,30/09/2015,Social Care & Inclusion,C & V ORCHARD RESIDENTIAL LTD,09/09/2015,"1,568.64",73373-RESIDENTIAL & NURSING CARE PLACEMENTS,Third Party Payments,Private Contractor Fees,Revenue
Walsall Council,http://opendatacommunities.org/id/metropolitan-district-council/walsall,WC 60 - 700,30/09/2015,Social Care & Inclusion,C & V ORCHARD RESIDENTIAL LTD,09/09/2015,"1,568.64",73373-RESIDENTIAL & NURSING CARE PLACEMENTS,Third Party Payments,Private Contractor Fees,Revenue
Walsall Council,http://opendatacommunities.org/id/metropolitan-district-council/walsall,WC 60 - 701,30/09/2015,Social Care & Inclusion,C & V ORCHARD RESIDENTIAL LTD,09/09/2015,"1,568.64",73373-RESIDENTIAL & NURSING CARE PLACEMENTS,Third Party Payments,Private Contractor Fees,Revenue
Walsall Council,http://opendatacommunities.org/id/metropolitan-district-council/walsall,WC 60 - 702,30/09/2015,Social Care & Inclusion,C & V ORCHARD RESIDENTIAL LTD,23/09/2015,"1,568.64",73373-RESIDENTIAL & NURSING CARE PLACEMENTS,Third Party Payments,Private Contractor Fees,Revenue
Walsall Council,http://opendatacommunities.org/id/metropolitan-district-council/walsall,WC 60 - 703,30/09/2015,Social Care & Inclusion,C & V ORCHARD RESIDENTIAL LTD,23/09/2015,"1,568.80",73373-RESIDENTIAL & NURSING CARE PLACEMENTS,Third Party Payments,Private Contractor Fees,Revenue
Walsall Council,http://opendatacommunities.org/id/metropolitan-district-council/walsall,WC 60 - 704,30/09/2015,Social Care & Inclusion,C & V ORCHARD RESIDENTIAL LTD,23/09/2015,"1,759.89",73373-RESIDENTIAL & NURSING CARE PLACEMENTS,Third Party Payments,Private Contractor Fees,Revenue
Walsall Council,http://opendatacommunities.org/id/metropolitan-district-council/walsall,WC 60 - 705,30/09/2015,Economy & Environment,C ART ART TRANSPORT LTD,01/09/2015,-437.50,73032-TRANSPORTATION-PRIV CONTRACTOR FEES,Third Party Payments,Private Contractor Fees,Revenue
Walsall Council,http://opendatacommunities.org/id/metropolitan-district-council/walsall,WC 60 - 706,30/09/2015,Economy & Environment,C ART ART TRANSPORT LTD,21/09/2015,503.32,73032-TRANSPORTATION-PRIV CONTRACTOR FEES,Third Party Payments,Private Contractor Fees,Revenue
Walsall Council,http://opendatacommunities.org/id/metropolitan-district-council/walsall,WC 60 - 707,30/09/2015,Economy & Environment,C ART ART TRANSPORT LTD,21/09/2015,525.00,73032-TRANSPORTATION-PRIV CONTRACTOR FEES,Third Party Payments,Private Contractor Fees,Revenue
Walsall Council,http://opendatacommunities.org/id/metropolitan-district-council/walsall,WC 60 - 708,30/09/2015,Economy & Environment,C ART ART TRANSPORT LTD,10/09/2015,575.00,73032-TRANSPORTATION-PRIV CONTRACTOR FEES,Third Party Payments,Private Contractor Fees,Revenue
Walsall Council,http://opendatacommunities.org/id/metropolitan-district-council/walsall,WC 60 - 709,30/09/2015,Economy & Environment,C ART ART TRANSPORT LTD,21/09/2015,"1,620.00",73032-TRANSPORTATION-PRIV CONTRACTOR FEES,Third Party Payments,Private Contractor Fees,Revenue
Walsall Council,http://opendatacommunities.org/id/metropolitan-district-council/walsall,WC 60 - 710,30/09/2015,Childrens,REDACTED,14/09/2015,"4,317.64",62515-MISCELLANEOUS SUPPLIES,Supplies & Services,Other Supplies & Services,Revenue
Walsall Council,http://opendatacommunities.org/id/metropolitan-district-council/walsall,WC 60 - 711,30/09/2015,Childrens,REDACTED,14/09/2015,"7,053.78",74006-HOLIDAY/CHRISTMAS ALLOWANCE-FOSTER CARERS-OTH AGENCY PROVISION,Third Party Payments,Private Contractor Fees,Revenue
Walsall Council,http://opendatacommunities.org/id/metropolitan-district-council/walsall,WC 60 - 712,30/09/2015,Childrens,REDACTED,14/09/2015,"1,445.32",62515-MISCELLANEOUS SUPPLIES,Supplies & Services,Other Supplies & Services,Revenue
Walsall Council,http://opendatacommunities.org/id/metropolitan-district-council/walsall,WC 60 - 713,30/09/2015,Childrens,REDACTED,14/09/2015,"1,461.24",74006-HOLIDAY/CHRISTMAS ALLOWANCE-FOSTER CARERS-OTH AGENCY PROVISION,Third Party Payments,Private Contractor Fees,Revenue
Walsall Council,http://opendatacommunities.org/id/metropolitan-district-council/walsall,WC 60 - 714,30/09/2015,Economy & Environment,C P DAVIDSON & SONS LTD,01/09/2015,"-1,048.28",60514-MATERIALS TO STORES,Supplies & Services,"Equip,Furniture & Materials",Revenue
Walsall Council,http://opendatacommunities.org/id/metropolitan-district-council/walsall,WC 60 - 715,30/09/2015,Economy & Environment,C P DAVIDSON & SONS LTD,09/09/2015,315.58,60514-MATERIALS TO STORES,Supplies & Services,"Equip,Furniture & Materials",Revenue
Walsall Council,http://opendatacommunities.org/id/metropolitan-district-council/walsall,WC 60 - 716,30/09/2015,Economy & Environment,C P DAVIDSON & SONS LTD,24/09/2015,424.26,60514-MATERIALS TO STORES,Supplies & Services,"Equip,Furniture & Materials",Revenue
Walsall Council,http://opendatacommunities.org/id/metropolitan-district-council/walsall,WC 60 - 717,30/09/2015,Economy & Environment,C P DAVIDSON & SONS LTD,24/09/2015,"1,328.80",60514-MATERIALS TO STORES,Supplies & Services,"Equip,Furniture & Materials",Revenue
Walsall Council,http://opendatacommunities.org/id/metropolitan-district-council/walsall,WC 60 - 718,30/09/2015,Economy & Environment,C P DAVIDSON & SONS LTD,29/09/2015,"3,150.00",52003-OPERATING LEASES-VEHICLES,Central,Leasing,Revenue
Walsall Council,http://opendatacommunities.org/id/metropolitan-district-council/walsall,WC 60 - 719,30/09/2015,Economy & Environment,C P DAVIDSON & SONS LTD,29/09/2015,"3,150.00",52003-OPERATING LEASES-VEHICLES,Central,Leasing,Revenue
Walsall Council,http://opendatacommunities.org/id/metropolitan-district-council/walsall,WC 60 - 720,30/09/2015,Economy & Environment,C P DAVIDSON & SONS LTD,29/09/2015,"3,150.00",52003-OPERATING LEASES-VEHICLES,Central,Leasing,Revenue
Walsall Council,http://opendatacommunities.org/id/metropolitan-district-council/walsall,WC 60 - 721,30/09/2015,Economy & Environment,C P DAVIDSON & SONS LTD,29/09/2015,"3,150.00",52003-OPERATING LEASES-VEHICLES,Central,Leasing,Revenue
Walsall Council,http://opendatacommunities.org/id/metropolitan-district-council/walsall,WC 60 - 722,30/09/2015,Economy & Environment,C P DAVIDSON & SONS LTD,17/09/2015,"3,450.00",52003-OPERATING LEASES-VEHICLES,Central,Leasing,Revenue
Walsall Council,http://opendatacommunities.org/id/metropolitan-district-council/walsall,WC 60 - 723,30/09/2015,Economy & Environment,C P DAVIDSON & SONS LTD,17/09/2015,"3,450.00",52003-OPERATING LEASES-VEHICLES,Central,Leasing,Revenue
Walsall Council,http://opendatacommunities.org/id/metropolitan-district-council/walsall,WC 60 - 724,30/09/2015,Economy & Environment,C P DAVIDSON & SONS LTD,17/09/2015,"3,450.00",52003-OPERATING LEASES-VEHICLES,Central,Leasing,Revenue
Walsall Council,http://opendatacommunities.org/id/metropolitan-district-council/walsall,WC 60 - 725,30/09/2015,Economy & Environment,C P DAVIDSON & SONS LTD,17/09/2015,"3,450.00",52003-OPERATING LEASES-VEHICLES,Central,Leasing,Revenue
Walsall Council,http://opendatacommunities.org/id/metropolitan-district-council/walsall,WC 60 - 726,30/09/2015,Childrens,REDACTED,01/09/2015,"1,142.88",74006-HOLIDAY/CHRISTMAS ALLOWANCE-FOSTER CARERS-OTH AGENCY PROVISION,Third Party Payments,Private Contractor Fees,Revenue
Walsall Council,http://opendatacommunities.org/id/metropolitan-district-council/walsall,WC 60 - 727,30/09/2015,Childrens,REDACTED,28/09/2015,"1,142.88",74006-HOLIDAY/CHRISTMAS ALLOWANCE-FOSTER CARERS-OTH AGENCY PROVISION,Third Party Payments,Private Contractor Fees,Revenue
Walsall Council,http://opendatacommunities.org/id/metropolitan-district-council/walsall,WC 60 - 728,30/09/2015,Social Care & Inclusion,CALDMORE AREA HOUSING ASS LTD,25/09/2015,265.43,73373-RESIDENTIAL & NURSING CARE PLACEMENTS,Third Party Payments,Private Contractor Fees,Revenue
Walsall Council,http://opendatacommunities.org/id/metropolitan-district-council/walsall,WC 60 - 729,30/09/2015,Social Care & Inclusion,CALDMORE AREA HOUSING ASS LTD,07/09/2015,357.57,73374-SUPPORTED & OTHER ACCOMMODATION,Third Party Payments,Private Contractor Fees,Revenue
Walsall Council,http://opendatacommunities.org/id/metropolitan-district-council/walsall,WC 60 - 730,30/09/2015,Social Care & Inclusion,CALDMORE AREA HOUSING ASS LTD,23/09/2015,361.68,73372-DOMICILIARY CARE,Third Party Payments,Private Contractor Fees,Revenue
Walsall Council,http://opendatacommunities.org/id/metropolitan-district-council/walsall,WC 60 - 731,30/09/2015,Social Care & Inclusion,CALDMORE AREA HOUSING ASS LTD,07/09/2015,388.80,73374-SUPPORTED & OTHER ACCOMMODATION,Third Party Payments,Private Contractor Fees,Revenue
Walsall Council,http://opendatacommunities.org/id/metropolitan-district-council/walsall,WC 60 - 732,30/09/2015,Social Care & Inclusion,CALDMORE AREA HOUSING ASS LTD,11/09/2015,432.60,73374-SUPPORTED & OTHER ACCOMMODATION,Third Party Payments,Private Contractor Fees,Revenue
Walsall Council,http://opendatacommunities.org/id/metropolitan-district-council/walsall,WC 60 - 733,30/09/2015,Social Care & Inclusion,CALDMORE AREA HOUSING ASS LTD,11/09/2015,432.60,73374-SUPPORTED & OTHER ACCOMMODATION,Third Party Payments,Private Contractor Fees,Revenue
Walsall Council,http://opendatacommunities.org/id/metropolitan-district-council/walsall,WC 60 - 734,30/09/2015,Social Care & Inclusion,CALDMORE AREA HOUSING ASS LTD,15/09/2015,530.85,73373-RESIDENTIAL & NURSING CARE PLACEMENTS,Third Party Payments,Private Contractor Fees,Revenue
Walsall Council,http://opendatacommunities.org/id/metropolitan-district-council/walsall,WC 60 - 735,30/09/2015,Social Care & Inclusion,CALDMORE AREA HOUSING ASS LTD,25/09/2015,542.79,73373-RESIDENTIAL & NURSING CARE PLACEMENTS,Third Party Payments,Private Contractor Fees,Revenue
Walsall Council,http://opendatacommunities.org/id/metropolitan-district-council/walsall,WC 60 - 736,30/09/2015,Social Care & Inclusion,CALDMORE AREA HOUSING ASS LTD,07/09/2015,576.80,73374-SUPPORTED & OTHER ACCOMMODATION,Third Party Payments,Private Contractor Fees,Revenue
Walsall Council,http://opendatacommunities.org/id/metropolitan-district-council/walsall,WC 60 - 737,30/09/2015,Social Care & Inclusion,CALDMORE AREA HOUSING ASS LTD,07/09/2015,576.80,73374-SUPPORTED & OTHER ACCOMMODATION,Third Party Payments,Private Contractor Fees,Revenue
Walsall Council,http://opendatacommunities.org/id/metropolitan-district-council/walsall,WC 60 - 738,30/09/2015,Social Care & Inclusion,CALDMORE AREA HOUSING ASS LTD,07/09/2015,576.80,73374-SUPPORTED & OTHER ACCOMMODATION,Third Party Payments,Private Contractor Fees,Revenue
Walsall Council,http://opendatacommunities.org/id/metropolitan-district-council/walsall,WC 60 - 739,30/09/2015,Social Care & Inclusion,CALDMORE AREA HOUSING ASS LTD,07/09/2015,576.80,73374-SUPPORTED & OTHER ACCOMMODATION,Third Party Payments,Private Contractor Fees,Revenue
Walsall Council,http://opendatacommunities.org/id/metropolitan-district-council/walsall,WC 60 - 740,30/09/2015,Social Care & Inclusion,CALDMORE AREA HOUSING ASS LTD,15/09/2015,619.33,73373-RESIDENTIAL & NURSING CARE PLACEMENTS,Third Party Payments,Private Contractor Fees,Revenue
Walsall Council,http://opendatacommunities.org/id/metropolitan-district-council/walsall,WC 60 - 741,30/09/2015,Social Care & Inclusion,CALDMORE AREA HOUSING ASS LTD,15/09/2015,619.33,73373-RESIDENTIAL & NURSING CARE PLACEMENTS,Third Party Payments,Private Contractor Fees,Revenue
Walsall Council,http://opendatacommunities.org/id/metropolitan-district-council/walsall,WC 60 - 742,30/09/2015,Social Care & Inclusion,CALDMORE AREA HOUSING ASS LTD,15/09/2015,633.26,73373-RESIDENTIAL & NURSING CARE PLACEMENTS,Third Party Payments,Private Contractor Fees,Revenue
Walsall Council,http://opendatacommunities.org/id/metropolitan-district-council/walsall,WC 60 - 743,30/09/2015,Social Care & Inclusion,CALDMORE AREA HOUSING ASS LTD,23/09/2015,633.26,73373-RESIDENTIAL & NURSING CARE PLACEMENTS,Third Party Payments,Private Contractor Fees,Revenue
Walsall Council,http://opendatacommunities.org/id/metropolitan-district-council/walsall,WC 60 - 744,30/09/2015,Social Care & Inclusion,CALDMORE AREA HOUSING ASS LTD,11/09/2015,721.00,73374-SUPPORTED & OTHER ACCOMMODATION,Third Party Payments,Private Contractor Fees,Revenue
Walsall Council,http://opendatacommunities.org/id/metropolitan-district-council/walsall,WC 60 - 745,30/09/2015,Social Care & Inclusion,CALDMORE AREA HOUSING ASS LTD,11/09/2015,721.00,73374-SUPPORTED & OTHER ACCOMMODATION,Third Party Payments,Private Contractor Fees,Revenue
Walsall Council,http://opendatacommunities.org/id/metropolitan-district-council/walsall,WC 60 - 746,30/09/2015,Social Care & Inclusion,CALDMORE AREA HOUSING ASS LTD,11/09/2015,721.00,73374-SUPPORTED & OTHER ACCOMMODATION,Third Party Payments,Private Contractor Fees,Revenue
Walsall Council,http://opendatacommunities.org/id/metropolitan-district-council/walsall,WC 60 - 747,30/09/2015,Social Care & Inclusion,CALDMORE AREA HOUSING ASS LTD,11/09/2015,721.00,73374-SUPPORTED & OTHER ACCOMMODATION,Third Party Payments,Private Contractor Fees,Revenue
Walsall Council,http://opendatacommunities.org/id/metropolitan-district-council/walsall,WC 60 - 748,30/09/2015,Social Care & Inclusion,CALDMORE AREA HOUSING ASS LTD,11/09/2015,838.32,73372-DOMICILIARY CARE,Third Party Payments,Private Contractor Fees,Revenue
